Workbook

Sheet Forside
B2: Økonomi i gødningsanvendelse i økologiske sædskifter
B3: Version 2.0 - September 2021
B8: Beregningen er foretaget for: | I8: Beregningen af foretaget af:
B10: Gårdnavn | I10: Virksomhed
B11: Landmand | I11: Konsulent
B12: Adresse | I12: Adresse
B13: Postnummer og by | I13: Postnummer og by
B14: E-mail | I14: E-mail
B18: Indtast sædskiftetype | P18: TRUE
P19: FALSE
B22: Indtast gødningmængder og sædskifter | K22: Rediger afgrøder og gødninger
F26: Nuværende sædskifte
F29: Alternativ 1 | K29: Udskriv eller gem som pdf
F32: Alternativ 2
B38: Fejlfinding - sådan gør du, hvis programmet ikke virker!
B39: Fejl | E39: Løsning
B40: Knapperne virker ikke | E40: Aktiver makroer: Tryk følgende: Filer, Indstillinger, Center for sikkerhed..., Indstillinger for Center for sikkerhed..., Indstillinger for Makro, Aktiver alle makroer, OK. Luk derefter filen og åben den igen.
B42: Der dukker pludselig en masse vinduer op, når jeg trykker på 'Optimer kvælstoftildelingen' | E42: Tjek to ting:
E43: 1. Installer problemløser: Tryk følgende: Filer, Indstillinger, Tilføjelsesprogrammer, vælg Analyses ToolPak - VBA, Udfør, sæt flueben i de tre øverste, OK.
E45: 2. Aktiver "Solver": Tryk Alt+F11 (Visual Basic). Tryk følgende: Tools, References, Sæt flueben ved Solver, OK, Luk alle faner med krydset i øverste højre hjørne.

Sheet Gødning_produktion
B2: Indtast gødningstyper og -mængder, som er til rådighed
B3: - Indtast den samlede gødningsmængde, som er til rådighed for både efterårs- og forårsgødskningen
B5: =IF(Forside!F26<>"",Forside!F26,"Nuværende sædskifte") -> Nuværende sædskifte | D5: Mængde, | E5: Pris, | F5: Indhold, kg pr. ton | J5: Andel | K5: Krav til N-udnyttelse, % | X5: Andel
C6: Kode | D6: ton | E6: kr. pr. ton | F6: Total-N | G6: NH4-N | H6: P | I6: K | J6: økologi, % | W6: Total-N | X6: økologi, % | Z6: Kg udnyttet N | AA6: Kg total-N | AB6: Pct. udn
C7: 1 | F7: =IF($C7>1,INDEX(Gødningsdatabase,$C7,4),"") ->  | G7: =IF($C7>1,INDEX(Gødningsdatabase,$C7,5),"") ->  | H7: =IF($C7>1,INDEX(Gødningsdatabase,$C7,6),"") ->  | I7: =IF($C7>1,INDEX(Gødningsdatabase,$C7,7),"") ->  | J7: =IF($C7>1,INDEX(Gødningsdatabase,$C7,8),"") ->  | K7: =IF($C7>1,INDEX(Gødningsdatabase,$C7,9),"") ->  | L7: 1 | O7: =IF($C7>1,INDEX(Gødningsdatabase,$C7,4),"") ->  | P7: =IF($C7>1,INDEX(Gødningsdatabase,$C7,5),"") ->  | Q7: =IF($C7>1,INDEX(Gødningsdatabase,$C7,6),"") ->  | R7: =IF($C7>1,INDEX(Gødningsdatabase,$C7,7),"") ->  | S7: =IF($C7>1,INDEX(Gødningsdatabase,$C7,8),"") ->  | T7: =IF($C7>1,INDEX(Gødningsdatabase,$C7,9),"") ->  | W7: =IF(F7<>"",F7,0) -> 0 | X7: =IF(J7<>"",J7,0) -> 0 | Z7: =IF(D7<>"",D7*F7*K7%,0) -> 0 | AA7: =IF(D7<>"",D7*F7,0) -> 0
C8: 1 | L8: 1 | W8: 0 | X8: =IF(J8<>"",J8,0) -> 0 | Z8: =IF(D8<>"",D8*F8*K8%,0) -> 0 | AA8: =IF(D8<>"",D8*F8,0) -> 0
C9: 1 | L9: 1 | W9: 0 | X9: 0 | Z9: 0 | AA9: 0
C10: 1 | L10: 1 | W10: 0 | X10: 0 | Z10: 0 | AA10: 0
C11: 1 | L11: 1 | W11: 0 | X11: 0 | Z11: 0 | AA11: 0
C12: 1 | L12: 1 | W12: 0 | X12: 0 | Z12: 0 | AA12: 0
B13: Gennemsnit | D13: - | E13: =IF(D14>0,E14/$D$14,0) -> 0 | F13: =IF(F14>0,F14/$D$14,0) -> 0 | G13: =IF(G14>0,G14/$D$14,0) -> 0 | H13: 0 | I13: 0 | J13: =IF(F14=0,0,((D7*W7*X7%+D8*W8*X8%+D9*W9*X9%+D10*W10*X10%+D11*W11*X11%+D12*W12*X12%)/F14%)) -> 0 | K13: =AB13 -> 0 | M13: Gns. ammoniumandel | O13: =G13/F13*100 ->  | Z13: =SUM(Z7:Z12) -> 0 | AA13: =SUM(AA7:AA12) -> 0 | AB13: =IF(D14>0,Z13/AA13%,0) -> 0
B14: I alt | D14: =SUM(D7:D12) -> 0 | E14: =SUMPRODUCT($D$7:$D$12,E7:E12) -> 0 | F14: =SUMPRODUCT($D$7:$D$12,F7:F12) -> 0 | G14: =SUMPRODUCT($D$7:$D$12,G7:G12) -> 0 | H14: 0 | I14: 0 | J14: - | K14: - | M14: NH4-andel/udn-krav | O14: =O13/K13 -> 
B17: Omkostning til transport og udbringning | E17: kr. pr. ton
B21: =IF(Forside!F29<>"",Forside!F29,"Alternativ 1") -> Alternativ 1 | D21: Mængde, | E21: Pris, | F21: Indhold, kg pr. ton | J21: Andel | K21: Krav til N-udnyttelse, %
C22: Kode | D22: ton | E22: kr. pr. ton | F22: Total-N | G22: NH4-N | H22: P | I22: K | J22: økologi, % | V22: Mængde | Z22: Kg udnyttet N | AA22: Kg total-N | AB22: Pct. udn
C23: =C7 -> 1 | D23: =IF(D7<>"",D7,"") ->  | F23: =IF($C23>1,INDEX(Gødningsdatabase,$C23,4),"") ->  | G23: =IF($C23>1,INDEX(Gødningsdatabase,$C23,5),"") ->  | H23: =IF($C23>1,INDEX(Gødningsdatabase,$C23,6),"") ->  | I23: =IF($C23>1,INDEX(Gødningsdatabase,$C23,7),"") ->  | J23: =IF($C23>1,INDEX(Gødningsdatabase,$C23,8),"") ->  | K23: =IF($C23>1,INDEX(Gødningsdatabase,$C23,9),"") ->  | L23: =L7 -> 1 | M23: =IF(M7<>"",M7,"") ->  | O23: =IF($C23>1,INDEX(Gødningsdatabase,$C23,4),"") ->  | P23: =IF($C23>1,INDEX(Gødningsdatabase,$C23,5),"") ->  | Q23: =IF($C23>1,INDEX(Gødningsdatabase,$C23,6),"") ->  | R23: =IF($C23>1,INDEX(Gødningsdatabase,$C23,7),"") ->  | S23: =IF($C23>1,INDEX(Gødningsdatabase,$C23,8),"") ->  | T23: =IF($C23>1,INDEX(Gødningsdatabase,$C23,9),"") ->  | V23: =IF(D23<>"",D23,0) -> 0 | W23: =IF(F23<>"",F23,0) -> 0 | X23: =IF(J23<>"",J23,0) -> 0 | Z23: =IF(D23<>"",D23*F23*K23%,0) -> 0 | AA23: =IF(D23<>"",D23*F23,0) -> 0
C24: =C8 -> 1 | D24: =IF(D8<>"",D8,"") ->  | L24: =L8 -> 1 | M24: =IF(M8<>"",M8,"") ->  | V24: =IF(D24<>"",D24,0) -> 0 | W24: 0 | X24: =IF(J24<>"",J24,0) -> 0 | Z24: =IF(D24<>"",D24*F24*K24%,0) -> 0 | AA24: =IF(D24<>"",D24*F24,0) -> 0
C25: 1 | D25: =IF(D9<>"",D9,"") ->  | E25: =IF(E9<>"",E9,"") ->  | L25: =L9 -> 1 | M25: =IF(M9<>"",M9,"") ->  | N25: =IF(N9<>"",N9,"") ->  | V25: 0 | W25: 0 | X25: 0 | Z25: 0 | AA25: 0
C26: 1 | D26: =IF(D10<>"",D10,"") ->  | L26: =L10 -> 1 | M26: =IF(M10<>"",M10,"") ->  | V26: 0 | W26: 0 | X26: 0 | Z26: 0 | AA26: 0
C27: 1 | D27: =IF(D11<>"",D11,"") ->  | L27: =L11 -> 1 | M27: =IF(M11<>"",M11,"") ->  | V27: 0 | W27: 0 | X27: 0 | Z27: 0 | AA27: 0
C28: 1 | D28: =IF(D12<>"",D12,"") ->  | L28: =L12 -> 1 | M28: =IF(M12<>"",M12,"") ->  | V28: 0 | W28: 0 | X28: 0 | Z28: 0 | AA28: 0
B29: Gennemsnit | D29: - | E29: =IF(D30>0,E30/$D$30,0) -> 0 | F29: =IF(F30>0,F30/$D$30,0) -> 0 | G29: =IF(G30>0,G30/$D$30,0) -> 0 | H29: 0 | I29: 0 | J29: =IF(F30=0,0,((V23*W23*X23%+V24*W24*X24%+V25*W25*X25%+V26*W26*X26%+V27*W27*X27%+V28*W28*X28%)/F30%)) -> 0 | K29: =AB29 -> 0 | M29: Gns. ammoniumandel | O29: =G29/F29*100 ->  | Z29: =SUM(Z23:Z28) -> 0 | AA29: =SUM(AA23:AA28) -> 0 | AB29: =IF(D30>0,Z29/AA29%,0) -> 0
B30: I alt | D30: =SUM(D23:D28) -> 0 | E30: =SUMPRODUCT($D$23:$D$28,E23:E28) -> 0 | F30: =SUMPRODUCT($D$23:$D$28,F23:F28) -> 0 | G30: 0 | H30: 0 | I30: 0 | J30: - | K30: - | M30: NH4-andel/udn-krav | O30: =O29/K29 -> 
B33: Omkostning til transport og udbringning | D33: =IF(D17<>"",D17,0) -> 0 | E33: kr. pr. ton | M33: =IF(M17<>"",M17,0) -> 0
B38: =IF(Forside!F32<>"",Forside!F32,"Alternativ 2") -> Alternativ 2 | D38: Mængde, | E38: Pris, | F38: Indhold, kg pr. ton | J38: Andel | K38: Krav til N-udnyttelse, %
C39: Kode | D39: ton | E39: kr. pr. ton | F39: Total-N | G39: NH4-N | H39: P | I39: K | J39: økologi, % | V39: Mængde | Z39: Kg udnyttet N | AA39: Kg total-N | AB39: Pct. udn
C40: =C7 -> 1 | D40: =IF(D7<>"",D7,"") ->  | E40: =IF(E7<>"",E7,"") ->  | F40: =IF($C40>1,INDEX(Gødningsdatabase,$C40,4),"") ->  | G40: =IF($C40>1,INDEX(Gødningsdatabase,$C40,5),"") ->  | H40: =IF($C40>1,INDEX(Gødningsdatabase,$C40,6),"") ->  | I40: =IF($C40>1,INDEX(Gødningsdatabase,$C40,7),"") ->  | J40: =IF($C40>1,INDEX(Gødningsdatabase,$C40,8),"") ->  | K40: =IF($C40>1,INDEX(Gødningsdatabase,$C40,9),"") ->  | L40: =L7 -> 1 | M40: =IF(M7<>"",M7,"") ->  | N40: =IF(N7<>"",N7,"") ->  | O40: =IF($C40>1,INDEX(Gødningsdatabase,$C40,4),"") ->  | P40: =IF($C40>1,INDEX(Gødningsdatabase,$C40,5),"") ->  | Q40: =IF($C40>1,INDEX(Gødningsdatabase,$C40,6),"") ->  | R40: =IF($C40>1,INDEX(Gødningsdatabase,$C40,7),"") ->  | S40: =IF($C40>1,INDEX(Gødningsdatabase,$C40,8),"") ->  | T40: =IF($C40>1,INDEX(Gødningsdatabase,$C40,9),"") ->  | V40: =IF(D40<>"",D40,0) -> 0 | W40: =IF(F40<>"",F40,0) -> 0 | X40: =IF(J40<>"",J40,0) -> 0 | Z40: =IF(D40<>"",D40*F40*K40%,0) -> 0 | AA40: =IF(D40<>"",D40*F40,0) -> 0
C41: =C8 -> 1 | D41: =IF(D8<>"",D8,"") ->  | L41: =L8 -> 1 | M41: =IF(M8<>"",M8,"") ->  | V41: =IF(D41<>"",D41,0) -> 0 | W41: 0 | X41: =IF(J41<>"",J41,0) -> 0 | Z41: =IF(D41<>"",D41*F41*K41%,0) -> 0 | AA41: =IF(D41<>"",D41*F41,0) -> 0
C42: 1 | D42: =IF(D9<>"",D9,"") ->  | L42: 1 | M42: =IF(M9<>"",M9,"") ->  | V42: 0 | W42: 0 | X42: 0 | Z42: 0 | AA42: 0
C43: 1 | D43: =IF(D10<>"",D10,"") ->  | L43: 1 | M43: =IF(M10<>"",M10,"") ->  | V43: 0 | W43: 0 | X43: 0 | Z43: 0 | AA43: 0
C44: 1 | D44: =IF(D11<>"",D11,"") ->  | L44: 1 | M44: =IF(M11<>"",M11,"") ->  | V44: 0 | W44: 0 | X44: 0 | Z44: 0 | AA44: 0
C45: 1 | D45: =IF(D12<>"",D12,"") ->  | L45: 1 | M45: =IF(M12<>"",M12,"") ->  | V45: 0 | W45: 0 | X45: 0 | Z45: 0 | AA45: 0
B46: Gennemsnit | D46: - | E46: =IF(D47>0,E47/$D$47,0) -> 0 | F46: =IF(F47>0,F47/$D$47,0) -> 0 | G46: =IF(G47>0,G47/$D$47,0) -> 0 | H46: =IF(H47>0,H47/$D$47,0) -> 0 | I46: =IF(I47>0,I47/$D$47,0) -> 0 | J46: =IF(F47=0,0,((V40*W40*X40%+V41*W41*X41%+V42*W42*X42%+V43*W43*X43%+V44*W44*X44%+V45*W45*X45%)/F47%)) -> 0 | K46: =AB46 -> 0 | M46: Gns. ammoniumandel | O46: =G46/F46*100 ->  | Z46: =SUM(Z40:Z45) -> 0 | AA46: =SUM(AA40:AA45) -> 0 | AB46: =IF(D47>0,Z46/AA46%,0) -> 0
B47: I alt | D47: =SUM(D40:D45) -> 0 | E47: =SUMPRODUCT($D$40:$D$45,E40:E45) -> 0 | F47: =SUMPRODUCT($D$40:$D$45,F40:F45) -> 0 | G47: =SUMPRODUCT($D$40:$D$45,G40:G45) -> 0 | H47: =SUMPRODUCT($D$40:$D$45,H40:H45) -> 0 | I47: =SUMPRODUCT($D$40:$D$45,I40:I45) -> 0 | J47: - | K47: - | M47: NH4-andel/udn-krav | O47: =O46/K46 -> 
B50: Omkostning til transport og udbringning | D50: =IF(D17<>"",D17,0) -> 0 | E50: kr. pr. ton | M50: =IF(M17<>"",M17,0) -> 0

Sheet Basis
B2: =_xlfn.CONCAT("Indtast sædskifte for: ",Forside!F26) -> Indtast sædskifte for: Nuværende sædskifte
B4: Forfrugt | D4: Afgrøde | F4: Areal, hektar | K4: Afgrøde- pris, kr. pr. hkg el. ae | M4: Optimeret N-tilførsel, kg NH4-N pr. ha | N4: Udbytte | P4: Omkost-ning, kr. pr. ha | Q4: =IF(F21>=65,"DB II, kr. pr. ha", "DB II, kr. pr. ha *)") -> DB II, kr. pr. ha *) | U4: Efterårs- | V4: Efterårs-
J5: Forfrugts- | N5: hkg el. ae pr. ha | O5: kr. pr. ha | U5: gødskning | V5: gødskning
G6: Responsfunktion, 2. grad | J6: værdi | L6: Forfrugt+ | S6: Kg NH4-N | T6: Kg total-N | U6: kg NH4-N | V6: kg NH4-N | W6: Forfrugt | X6: Afgrøde | Y6: Afgrøde | Z6: Afgrøde | AA6: Ton gylle | AB6: Norm ÷
C7: Nr. | E7: Nr. | G7: X2 | H7: X | I7: k | J7: kg N/ha | L7: tilført N | R7: Kr. i alt | S7: i alt | T7: i alt | U7: pr. ha | V7: i alt | W7: kløvergræs | X7: vårbyg? | Y7: hvede? | Z7: majs? | AA7: pr. ha | AB7: forfrugt
C8: 1 | E8: 1 | G8: =IF(AND(AND(W8=1,X8=1,E8>1)),INDEX(Optimering_nu,$E8+21,3),IF(AND(AND(W8=1,Y8=1,E8>1)),INDEX(Optimering_nu,$E8+17,3),IF($E8>1,INDEX(Optimering_nu,$E8,3),""))) ->  | H8: =IF(AND(AND(W8=1,X8=1,E8>1)),INDEX(Optimering_nu,$E8+21,4),IF(AND(AND(W8=1,Y8=1,E8>1)),INDEX(Optimering_nu,$E8+17,4),IF($E8>1,INDEX(Optimering_nu,$E8,4),""))) ->  | I8: =IF(AND(AND(W8=1,X8=1,E8>1)),INDEX(Optimering_nu,$E8+21,5),IF(AND(AND(W8=1,Y8=1,E8>1)),INDEX(Optimering_nu,$E8+17,5),IF($E8>1,INDEX(Optimering_nu,$E8,5),""))) ->  | J8: =IF($C8>1,INDEX(Optimering_nu,$C8,7),"") ->  | K8: =IF($E8>1,INDEX(Optimering_nu,$E8,8),"") ->  | L8: 39.24418605 | M8: =IF(AND(Z8<>1,AB8>=0),AB8,IF(AND(Z8=1,AB8<40),40,IF(AND(Z8=1,AB8>=40),AB8,0))) -> 0 | N8: =IF(AND(C8>1,E8>1),(IF(AND(W8=1,X8=1),INDEX(Optimering_nu,$E8,20),IF(AND(W8=1,Y8=1),(L8^2*G8+L8*H8+I8)+INDEX(Optimering_nu,$E8,15),IF(,E8>=6,L8^2*G8+L8*H8+I8)))),"") ->  | O8: =IF(AND(C8>1,E8>1),N8*K8,"") ->  | P8: =IF($E8>1,INDEX(Optimering_nu,$E8,9)+INDEX(Optimering_nu,$E8,10)+(AA8*(GyllePrisNu+PrisUdbringningNu)),"") ->  | Q8: =IF($F$22>=65,IF(AND(C8>1,E8>1),O8-P8,""), IF(AND(C8>1,E8>1),(O8-P8)+500,"")) ->  | R8: =IF(AND(C8>1,E8>1),Q8*F8,"") ->  | S8: =IF(AND(C8>1,E8>1),F8*M8,"") ->  | T8: =IF(AND(C8>1,E8>1),S8*$F$27/$F$28,"") ->  | U8: =IF($E8>1,INDEX(Optimering_nu,$E8,11),0) -> 0 | V8: =IF(F8<>"",U8*F8,0) -> 0 | W8: =IF(AND(C8>Mark_database!$C$13,Basis!C8<Mark_database!$C$16),1,0) -> 0 | X8: =IF(AND(E8>Mark_database!$C$7,E8<Mark_database!$C$10),1,0) -> 0 | Y8: =IF(AND(E8>Mark_database!$C$9,E8<Mark_database!$C$12),1,0) -> 0 | Z8: =IF(E8=Mark_database!$C$16,1,0) -> 0 | AA8: =IF(Gødning_produktion!$D$14>0,M8/Gødning_produktion!$G$13,0) -> 0 | AB8: =IF(AND(AND(C8>1,E8>1,E8<21)),L8-J8,IF(AND(AND(C8>1,E8>1,E8>=21)),INDEX(Optimering_nu,$E8,6)-J8,0)) -> 0 | AD8: =IF($E8>1,INDEX(Optimering_nu,$E8,8),"") ->  | AF8: 1 | AH8: 1 | AS8: 1.481782599e-07 | AT8: =IF(AND(BG8<>1,BI8>=0),BI8,IF(AND(BG8=1,BI8<40),40,IF(AND(BG8=1,BI8>=40),BI8,0))) -> 0 | AU8: =IF(AND(AJ8>1,AL8>1),(IF(AND(BD8=1,BE8=1),INDEX(Optimering_nu,$E8,20),IF(AND(BD8=1,BF8=1),(AS8^2*AN8+AS8*AO8+AP8)+INDEX(Optimering_nu,$E8,15),IF(,AL8>=6,AS8^2*AN8+AS8*AO8+AP8)))),"") ->  | AV8: =IF(AND(AJ8>1,AL8>1),AU8*AR8,"") ->  | AW8: =IF($E8>1,INDEX(Optimering_nu,$E8,9)+INDEX(Optimering_nu,$E8,10)+(BH8*(GyllePrisNu+PrisUdbringningNu)),"") ->  | AX8: =IF($F$22>=65,IF(AND(AJ8>1,AL8>1),AV8-AW8,""), IF(AND(AJ8>1,AL8>1),(AV8-AW8)+500,"")) -> 
C9: 1 | E9: 1 | K9: =IF($E9>1,INDEX(Optimering_nu,$E9,8),"") ->  | L9: 4.372843576e-07 | M9: =IF(AND(Z9<>1,AB9>=0),AB9,IF(AND(Z9=1,AB9<40),40,IF(AND(Z9=1,AB9>=40),AB9,0))) -> 0 | N9: =IF(AND(C9>1,E9>1),(IF(AND(W9=1,X9=1),INDEX(Optimering_nu,$E9,20),IF(AND(W9=1,Y9=1),(L9^2*G9+L9*H9+I9)+INDEX(Optimering_nu,$E9,15),IF(,E9>=6,L9^2*G9+L9*H9+I9)))),"") ->  | Q9: =IF($F$22>=65,IF(AND(C9>1,E9>1),O9-P9,""), IF(AND(C9>1,E9>1),(O9-P9)+500,"")) ->  | U9: 0 | V9: =IF(F9<>"",U9*F9,0) -> 0 | W9: =IF(AND(C9>Mark_database!$C$13,Basis!C9<Mark_database!$C$16),1,0) -> 0 | X9: =IF(AND(E9>Mark_database!$C$7,E9<Mark_database!$C$10),1,0) -> 0 | Y9: =IF(AND(E9>Mark_database!$C$9,E9<Mark_database!$C$12),1,0) -> 0 | Z9: =IF(E9=Mark_database!$C$16,1,0) -> 0 | AA9: =IF(Gødning_produktion!$D$14>0,M9/Gødning_produktion!$G$13,0) -> 0 | AB9: 0 | AD9: =IF($E9>1,INDEX(Optimering_nu,$E9,8),"") ->  | AF9: 1 | AH9: 1 | AS9: 4.372843576e-07 | AT9: =IF(AND(BG9<>1,BI9>=0),BI9,IF(AND(BG9=1,BI9<40),40,IF(AND(BG9=1,BI9>=40),BI9,0))) -> 0 | AU9: =IF(AND(AJ9>1,AL9>1),(IF(AND(BD9=1,BE9=1),INDEX(Optimering_nu,$E9,20),IF(AND(BD9=1,BF9=1),(AS9^2*AN9+AS9*AO9+AP9)+INDEX(Optimering_nu,$E9,15),IF(,AL9>=6,AS9^2*AN9+AS9*AO9+AP9)))),"") ->  | AX9: =IF($F$22>=65,IF(AND(AJ9>1,AL9>1),AV9-AW9,""), IF(AND(AJ9>1,AL9>1),(AV9-AW9)+500,"")) -> 
C10: 1 | E10: 1 | L10: 90.24696536 | M10: 0 | U10: 0 | V10: 0 | W10: =IF(AND(C10>Mark_database!$C$13,Basis!C10<Mark_database!$C$16),1,0) -> 0 | X10: =IF(AND(E10>Mark_database!$C$7,E10<Mark_database!$C$10),1,0) -> 0 | Y10: =IF(AND(E10>Mark_database!$C$9,E10<Mark_database!$C$12),1,0) -> 0 | Z10: =IF(E10=Mark_database!$C$16,1,0) -> 0 | AA10: =IF(Gødning_produktion!$D$14>0,M10/Gødning_produktion!$G$13,0) -> 0 | AB10: 0 | AF10: 1 | AH10: 1 | AS10: 90.24696536 | AT10: 0
C11: 1 | E11: 1 | L11: 109.7530341 | M11: 0 | U11: 0 | V11: 0 | W11: =IF(AND(C11>Mark_database!$C$13,Basis!C11<Mark_database!$C$16),1,0) -> 0 | X11: =IF(AND(E11>Mark_database!$C$7,E11<Mark_database!$C$10),1,0) -> 0 | Y11: =IF(AND(E11>Mark_database!$C$9,E11<Mark_database!$C$12),1,0) -> 0 | Z11: =IF(E11=Mark_database!$C$16,1,0) -> 0 | AA11: =IF(Gødning_produktion!$D$14>0,M11/Gødning_produktion!$G$13,0) -> 0 | AB11: 0 | AF11: 1 | AH11: 1 | AS11: 109.7530341 | AT11: 0
C12: 1 | E12: 1 | L12: 0 | M12: 0 | U12: 0 | V12: 0 | W12: =IF(AND(C12>Mark_database!$C$13,Basis!C12<Mark_database!$C$16),1,0) -> 0 | X12: =IF(AND(E12>Mark_database!$C$7,E12<Mark_database!$C$10),1,0) -> 0 | Y12: =IF(AND(E12>Mark_database!$C$9,E12<Mark_database!$C$12),1,0) -> 0 | Z12: =IF(E12=Mark_database!$C$16,1,0) -> 0 | AA12: =IF(Gødning_produktion!$D$14>0,M12/Gødning_produktion!$G$13,0) -> 0 | AB12: 0 | AF12: 1 | AH12: 1 | AS12: 0 | AT12: 0
C13: 1 | E13: 1 | L13: 0 | M13: 0 | U13: 0 | V13: 0 | W13: =IF(AND(C13>Mark_database!$C$13,Basis!C13<Mark_database!$C$16),1,0) -> 0 | X13: =IF(AND(E13>Mark_database!$C$7,E13<Mark_database!$C$10),1,0) -> 0 | Y13: =IF(AND(E13>Mark_database!$C$9,E13<Mark_database!$C$12),1,0) -> 0 | Z13: =IF(E13=Mark_database!$C$16,1,0) -> 0 | AA13: =IF(Gødning_produktion!$D$14>0,M13/Gødning_produktion!$G$13,0) -> 0 | AB13: 0 | AF13: 1 | AH13: 1 | AS13: 0 | AT13: 0
C14: 1 | E14: 1 | L14: 0 | M14: 0 | U14: 0 | V14: 0 | W14: =IF(AND(C14>Mark_database!$C$13,Basis!C14<Mark_database!$C$16),1,0) -> 0 | X14: =IF(AND(E14>Mark_database!$C$7,E14<Mark_database!$C$10),1,0) -> 0 | Y14: =IF(AND(E14>Mark_database!$C$9,E14<Mark_database!$C$12),1,0) -> 0 | Z14: =IF(E14=Mark_database!$C$16,1,0) -> 0 | AA14: =IF(Gødning_produktion!$D$14>0,M14/Gødning_produktion!$G$13,0) -> 0 | AB14: 0 | AF14: 1 | AH14: 1 | AS14: 0 | AT14: 0
C15: 1 | E15: 1 | L15: 0 | M15: 0 | R15: =IF(AND(C15>1,E15>1),Q15*F15,"") ->  | S15: =IF(AND(C15>1,E15>1),F15*M15,"") ->  | U15: 0 | V15: 0 | W15: =IF(AND(C15>Mark_database!$C$13,Basis!C15<Mark_database!$C$16),1,0) -> 0 | X15: =IF(AND(E15>Mark_database!$C$7,E15<Mark_database!$C$10),1,0) -> 0 | Y15: =IF(AND(E15>Mark_database!$C$9,E15<Mark_database!$C$12),1,0) -> 0 | Z15: =IF(E15=Mark_database!$C$16,1,0) -> 0 | AA15: =IF(Gødning_produktion!$D$14>0,M15/Gødning_produktion!$G$13,0) -> 0 | AB15: 0 | AF15: 1 | AH15: 1 | AS15: 0 | AT15: 0
C16: 1 | E16: 1 | L16: 0 | M16: 0 | U16: 0 | V16: 0 | W16: =IF(AND(C16>Mark_database!$C$13,Basis!C16<Mark_database!$C$16),1,0) -> 0 | X16: =IF(AND(E16>Mark_database!$C$7,E16<Mark_database!$C$10),1,0) -> 0 | Y16: =IF(AND(E16>Mark_database!$C$9,E16<Mark_database!$C$12),1,0) -> 0 | Z16: =IF(E16=Mark_database!$C$16,1,0) -> 0 | AA16: =IF(Gødning_produktion!$D$14>0,M16/Gødning_produktion!$G$13,0) -> 0 | AB16: 0 | AF16: 1 | AH16: 1 | AS16: 0 | AT16: 0
C17: 1 | E17: 1 | L17: 0 | M17: 0 | U17: 0 | V17: 0 | W17: =IF(AND(C17>Mark_database!$C$13,Basis!C17<Mark_database!$C$16),1,0) -> 0 | X17: =IF(AND(E17>Mark_database!$C$7,E17<Mark_database!$C$10),1,0) -> 0 | Y17: =IF(AND(E17>Mark_database!$C$9,E17<Mark_database!$C$12),1,0) -> 0 | Z17: =IF(E17=Mark_database!$C$16,1,0) -> 0 | AA17: =IF(Gødning_produktion!$D$14>0,M17/Gødning_produktion!$G$13,0) -> 0 | AB17: 0 | AF17: 1 | AH17: 1 | AS17: 0 | AT17: 0
C18: 1 | E18: 1 | L18: 0 | M18: 0 | U18: 0 | V18: 0 | W18: =IF(AND(C18>Mark_database!$C$13,Basis!C18<Mark_database!$C$16),1,0) -> 0 | X18: =IF(AND(E18>Mark_database!$C$7,E18<Mark_database!$C$10),1,0) -> 0 | Y18: =IF(AND(E18>Mark_database!$C$9,E18<Mark_database!$C$12),1,0) -> 0 | Z18: =IF(E18=Mark_database!$C$16,1,0) -> 0 | AA18: =IF(Gødning_produktion!$D$14>0,M18/Gødning_produktion!$G$13,0) -> 0 | AB18: 0 | AF18: 1 | AH18: 1 | AS18: 0 | AT18: 0
B19: I alt, hektar, kg NH4-N og kr. på bedriften | F19: =SUM(F8:F18)-F37-F38-SUMIF(E8:E18,1,F8:F18) -> 0 | M19: =S19 -> 0 | Q19: =SUM(R8:R18) -> 0 | S19: =SUM(S8:S18) -> 0 | T19: =SUM(T8:T18) -> 0 | V19: =SUM(V8:V18) -> 0 | W19: NH4-N | AA19: =SUMPRODUCT(F8:F18,AA8:AA18) -> 0
B20: Oplysninger om kvælstoftilførslen | N20: =IF(AND(AND(F19>0,M19<F28,F27>F23)),"OBS! Der er mere kvælstof til rådighed, end der kan udbringes. Der er udbragt "&ROUND(S20,0)&" kg NH4-N pr. ha.","") ->  | S20: =S19/F19 ->  | T20: =T19/F19 ->  | V20: =IF(Gødning_produktion!D14>0,V19/(F30/100),0) -> 0 | W20: kg total-N
B21: Max. tilførsel af udnyttet N pr. ha | F21: 50 | K21: kg udnyttet N | N21: =IF(F21<65,"*) Incl. ekstra økologitilskud på 500 kr. pr. ha på grund af lav N-tilførsel.","") -> *) Incl. ekstra økologitilskud på 500 kr. pr. ha på grund af lav N-tilførsel.
B22: Max. tilførsel af ammonium N pr. ha | F22: =F21*Gødning_produktion!O14 ->  | K22: kg ammonium N
B23: Max. total tilførsel af total-N i alt | F23: =IF(F19=0,0,F22*F19/F30%) -> 0 | K23: kg total-N
B24: Max. total tilførsel af NH4-N i alt | F24: =IF(Gødning_produktion!D14>0,F19*F22,0) -> 0 | K24: kg NH4-N | N24: =IF(M19>F28+0.1,"OBS! Der planlægges at anvende mere gødning, end der er til rådighed! Gentag optimeringen.","") -> 
B25: -heraf tilført ved efterårsgødskning | F25: =IF(V19<Gødning_produktion!G14,V19,Gødning_produktion!G14) -> 0 | K25: kg NH4-N
B26: -heraf max. tilførsel ved forårsgødskningen | F26: =IF(AND(F30>0,(F24-F25)>0),F24-F25,0) -> 0 | K26: kg NH4-N
B27: Kg total-N i husdyrgødning til rådighed ved forårsgødskning | F27: =IF(F28>0.01,F28/(Gødning_produktion!G14/Gødning_produktion!F14),0) -> 0 | K27: kg total-N
B28: Kg NH4-N i husdyrgødning til rådighed ved forårsgødskning | F28: =IF(Gødning_produktion!G14-F25>0,(Gødning_produktion!G14-F25),0.01) -> 0.01 | K28: kg NH4-N
B29: Kg NH4-N i husdyrgødning til rådighed ved forårsgødskning | F29: =IF(F19>0,F28/F19,0) -> 0 | K29: kg NH4-N pr. ha
B30: Gennemsnitlig ammoniumandel | F30: =IF(F27>0,F28/F27*100,0) -> 0 | K30: pct.
B31: Udbragte næringsstofmængder:
B32: Totalkvælstof | F32: =IF(F19=0,0,T20) -> 0 | K32: kg total-N pr. ha
B33: Ammoniumkvælstof | F33: =IF(F19=0,0,S20) -> 0 | K33: kg NH4-N pr. ha
B34: Fosfor | F34: =IF(F19=0,0,F32*Gødning_produktion!H14/Gødning_produktion!F14) -> 0 | K34: kg fosfor pr. ha
B35: Kalium | F35: =IF(F19=0,0,F32*Gødning_produktion!I14/Gødning_produktion!F14) -> 0 | K35: kg kalium pr. ha
B37: Efterafgrødeareal, foder | F37: =SUMIF(E8:E18,18,F8:F18) -> 0 | K37: ha
B38: Efterafgrødeareal, grøngødning | F38: =SUMIF(E8:E18,19,F8:F18) -> 0 | K38: ha
D41: N-optimum
B42: Alm rajgræs | D42: 164
B43: Thimothe | D43: 60
B44: Rajsvingel | D44: 100
B45: Hundegræs | D45: 130
B46: Rødsvingel | D46: 35

Sheet Alt1
B2: =_xlfn.CONCAT("Indtast sædskifte for: ",Forside!F29) -> Indtast sædskifte for: Alternativ 1
B4: Forfrugt | D4: Afgrøde | F4: Areal, hektar | K4: Afgrøde- pris, kr. pr. hkg el. ae | M4: Optimeret N-tilførsel, kg NH4-N pr. ha | N4: Udbytte | P4: Omkost-ning, kr. pr. ha | Q4: =IF(F21>=65,"DB II, kr. pr. ha", "DB II, kr. pr. ha *)") -> DB II, kr. pr. ha *) | U4: Efterårs- | V4: Efterårs-
J5: Forfrugts- | N5: hkg el. ae pr. ha | O5: kr. pr. ha | U5: gødskning | V5: gødskning | AP5: DBII i | AQ5: DB i alt.
G6: Responsfunktion, 2. grad | J6: værdi | L6: Forfrugt+ | S6: Kg NH4-N | T6: Kg total-N | U6: kg NH4-N | V6: kg NH4-N | AA6: Forfrugt | AB6: Afgrøde | AC6: Afgrøde | AD6: Afgrøde | AE6: Ton gylle | AF6: Norm - | AG6: Afgrøde | AP6: Øko_nu | AQ6: til frøgræs
C7: Nr. | E7: Nr. | G7: X2 | H7: X | I7: k | J7: kg N/ha | L7: tilført N | R7: Kr. i alt | S7: i alt | T7: i alt | U7: pr. ha | V7: i alt | AA7: kløvergræs | AB7: vårbyg? | AC7: hvede? | AD7: majs? | AE7: pr. ha | AF7: forfrugt | AG7: frøgræs? | AQ7: Øko_nu
C8: =Basis!C8 -> 1 | E8: =Basis!E8 -> 1 | F8: =IF(Basis!F8>0,Basis!F8,"") ->  | G8: =IF(AND(AND(AA8=1,AB8=1,E8>1)),INDEX(Optimering_nu,$E8+21,3),IF(AND(AND(AA8=1,AC8=1,E8>1)),INDEX(Optimering_nu,$E8+17,3),IF($E8>1,INDEX(Optimering_nu,$E8,3),""))) ->  | H8: =IF(AND(AND(AA8=1,AB8=1,E8>1)),INDEX(Optimering_nu,$E8+21,4),IF(AND(AND(AA8=1,AC8=1,E8>1)),INDEX(Optimering_nu,$E8+17,4),IF($E8>1,INDEX(Optimering_nu,$E8,4),""))) ->  | I8: =IF(AND(AND(AA8=1,AB8=1,E8>1)),INDEX(Optimering_nu,$E8+21,5),IF(AND(AND(AA8=1,AC8=1,E8>1)),INDEX(Optimering_nu,$E8+17,5),IF($E8>1,INDEX(Optimering_nu,$E8,5),""))) ->  | J8: =IF($C8>1,INDEX(Optimering_nu,$C8,7),"") ->  | K8: =IF($E8>1,INDEX(Optimering_nu,$E8,8),"") ->  | L8: 39.24418605 | M8: =IF(AND(AD8<>1,AF8>=0),AF8,IF(AND(AD8=1,AF8<40),40,IF(AND(AD8=1,AF8>=40),AF8,0))) -> 0 | N8: =IF(AND(C8>1,E8>1),(IF(AND(AA8=1,AB8=1),INDEX(Optimering_nu,$E8,20),IF(AND(AA8=1,AC8=1),(L8^2*G8+L8*H8+I8)+INDEX(Optimering_nu,$E8,15),IF(,E8>=6,L8^2*G8+L8*H8+I8)))),"") ->  | O8: =IF(AND(C8>1,E8>1),N8*K8,"") ->  | P8: =IF($E8>1,INDEX(Optimering_nu,$E8,9)+INDEX(Optimering_nu,$E8,10)+(AE8*(GylleprisAlt1+PrisUdbringningAlt1)),"") ->  | Q8: =IF($F$22>=65,IF(AND(C8>1,E8>1),O8-P8,""), IF(AND(C8>1,E8>1),(O8-P8)+500,"")) ->  | R8: =IF(AND(C8>1,E8>1),Q8*F8,"") ->  | S8: =IF(AND(C8>1,E8>1),F8*M8,"") ->  | T8: =IF(AND(C8>1,E8>1),S8*$F$27/$F$28,"") ->  | U8: =IF($E8>1,INDEX(Optimering_nu,$E8,11),0) -> 0 | V8: =IF(F8<>"",U8*F8,0) -> 0 | AA8: =IF(AND(C8>Mark_database!$C$13,'Alt1'!C8<Mark_database!$C$16),1,0) -> 0 | AB8: =IF(AND(E8>Mark_database!$C$7,E8<Mark_database!$C$10),1,0) -> 0 | AC8: =IF(AND(E8>Mark_database!$C$9,E8<Mark_database!$C$12),1,0) -> 0 | AD8: =IF(E8=Mark_database!$C$16,1,0) -> 0 | AE8: =IF(Gødning_produktion!$D$30>0,M8/Gødning_produktion!$G$29,0) -> 0 | AF8: =IF(AND(AND(E8<21,C8>1,E8>1)),L8-J8,IF(AND(AND(E8>=21,C8>1,E8>1)),INDEX(Optimering,$E8,6)-J8,0)) -> 0 | AG8: =IF(AND(E8>10,E8<18),1,0) -> 0 | AI8: =IF($E8>1,INDEX(Optimering_nu,$E8,8),"") ->  | AK8: =Basis!AK8 -> 0 | AM8: =Basis!AM8 -> 0 | AN8: =IF(Basis!AN8>0,Basis!AN8,"") ->  | AP8: =Basis!R8 ->  | AQ8: =IF(E8=Basis!E8,0,Basis!R8) -> 0 | AS8: 0 | AT8: =IF(AND(BK8<>1,BM8>=0),BM8,IF(AND(BK8=1,BM8<40),40,IF(AND(BK8=1,BM8>=40),BM8,0))) -> 0 | AU8: =IF(AND(AJ8>1,AL8>1),(IF(AND(BH8=1,BI8=1),INDEX(Optimering_nu,$E8,20),IF(AND(BH8=1,BJ8=1),(AS8^2*AN8+AS8*AO8+AP8)+INDEX(Optimering_nu,$E8,15),IF(,AL8>=6,AS8^2*AN8+AS8*AO8+AP8)))),"") ->  | AV8: =IF(AND(AJ8>1,AL8>1),AU8*AR8,"") ->  | AW8: =IF($E8>1,INDEX(Optimering_nu,$E8,9)+INDEX(Optimering_nu,$E8,10)+(BL8*(GylleprisAlt1+PrisUdbringningAlt1)),"") ->  | AX8: =IF($F$22>=65,IF(AND(AJ8>1,AL8>1),AV8-AW8,""), IF(AND(AJ8>1,AL8>1),(AV8-AW8)+500,"")) -> 
C9: =Basis!C9 -> 1 | E9: =Basis!E9 -> 1 | F9: =IF(Basis!F9>0,Basis!F9,"") ->  | G9: =IF(AND(AND(AA9=1,AC9=1,E9>1)),INDEX(Optimering_nu,$E9+17,3),IF($E9>1,INDEX(Optimering_nu,$E9,3),"")) ->  | H9: =IF(AND(AND(AA9=1,AC9=1,E9>1)),INDEX(Optimering_nu,$E9+17,4),IF($E9>1,INDEX(Optimering_nu,$E9,4),"")) ->  | I9: =IF(AND(AND(AA9=1,AC9=1,E9>1)),INDEX(Optimering_nu,$E9+17,5),IF($E9>1,INDEX(Optimering_nu,$E9,5),"")) ->  | L9: 0 | M9: =IF(AND(AD9<>1,AF9>=0),AF9,IF(AND(AD9=1,AF9<40),40,IF(AND(AD9=1,AF9>=40),AF9,0))) -> 0 | Q9: =IF($F$22>=65,IF(AND(C9>1,E9>1),O9-P9,""), IF(AND(C9>1,E9>1),(O9-P9)+500,"")) ->  | U9: 0 | V9: =IF(F9<>"",U9*F9,0) -> 0 | AA9: =IF(AND(C9>Mark_database!$C$13,'Alt1'!C9<Mark_database!$C$16),1,0) -> 0 | AB9: =IF(AND(E9>Mark_database!$C$7,E9<Mark_database!$C$10),1,0) -> 0 | AC9: =IF(AND(E9>Mark_database!$C$9,E9<Mark_database!$C$12),1,0) -> 0 | AD9: =IF(E9=Mark_database!$C$16,1,0) -> 0 | AE9: =IF(Gødning_produktion!$D$30>0,M9/Gødning_produktion!$G$29,0) -> 0 | AF9: 0 | AG9: =IF(AND(E9>10,E9<18),1,0) -> 0 | AK9: =Basis!AK9 -> 0 | AM9: =Basis!AM9 -> 0 | AN9: =IF(Basis!AN9>0,Basis!AN9,"") ->  | AP9: =Basis!R9 ->  | AQ9: =IF(E9=Basis!E9,0,Basis!R9) -> 0 | AS9: 0 | AT9: =IF(AND(BK9<>1,BM9>=0),BM9,IF(AND(BK9=1,BM9<40),40,IF(AND(BK9=1,BM9>=40),BM9,0))) -> 0 | AX9: =IF($F$22>=65,IF(AND(AJ9>1,AL9>1),AV9-AW9,""), IF(AND(AJ9>1,AL9>1),(AV9-AW9)+500,"")) -> 
C10: =Basis!C10 -> 1 | E10: =Basis!E10 -> 1 | F10: =IF(Basis!F10>0,Basis!F10,"") ->  | L10: 0 | M10: 0 | U10: 0 | V10: 0 | AA10: =IF(AND(C10>Mark_database!$C$13,'Alt1'!C10<Mark_database!$C$16),1,0) -> 0 | AB10: =IF(AND(E10>Mark_database!$C$7,E10<Mark_database!$C$10),1,0) -> 0 | AC10: =IF(AND(E10>Mark_database!$C$9,E10<Mark_database!$C$12),1,0) -> 0 | AD10: =IF(E10=Mark_database!$C$16,1,0) -> 0 | AE10: =IF(Gødning_produktion!$D$30>0,M10/Gødning_produktion!$G$29,0) -> 0 | AF10: 0 | AG10: 0 | AK10: =Basis!AK10 -> 0 | AM10: =Basis!AM10 -> 0 | AN10: =IF(Basis!AN10>0,Basis!AN10,"") ->  | AP10: =Basis!R10 ->  | AQ10: =IF(E10=Basis!E10,0,Basis!R10) -> 0 | AS10: 0 | AT10: 0
C11: =Basis!C11 -> 1 | E11: =Basis!E11 -> 1 | F11: =IF(Basis!F11>0,Basis!F11,"") ->  | L11: 0 | M11: 0 | U11: 0 | V11: 0 | AA11: =IF(AND(C11>Mark_database!$C$13,'Alt1'!C11<Mark_database!$C$16),1,0) -> 0 | AB11: =IF(AND(E11>Mark_database!$C$7,E11<Mark_database!$C$10),1,0) -> 0 | AC11: =IF(AND(E11>Mark_database!$C$9,E11<Mark_database!$C$12),1,0) -> 0 | AD11: =IF(E11=Mark_database!$C$16,1,0) -> 0 | AE11: =IF(Gødning_produktion!$D$30>0,M11/Gødning_produktion!$G$29,0) -> 0 | AF11: 0 | AG11: 0 | AK11: =Basis!AK11 -> 0 | AM11: =Basis!AM11 -> 0 | AN11: =IF(Basis!AN11>0,Basis!AN11,"") ->  | AP11: =Basis!R11 ->  | AQ11: =IF(E11=Basis!E11,0,Basis!R11) -> 0 | AS11: 0 | AT11: 0
C12: =Basis!C12 -> 1 | E12: =Basis!E12 -> 1 | F12: =IF(Basis!F12>0,Basis!F12,"") ->  | L12: 0 | M12: 0 | U12: 0 | V12: 0 | AA12: =IF(AND(C12>Mark_database!$C$13,'Alt1'!C12<Mark_database!$C$16),1,0) -> 0 | AB12: =IF(AND(E12>Mark_database!$C$7,E12<Mark_database!$C$10),1,0) -> 0 | AC12: =IF(AND(E12>Mark_database!$C$9,E12<Mark_database!$C$12),1,0) -> 0 | AD12: =IF(E12=Mark_database!$C$16,1,0) -> 0 | AE12: =IF(Gødning_produktion!$D$30>0,M12/Gødning_produktion!$G$29,0) -> 0 | AF12: 0 | AG12: 0 | AK12: =Basis!AK12 -> 0 | AM12: =Basis!AM12 -> 0 | AN12: =IF(Basis!AN12>0,Basis!AN12,"") ->  | AP12: =Basis!R12 ->  | AQ12: =IF(E12=Basis!E12,0,Basis!R12) -> 0 | AS12: 0 | AT12: 0
C13: =Basis!C13 -> 1 | E13: =Basis!E13 -> 1 | F13: =IF(Basis!F13>0,Basis!F13,"") ->  | L13: 0 | M13: 0 | U13: 0 | V13: 0 | AA13: =IF(AND(C13>Mark_database!$C$13,'Alt1'!C13<Mark_database!$C$16),1,0) -> 0 | AB13: =IF(AND(E13>Mark_database!$C$7,E13<Mark_database!$C$10),1,0) -> 0 | AC13: =IF(AND(E13>Mark_database!$C$9,E13<Mark_database!$C$12),1,0) -> 0 | AD13: =IF(E13=Mark_database!$C$16,1,0) -> 0 | AE13: =IF(Gødning_produktion!$D$30>0,M13/Gødning_produktion!$G$29,0) -> 0 | AF13: 0 | AG13: 0 | AK13: =Basis!AK13 -> 0 | AM13: =Basis!AM13 -> 0 | AN13: =IF(Basis!AN13>0,Basis!AN13,"") ->  | AP13: =Basis!R13 ->  | AQ13: =IF(E13=Basis!E13,0,Basis!R13) -> 0 | AS13: 0 | AT13: 0
C14: =Basis!C14 -> 1 | E14: =Basis!E14 -> 1 | F14: =IF(Basis!F14>0,Basis!F14,"") ->  | L14: 0 | M14: 0 | U14: 0 | V14: 0 | AA14: =IF(AND(C14>Mark_database!$C$13,'Alt1'!C14<Mark_database!$C$16),1,0) -> 0 | AB14: =IF(AND(E14>Mark_database!$C$7,E14<Mark_database!$C$10),1,0) -> 0 | AC14: =IF(AND(E14>Mark_database!$C$9,E14<Mark_database!$C$12),1,0) -> 0 | AD14: =IF(E14=Mark_database!$C$16,1,0) -> 0 | AE14: =IF(Gødning_produktion!$D$30>0,M14/Gødning_produktion!$G$29,0) -> 0 | AF14: 0 | AG14: 0 | AK14: =Basis!AK14 -> 0 | AM14: =Basis!AM14 -> 0 | AN14: =IF(Basis!AN14>0,Basis!AN14,"") ->  | AP14: =Basis!R14 ->  | AQ14: =IF(E14=Basis!E14,0,Basis!R14) -> 0 | AS14: 0 | AT14: 0
C15: =Basis!C15 -> 1 | E15: =Basis!E15 -> 1 | F15: =IF(Basis!F15>0,Basis!F15,"") ->  | L15: 0 | M15: 0 | R15: =IF(AND(C15>1,E15>1),Q15*F15,"") ->  | S15: =IF(AND(C15>1,E15>1),F15*M15,"") ->  | T15: =IF(AND(C15>1,E15>1),S15*$F$27/$F$28,"") ->  | U15: 0 | V15: 0 | AA15: =IF(AND(C15>Mark_database!$C$13,'Alt1'!C15<Mark_database!$C$16),1,0) -> 0 | AB15: =IF(AND(E15>Mark_database!$C$7,E15<Mark_database!$C$10),1,0) -> 0 | AC15: =IF(AND(E15>Mark_database!$C$9,E15<Mark_database!$C$12),1,0) -> 0 | AD15: =IF(E15=Mark_database!$C$16,1,0) -> 0 | AE15: =IF(Gødning_produktion!$D$30>0,M15/Gødning_produktion!$G$29,0) -> 0 | AF15: 0 | AG15: 0 | AK15: =Basis!AK15 -> 0 | AM15: =Basis!AM15 -> 0 | AN15: =IF(Basis!AN15>0,Basis!AN15,"") ->  | AP15: =Basis!R15 ->  | AQ15: =IF(E15=Basis!E15,0,Basis!R15) -> 0 | AS15: 0 | AT15: 0
C16: =Basis!C16 -> 1 | E16: =Basis!E16 -> 1 | F16: =IF(Basis!F16>0,Basis!F16,"") ->  | L16: 0 | M16: 0 | U16: 0 | V16: 0 | AA16: =IF(AND(C16>Mark_database!$C$13,'Alt1'!C16<Mark_database!$C$16),1,0) -> 0 | AB16: =IF(AND(E16>Mark_database!$C$7,E16<Mark_database!$C$10),1,0) -> 0 | AC16: =IF(AND(E16>Mark_database!$C$9,E16<Mark_database!$C$12),1,0) -> 0 | AD16: =IF(E16=Mark_database!$C$16,1,0) -> 0 | AE16: =IF(Gødning_produktion!$D$30>0,M16/Gødning_produktion!$G$29,0) -> 0 | AF16: 0 | AG16: 0 | AK16: =Basis!AK16 -> 0 | AM16: =Basis!AM16 -> 0 | AN16: =IF(Basis!AN16>0,Basis!AN16,"") ->  | AP16: =Basis!R16 ->  | AQ16: =IF(E16=Basis!E16,0,Basis!R16) -> 0 | AS16: 0 | AT16: 0
C17: =Basis!C17 -> 1 | E17: =Basis!E17 -> 1 | F17: =IF(Basis!F17>0,Basis!F17,"") ->  | L17: 0 | M17: 0 | U17: 0 | V17: 0 | AA17: =IF(AND(C17>Mark_database!$C$13,'Alt1'!C17<Mark_database!$C$16),1,0) -> 0 | AB17: =IF(AND(E17>Mark_database!$C$7,E17<Mark_database!$C$10),1,0) -> 0 | AC17: =IF(AND(E17>Mark_database!$C$9,E17<Mark_database!$C$12),1,0) -> 0 | AD17: =IF(E17=Mark_database!$C$16,1,0) -> 0 | AE17: =IF(Gødning_produktion!$D$30>0,M17/Gødning_produktion!$G$29,0) -> 0 | AF17: 0 | AG17: 0 | AK17: =Basis!AK17 -> 0 | AM17: =Basis!AM17 -> 0 | AN17: =IF(Basis!AN17>0,Basis!AN17,"") ->  | AP17: =Basis!R17 ->  | AQ17: =IF(E17=Basis!E17,0,Basis!R17) -> 0 | AS17: 0 | AT17: 0
C18: =Basis!C18 -> 1 | E18: =Basis!E18 -> 1 | F18: =IF(Basis!F18>0,Basis!F18,"") ->  | L18: 0 | M18: 0 | U18: 0 | V18: 0 | AA18: =IF(AND(C18>Mark_database!$C$13,'Alt1'!C18<Mark_database!$C$16),1,0) -> 0 | AB18: =IF(AND(E18>Mark_database!$C$7,E18<Mark_database!$C$10),1,0) -> 0 | AC18: =IF(AND(E18>Mark_database!$C$9,E18<Mark_database!$C$12),1,0) -> 0 | AD18: =IF(E18=Mark_database!$C$16,1,0) -> 0 | AE18: =IF(Gødning_produktion!$D$30>0,M18/Gødning_produktion!$G$29,0) -> 0 | AF18: 0 | AG18: 0 | AK18: =Basis!AK18 -> 0 | AM18: =Basis!AM18 -> 0 | AN18: =IF(Basis!AN18>0,Basis!AN18,"") ->  | AP18: =Basis!R18 ->  | AQ18: =IF(E18=Basis!E18,0,Basis!R18) -> 0 | AS18: 0 | AT18: 0
B19: I alt, hektar, kg NH4-N og kr. på bedriften | F19: =SUM(F8:F18)-F36-F37-SUMIF(E8:E18,1,F8:F18) -> 0 | M19: =S19 -> 0 | Q19: =SUM(R8:R18) -> 0 | S19: =SUM(S8:S18) -> 0 | T19: =SUM(T8:T18) -> 0 | V19: =SUM(V8:V18) -> 0 | AQ19: =SUM(AQ8:AQ18) -> 0
B20: Oplysninger om kvælstoftilførslen | N20: =IF(AND(AND(F19>0,M19<F28,F27>F23)),"OBS! Der er mere kvælstof til rådighed, end der kan udbringes. Der er udbragt "&ROUND(S20,0)&" kg NH4-N pr. ha.","") ->  | S20: =S19/F19 ->  | T20: =T19/F19 -> 
B21: Max. tilførsel af udnyttet N pr. ha | F21: 50 | K21: kg udnyttet N | N21: =IF(F21<65,"*) Incl. ekstra økologitilskud på 500 kr. pr. ha på grund af lav N-tilførsel.","") -> *) Incl. ekstra økologitilskud på 500 kr. pr. ha på grund af lav N-tilførsel.
B22: Max. tilførsel af ammonium N pr. ha | F22: =F21*Gødning_produktion!O30 ->  | K22: kg ammonium N
B23: Max. total tilførsel af total-N i alt | F23: =IF(F19=0,0,F22*F19/F30%) -> 0 | K23: kg total-N
B24: Max. total tilførsel af NH4-N i alt | F24: =IF(Gødning_produktion!D30>0,F19*F22,0) -> 0 | K24: kg NH4-N | N24: =IF(M19>F28+0.1,"OBS! Der planlægges at anvende mere gødning, end der er til rådighed! Gentag optimeringen.","") -> 
B25: -heraf tilført ved efterårsgødskning | F25: =IF(V19<Gødning_produktion!G30,V19,Gødning_produktion!G30) -> 0 | K25: kg NH4-N
B26: -heraf max. tilførsel ved forårsgødskningen | F26: =IF(AND(F30>0,(F24-F25)>0),F24-F25,0) -> 0 | K26: kg NH4-N
B27: Kg total-N i husdyrgødning til rådighed ved forårsgødskning | F27: =IF(F28>0.01,F28/(Gødning_produktion!G30/Gødning_produktion!F30),0) -> 0 | K27: kg total-N
B28: Kg NH4-N i husdyrgødning til rådighed ved forårsgødskning | F28: =IF(Gødning_produktion!G30-F25>0,Gødning_produktion!G30-F25,0.01) -> 0.01 | K28: kg NH4-N pr. ha | AB28: Sædskifte med frøgræs og kløverfrø:
B29: Kg NH4-N i husdyrgødning til rådighed ved forårsgødskning | F29: =IF(F19>0,F28/F19,0) -> 0 | K29: kg NH4-N pr. ha
B30: Gennemsnitlig ammoniumandel | F30: =IF(F27>0,F28/F27*100,0) -> 0 | K30: pct. | AB30: Areal med frøgræs | AG30: =SUMIF(AG8:AG18,1,F8:F18) -> 0 | AH30: hektar
B31: Udbragte næringsstofmængder: | AB31: Areal med andre afgrøder | AG31: =F19-AG30 -> 0 | AH31: hektar
B32: Totalkvælstof | F32: =IF(F19=0,0,T20) -> 0 | K32: kg total-N pr. ha | AB32: DB II i frøgræs | AG32: =SUMIF(AG8:AG18,1,R8:R18) -> 0 | AH32: kr.
B33: Ammoniumkvælstof | F33: =IF(F19=0,0,S20) -> 0 | K33: kg NH4-N pr. ha | AB33: DB II i andre afgrøder | AG33: =Q19-AG32 -> 0 | AH33: kr.
B34: Fosfor | F34: =IF(F19=0,0,F32*Gødning_produktion!H30/Gødning_produktion!F30) -> 0 | K34: kg fosfor pr. ha
B35: Kalium | F35: =IF(F19=0,0,F32*Gødning_produktion!I30/Gødning_produktion!F30) -> 0 | K35: kg kalium pr. ha
B36: Efterafgrøder, foder | F36: =SUMIF(AH8:AH18,1,F8:F18) -> 0 | K36: ha | AB36: Sædskifte uden frøgræs og kløverfrø:
B37: Efterafgrødeareal, grøngødning | F37: =SUMIF(E8:E18,19,F8:F18) -> 0 | K37: ha | AB37: DB II i alternativ til frøgræs | AG37: =AQ19 -> 0 | AH37: kr.
AB38: DB II i andre afgrøder | AG38: =Basis!Q19-'Alt1'!AG37 -> 0 | AH38: kr.
B39: Frøgræs + kløverfrø | F39: =SUMIF(AG8:AG18,1,F8:F18) -> 0 | K39: ha
AB40: Ændring af dækningsbidrag:
AB41: DB II i frø i forhold til alternative afgrøder | AG41: =AG32-AG37 -> 0 | AH41: kr.
AB42: Ændret DB II i andre afgrøder | AG42: =AG33-AG38 -> 0 | AH42: kr.
AB43: Samlet ændring i DB II | AG43: =AG41+AG42 -> 0 | AH43: kr.

Sheet Alt2
B2: =_xlfn.CONCAT("Indtast sædskifte for: ",Forside!F32) -> Indtast sædskifte for: Alternativ 2
B4: Forfrugt | D4: Afgrøde | F4: Areal, hektar | K4: Afgrøde- pris, kr. pr. hkg el. ae | M4: Optimeret N-tilførsel, kg NH4-N pr. ha | N4: Udbytte | P4: Omkost-ning, kr. pr. ha | Q4: =IF(F21>=65,"DB II, kr. pr. ha", "DB II, kr. pr. ha *)") -> DB II, kr. pr. ha *) | U4: Efterårs- | V4: Efterårs-
J5: Forfrugts- | N5: hkg el. ae pr. ha | O5: kr. pr. ha | U5: gødskning | V5: gødskning | AP5: DBII i | AQ5: DB i alt.
G6: Responsfunktion, 2. grad | J6: værdi | L6: Forfrugt+ | S6: Kg NH4-N | T6: Kg total-N | U6: kg NH4-N | V6: kg NH4-N | AA6: Forfrugt | AB6: Afgrøde | AC6: Afgrøde | AD6: Afgrøde | AE6: Ton gylle | AF6: Norm - | AG6: Afgrøde | AP6: Øko_nu | AQ6: til frøgræs
C7: Nr. | E7: Nr. | G7: X2 | H7: X | I7: k | J7: kg N/ha | L7: tilført N | R7: Kr. i alt | S7: i alt | T7: i alt | U7: pr. ha | V7: i alt | AA7: kløvergræs | AB7: vårbyg? | AC7: hvede? | AD7: majs? | AE7: pr. ha | AF7: forfrugt | AG7: frøgræs? | AQ7: Øko_nu
C8: =Basis!C8 -> 1 | E8: =Basis!E8 -> 1 | F8: =IF(Basis!F8>0,Basis!F8,"") ->  | G8: =IF(AND(AND(AA8=1,AB8=1,E8>1)),INDEX(Optimering_nu,$E8+21,3),IF(AND(AND(AA8=1,AC8=1,E8>1)),INDEX(Optimering_nu,$E8+17,3),IF($E8>1,INDEX(Optimering_nu,$E8,3),""))) ->  | H8: =IF(AND(AND(AA8=1,AB8=1,E8>1)),INDEX(Optimering_nu,$E8+21,4),IF(AND(AND(AA8=1,AC8=1,E8>1)),INDEX(Optimering_nu,$E8+17,4),IF($E8>1,INDEX(Optimering_nu,$E8,4),""))) ->  | I8: =IF(AND(AND(AA8=1,AB8=1,E8>1)),INDEX(Optimering_nu,$E8+21,5),IF(AND(AND(AA8=1,AC8=1,E8>1)),INDEX(Optimering_nu,$E8+17,5),IF($E8>1,INDEX(Optimering_nu,$E8,5),""))) ->  | J8: =IF($C8>1,INDEX(Optimering_nu,$C8,7),"") ->  | K8: =IF($E8>1,INDEX(Optimering_nu,$E8,8),"") ->  | L8: 39.24418605 | M8: =IF(AND(AD8<>1,AF8>=0),AF8,IF(AND(AD8=1,AF8<40),40,IF(AND(AD8=1,AF8>=40),AF8,0))) -> 0 | N8: =IF(AND(C8>1,E8>1),(IF(AND(AA8=1,AB8=1),INDEX(Optimering_nu,$E8,20),IF(AND(AA8=1,AC8=1),(L8^2*G8+L8*H8+I8)+INDEX(Optimering_nu,$E8,15),IF(,E8>=6,L8^2*G8+L8*H8+I8)))),"") ->  | O8: =IF(AND(C8>1,E8>1),N8*K8,"") ->  | P8: =IF($E8>1,INDEX(Optimering_nu,$E8,9)+INDEX(Optimering_nu,$E8,10)+(AE8*(GylleprisAlt2+PrisUdbringningAlt2)),"") ->  | Q8: =IF($F$22>=65,IF(AND(C8>1,E8>1),O8-P8,""), IF(AND(C8>1,E8>1),(O8-P8)+500,"")) ->  | R8: =IF(AND(C8>1,E8>1),Q8*F8,"") ->  | S8: =IF(AND(C8>1,E8>1),F8*M8,"") ->  | T8: =IF(AND(C8>1,E8>1),S8*$F$27/$F$28,"") ->  | U8: =IF($E8>1,INDEX(Optimering_nu,$E8,11),0) -> 0 | V8: =IF(F8<>"",U8*F8,0) -> 0 | AA8: =IF(AND(C8>Mark_database!$C$13,'Alt2'!C8<Mark_database!$C$16),1,0) -> 0 | AB8: =IF(AND(E8>Mark_database!$C$7,E8<Mark_database!$C$10),1,0) -> 0 | AC8: =IF(AND(E8>Mark_database!$C$9,E8<Mark_database!$C$12),1,0) -> 0 | AD8: =IF(E8=Mark_database!$C$16,1,0) -> 0 | AE8: =IF(Gødning_produktion!$D$30>0,M8/Gødning_produktion!$G$29,0) -> 0 | AF8: =IF(AND(AND(E8<21,C8>1,E8>1)),L8-J8,IF(AND(AND(E8>=21,C8>1,E8>1)),INDEX(Optimering,$E8,6)-J8,0)) -> 0 | AG8: =IF(AND(E8>10,E8<18),1,0) -> 0 | AI8: =IF($E8>1,INDEX(Optimering_nu,$E8,8),"") ->  | AK8: =Basis!AK8 -> 0 | AM8: =Basis!AM8 -> 0 | AN8: =IF(Basis!AN8>0,Basis!AN8,"") ->  | AP8: =Basis!R8 ->  | AQ8: =IF(E8=Basis!E8,0,Basis!R8) -> 0 | AS8: 0 | AT8: =IF(AND(BK8<>1,BM8>=0),BM8,IF(AND(BK8=1,BM8<40),40,IF(AND(BK8=1,BM8>=40),BM8,0))) -> 0 | AU8: =IF(AND(AJ8>1,AL8>1),(IF(AND(BH8=1,BI8=1),INDEX(Optimering_nu,$E8,20),IF(AND(BH8=1,BJ8=1),(AS8^2*AN8+AS8*AO8+AP8)+INDEX(Optimering_nu,$E8,15),IF(,AL8>=6,AS8^2*AN8+AS8*AO8+AP8)))),"") ->  | AV8: =IF(AND(AJ8>1,AL8>1),AU8*AR8,"") ->  | AW8: =IF($E8>1,INDEX(Optimering_nu,$E8,9)+INDEX(Optimering_nu,$E8,10)+(BL8*(GylleprisAlt2+PrisUdbringningAlt2)),"") ->  | AX8: =IF($F$22>=65,IF(AND(AJ8>1,AL8>1),AV8-AW8,""), IF(AND(AJ8>1,AL8>1),(AV8-AW8)+500,"")) -> 
C9: =Basis!C9 -> 1 | E9: =Basis!E9 -> 1 | F9: =IF(Basis!F9>0,Basis!F9,"") ->  | G9: =IF(AND(AND(AA9=1,AC9=1,E9>1)),INDEX(Optimering_nu,$E9+17,3),IF($E9>1,INDEX(Optimering_nu,$E9,3),"")) ->  | H9: =IF(AND(AND(AA9=1,AC9=1,E9>1)),INDEX(Optimering_nu,$E9+17,4),IF($E9>1,INDEX(Optimering_nu,$E9,4),"")) ->  | I9: =IF(AND(AND(AA9=1,AC9=1,E9>1)),INDEX(Optimering_nu,$E9+17,5),IF($E9>1,INDEX(Optimering_nu,$E9,5),"")) ->  | L9: 0 | M9: =IF(AND(AD9<>1,AF9>=0),AF9,IF(AND(AD9=1,AF9<40),40,IF(AND(AD9=1,AF9>=40),AF9,0))) -> 0 | Q9: =IF($F$22>=65,IF(AND(C9>1,E9>1),O9-P9,""), IF(AND(C9>1,E9>1),(O9-P9)+500,"")) ->  | U9: 0 | V9: =IF(F9<>"",U9*F9,0) -> 0 | AA9: =IF(AND(C9>Mark_database!$C$13,'Alt2'!C9<Mark_database!$C$16),1,0) -> 0 | AB9: =IF(AND(E9>Mark_database!$C$7,E9<Mark_database!$C$10),1,0) -> 0 | AC9: =IF(AND(E9>Mark_database!$C$9,E9<Mark_database!$C$12),1,0) -> 0 | AD9: =IF(E9=Mark_database!$C$16,1,0) -> 0 | AE9: =IF(Gødning_produktion!$D$30>0,M9/Gødning_produktion!$G$29,0) -> 0 | AF9: 0 | AG9: =IF(AND(E9>10,E9<18),1,0) -> 0 | AK9: =Basis!AK9 -> 0 | AM9: =Basis!AM9 -> 0 | AN9: =IF(Basis!AN9>0,Basis!AN9,"") ->  | AP9: =Basis!R9 ->  | AQ9: =IF(E9=Basis!E9,0,Basis!R9) -> 0 | AS9: 0 | AT9: =IF(AND(BK9<>1,BM9>=0),BM9,IF(AND(BK9=1,BM9<40),40,IF(AND(BK9=1,BM9>=40),BM9,0))) -> 0 | AX9: =IF($F$22>=65,IF(AND(AJ9>1,AL9>1),AV9-AW9,""), IF(AND(AJ9>1,AL9>1),(AV9-AW9)+500,"")) -> 
C10: =Basis!C10 -> 1 | E10: =Basis!E10 -> 1 | F10: =IF(Basis!F10>0,Basis!F10,"") ->  | L10: 0 | M10: 0 | U10: 0 | V10: 0 | AA10: =IF(AND(C10>Mark_database!$C$13,'Alt2'!C10<Mark_database!$C$16),1,0) -> 0 | AB10: =IF(AND(E10>Mark_database!$C$7,E10<Mark_database!$C$10),1,0) -> 0 | AC10: =IF(AND(E10>Mark_database!$C$9,E10<Mark_database!$C$12),1,0) -> 0 | AD10: =IF(E10=Mark_database!$C$16,1,0) -> 0 | AE10: =IF(Gødning_produktion!$D$30>0,M10/Gødning_produktion!$G$29,0) -> 0 | AF10: 0 | AG10: 0 | AK10: =Basis!AK10 -> 0 | AM10: =Basis!AM10 -> 0 | AN10: =IF(Basis!AN10>0,Basis!AN10,"") ->  | AP10: =Basis!R10 ->  | AQ10: =IF(E10=Basis!E10,0,Basis!R10) -> 0 | AS10: 0 | AT10: 0
C11: =Basis!C11 -> 1 | E11: =Basis!E11 -> 1 | F11: =IF(Basis!F11>0,Basis!F11,"") ->  | L11: 0 | M11: 0 | U11: 0 | V11: 0 | AA11: =IF(AND(C11>Mark_database!$C$13,'Alt2'!C11<Mark_database!$C$16),1,0) -> 0 | AB11: =IF(AND(E11>Mark_database!$C$7,E11<Mark_database!$C$10),1,0) -> 0 | AC11: =IF(AND(E11>Mark_database!$C$9,E11<Mark_database!$C$12),1,0) -> 0 | AD11: =IF(E11=Mark_database!$C$16,1,0) -> 0 | AE11: =IF(Gødning_produktion!$D$30>0,M11/Gødning_produktion!$G$29,0) -> 0 | AF11: 0 | AG11: 0 | AK11: =Basis!AK11 -> 0 | AM11: =Basis!AM11 -> 0 | AN11: =IF(Basis!AN11>0,Basis!AN11,"") ->  | AP11: =Basis!R11 ->  | AQ11: =IF(E11=Basis!E11,0,Basis!R11) -> 0 | AS11: 0 | AT11: 0
C12: =Basis!C12 -> 1 | E12: =Basis!E12 -> 1 | F12: =IF(Basis!F12>0,Basis!F12,"") ->  | L12: 0 | M12: 0 | U12: 0 | V12: 0 | AA12: =IF(AND(C12>Mark_database!$C$13,'Alt2'!C12<Mark_database!$C$16),1,0) -> 0 | AB12: =IF(AND(E12>Mark_database!$C$7,E12<Mark_database!$C$10),1,0) -> 0 | AC12: =IF(AND(E12>Mark_database!$C$9,E12<Mark_database!$C$12),1,0) -> 0 | AD12: =IF(E12=Mark_database!$C$16,1,0) -> 0 | AE12: =IF(Gødning_produktion!$D$30>0,M12/Gødning_produktion!$G$29,0) -> 0 | AF12: 0 | AG12: 0 | AK12: =Basis!AK12 -> 0 | AM12: =Basis!AM12 -> 0 | AN12: =IF(Basis!AN12>0,Basis!AN12,"") ->  | AP12: =Basis!R12 ->  | AQ12: =IF(E12=Basis!E12,0,Basis!R12) -> 0 | AS12: 0 | AT12: 0
C13: =Basis!C13 -> 1 | E13: =Basis!E13 -> 1 | F13: =IF(Basis!F13>0,Basis!F13,"") ->  | L13: 0 | M13: 0 | U13: 0 | V13: 0 | AA13: =IF(AND(C13>Mark_database!$C$13,'Alt2'!C13<Mark_database!$C$16),1,0) -> 0 | AB13: =IF(AND(E13>Mark_database!$C$7,E13<Mark_database!$C$10),1,0) -> 0 | AC13: =IF(AND(E13>Mark_database!$C$9,E13<Mark_database!$C$12),1,0) -> 0 | AD13: =IF(E13=Mark_database!$C$16,1,0) -> 0 | AE13: =IF(Gødning_produktion!$D$30>0,M13/Gødning_produktion!$G$29,0) -> 0 | AF13: 0 | AG13: 0 | AK13: =Basis!AK13 -> 0 | AM13: =Basis!AM13 -> 0 | AN13: =IF(Basis!AN13>0,Basis!AN13,"") ->  | AP13: =Basis!R13 ->  | AQ13: =IF(E13=Basis!E13,0,Basis!R13) -> 0 | AS13: 0 | AT13: 0
C14: =Basis!C14 -> 1 | E14: =Basis!E14 -> 1 | F14: =IF(Basis!F14>0,Basis!F14,"") ->  | L14: 0 | M14: 0 | U14: 0 | V14: 0 | AA14: =IF(AND(C14>Mark_database!$C$13,'Alt2'!C14<Mark_database!$C$16),1,0) -> 0 | AB14: =IF(AND(E14>Mark_database!$C$7,E14<Mark_database!$C$10),1,0) -> 0 | AC14: =IF(AND(E14>Mark_database!$C$9,E14<Mark_database!$C$12),1,0) -> 0 | AD14: =IF(E14=Mark_database!$C$16,1,0) -> 0 | AE14: =IF(Gødning_produktion!$D$30>0,M14/Gødning_produktion!$G$29,0) -> 0 | AF14: 0 | AG14: 0 | AK14: =Basis!AK14 -> 0 | AM14: =Basis!AM14 -> 0 | AN14: =IF(Basis!AN14>0,Basis!AN14,"") ->  | AP14: =Basis!R14 ->  | AQ14: =IF(E14=Basis!E14,0,Basis!R14) -> 0 | AS14: 0 | AT14: 0
C15: =Basis!C15 -> 1 | E15: =Basis!E15 -> 1 | F15: =IF(Basis!F15>0,Basis!F15,"") ->  | L15: 0 | M15: 0 | U15: 0 | V15: 0 | AA15: =IF(AND(C15>Mark_database!$C$13,'Alt2'!C15<Mark_database!$C$16),1,0) -> 0 | AB15: =IF(AND(E15>Mark_database!$C$7,E15<Mark_database!$C$10),1,0) -> 0 | AC15: =IF(AND(E15>Mark_database!$C$9,E15<Mark_database!$C$12),1,0) -> 0 | AD15: =IF(E15=Mark_database!$C$16,1,0) -> 0 | AE15: =IF(Gødning_produktion!$D$30>0,M15/Gødning_produktion!$G$29,0) -> 0 | AF15: 0 | AG15: 0 | AK15: =Basis!AK15 -> 0 | AM15: =Basis!AM15 -> 0 | AN15: =IF(Basis!AN15>0,Basis!AN15,"") ->  | AP15: =Basis!R15 ->  | AQ15: =IF(E15=Basis!E15,0,Basis!R15) -> 0 | AS15: 0 | AT15: 0
C16: =Basis!C16 -> 1 | E16: =Basis!E16 -> 1 | F16: =IF(Basis!F16>0,Basis!F16,"") ->  | L16: 0 | M16: 0 | U16: 0 | V16: 0 | AA16: =IF(AND(C16>Mark_database!$C$13,'Alt2'!C16<Mark_database!$C$16),1,0) -> 0 | AB16: =IF(AND(E16>Mark_database!$C$7,E16<Mark_database!$C$10),1,0) -> 0 | AC16: =IF(AND(E16>Mark_database!$C$9,E16<Mark_database!$C$12),1,0) -> 0 | AD16: =IF(E16=Mark_database!$C$16,1,0) -> 0 | AE16: =IF(Gødning_produktion!$D$30>0,M16/Gødning_produktion!$G$29,0) -> 0 | AF16: 0 | AG16: 0 | AK16: =Basis!AK16 -> 0 | AM16: =Basis!AM16 -> 0 | AN16: =IF(Basis!AN16>0,Basis!AN16,"") ->  | AP16: =Basis!R16 ->  | AQ16: =IF(E16=Basis!E16,0,Basis!R16) -> 0 | AS16: 0 | AT16: 0
C17: =Basis!C17 -> 1 | E17: =Basis!E17 -> 1 | F17: =IF(Basis!F17>0,Basis!F17,"") ->  | L17: 0 | M17: 0 | U17: 0 | V17: 0 | AA17: =IF(AND(C17>Mark_database!$C$13,'Alt2'!C17<Mark_database!$C$16),1,0) -> 0 | AB17: =IF(AND(E17>Mark_database!$C$7,E17<Mark_database!$C$10),1,0) -> 0 | AC17: =IF(AND(E17>Mark_database!$C$9,E17<Mark_database!$C$12),1,0) -> 0 | AD17: =IF(E17=Mark_database!$C$16,1,0) -> 0 | AE17: =IF(Gødning_produktion!$D$30>0,M17/Gødning_produktion!$G$29,0) -> 0 | AF17: 0 | AG17: 0 | AK17: =Basis!AK17 -> 0 | AM17: =Basis!AM17 -> 0 | AN17: =IF(Basis!AN17>0,Basis!AN17,"") ->  | AP17: =Basis!R17 ->  | AQ17: =IF(E17=Basis!E17,0,Basis!R17) -> 0 | AS17: 0 | AT17: 0
C18: =Basis!C18 -> 1 | E18: =Basis!E18 -> 1 | F18: =IF(Basis!F18>0,Basis!F18,"") ->  | L18: 0 | M18: 0 | U18: 0 | V18: 0 | AA18: =IF(AND(C18>Mark_database!$C$13,'Alt2'!C18<Mark_database!$C$16),1,0) -> 0 | AB18: =IF(AND(E18>Mark_database!$C$7,E18<Mark_database!$C$10),1,0) -> 0 | AC18: =IF(AND(E18>Mark_database!$C$9,E18<Mark_database!$C$12),1,0) -> 0 | AD18: =IF(E18=Mark_database!$C$16,1,0) -> 0 | AE18: =IF(Gødning_produktion!$D$30>0,M18/Gødning_produktion!$G$29,0) -> 0 | AF18: 0 | AG18: 0 | AK18: =Basis!AK18 -> 0 | AM18: =Basis!AM18 -> 0 | AN18: =IF(Basis!AN18>0,Basis!AN18,"") ->  | AP18: =Basis!R18 ->  | AQ18: =IF(E18=Basis!E18,0,Basis!R18) -> 0 | AS18: 0 | AT18: 0
B19: I alt, hektar, kg NH4-N og kr. på bedriften | F19: =SUM(F8:F18)-F36-F37-SUMIF(E8:E18,1,F8:F18) -> 0 | M19: =S19 -> 0 | Q19: =SUM(R8:R18) -> 0 | S19: =SUM(S8:S18) -> 0 | T19: =SUM(T8:T18) -> 0 | V19: =SUM(V8:V18) -> 0 | AQ19: =SUM(AQ8:AQ18) -> 0
B20: Oplysninger om kvælstoftilførslen | N20: =IF(AND(AND(F19>0,M19<F28,F27>F23)),"OBS! Der er mere kvælstof til rådighed, end der kan udbringes. Der er udbragt "&ROUND(S20,0)&" kg NH4-N pr. ha.","") ->  | S20: =S19/F19 ->  | T20: =T19/F19 -> 
B21: Max. tilførsel af udnyttet N pr. ha | F21: 50 | K21: kg udnyttet N | N21: =IF(F21<65,"*) Incl. ekstra økologitilskud på 500 kr. pr. ha på grund af lav N-tilførsel.","") -> *) Incl. ekstra økologitilskud på 500 kr. pr. ha på grund af lav N-tilførsel.
B22: Max. tilførsel af ammonium N pr. ha | F22: =F21*Gødning_produktion!O47 ->  | K22: kg ammonium N
B23: Max. total tilførsel af total-N i alt | F23: =IF(F19=0,0,F22*F19/F30%) -> 0 | K23: kg total-N
B24: Max. total tilførsel af NH4-N i alt | F24: =IF(Gødning_produktion!D47>0,F19*F22,0) -> 0 | K24: kg NH4-N | N24: =IF(M19>F28+0.1,"OBS! Der planlægges at anvende mere gødning, end der er til rådighed! Gentag optimeringen.","") -> 
B25: -heraf tilført ved efterårsgødskning | F25: =IF(V19<Gødning_produktion!G47,V19,Gødning_produktion!G47) -> 0 | K25: kg NH4-N
B26: -heraf max. tilførsel ved forårsgødskningen | F26: =IF(AND(F30>0,(F24-F25)>0),F24-F25,0) -> 0 | K26: kg NH4-N
B27: Kg total-N i husdyrgødning til rådighed ved forårsgødskning | F27: =IF(F28>0.01,F28/(Gødning_produktion!G47/Gødning_produktion!F47),0) -> 0 | K27: kg total-N
B28: Kg NH4-N i husdyrgødning til rådighed ved forårsgødskning | F28: =IF(Gødning_produktion!G47-F25>0,Gødning_produktion!G47-F25,0.01) -> 0.01 | K28: kg NH4-N | AB28: Sædskifte med frøgræs og kløverfrø:
B29: Kg NH4-N i husdyrgødning til rådighed ved forårsgødskning | F29: =IF(F19>0,F28/F19,0) -> 0 | K29: kg NH4-N pr. ha
B30: Gennemsnitlig ammoniumandel | F30: =IF(F27>0,F28/F27*100,0) -> 0 | K30: pct. | AB30: Areal med frøgræs | AG30: =SUMIF(AG8:AG18,1,F8:F18) -> 0 | AH30: hektar
B31: Udbragte næringsstofmængder: | AB31: Areal med andre afgrøder | AG31: =F19-AG30 -> 0 | AH31: hektar
B32: Totalkvælstof | F32: =IF(F19=0,0,T20) -> 0 | K32: kg total-N pr. ha | AB32: DB II i frøgræs | AG32: =SUMIF(AG8:AG18,1,R8:R18) -> 0 | AH32: kr.
B33: Ammoniumkvælstof | F33: =IF(F19=0,0,S20) -> 0 | K33: kg NH4-N pr. ha | AB33: DB II i andre afgrøder | AG33: =Q19-AG32 -> 0 | AH33: kr.
B34: Fosfor | F34: =IF(F19=0,0,F32*Gødning_produktion!H47/Gødning_produktion!F47) -> 0 | K34: kg fosfor pr. ha
B35: Kalium | F35: =IF(F19=0,0,F32*Gødning_produktion!I47/Gødning_produktion!F47) -> 0 | K35: kg kalium pr. ha
B36: Efterafgrøder, foder | F36: =SUMIF(AH8:AH18,1,F8:F18) -> 0 | K36: ha | AB36: Sædskifte uden frøgræs og kløverfrø:
B37: Efterafgrødeareal, grøngødning | F37: =SUMIF(E8:E18,19,F8:F18) -> 0 | K37: ha | AB37: DB II i alternativ til frøgræs | AG37: =AQ19 -> 0 | AH37: kr.
AB38: DB II i andre afgrøder | AG38: =Basis!Q19-'Alt2'!AG37 -> 0 | AH38: kr.
B39: Frøgræs + kløverfrø | F39: =SUMIF(AG8:AG18,1,F8:F18) -> 0 | K39: ha
AB40: Ændring af dækningsbidrag:
AB41: DB II i frø i forhold til alternative afgrøder | AG41: =AG32-AG37 -> 0 | AH41: kr.
AB42: Ændret DB II i andre afgrøder | AG42: =AG33-AG38 -> 0 | AH42: kr.
AB43: Samlet ændring i DB II | AG43: =AG41+AG42 -> 0 | AH43: kr.

Sheet Mark_database
B1: Rediger afgrøder, kvælstofnormer, afgrødepris og dyrkningsomkostninger
B4: 1 | C4: 2 | D4: 3 | E4: 4 | F4: 5 | G4: 6 | H4: 7 | I4: 8 | J4: 9 | K4: 10 | L4: 11 | M4: 12 | N4: 13 | O4: 14 | P4: 15 | Q4: 16 | R4: 17 | S4: 18 | T4: 19 | U4: 20 | V4: 21 | W4: 22 | X4: 23 | Y4: 24 | Z4: 25 | AA4: 26
D5: Responsfunktion, 2. grad | H5: Forfrugts- | I5: Afgrødepris, | J5: Omkostninger, kr. pr. ha | L5: Efterårs- | M5: Antal | N5: Antal | R5: Vand- | U5: Stigning | AF5: Responsfunktion, 2. grad | AJ5: Forfrugts- | AK5: Afgrødepris, | AL5: Omkostninger, kr. pr. ha | AN5: Efterårs- | AO5: Antal | AP5: Antal | AT5: Vand-
C6: Nr. | D6: X2 | E6: X | F6: k | G6: N-norm, | H6: værdi, | I6: kr. pr. a.e. | J6: stykomk. | K6: maskiner | L6: gødskning | M6: stub- | N6: rad- | O6: Lugning | P6: Rense- | Q6: Skår- | R6: procent | U6: ff. kløvergr | AE6: Nr. | AF6: X2 | AG6: X | AH6: k | AI6: N-norm, | AJ6: værdi, | AK6: kr. pr. a.e. | AL6: stykomk. | AM6: maskiner | AN6: gødskning | AO6: stub- | AP6: rad- | AQ6: Lugning | AR6: Rense- | AS6: Skår- | AT6: procent
B7: - | C7: 1 | G7: kg N/ha | H7: kg N/ha | I7: el. hkg | K7: excl. udbr. | L7: kg NH4-N | M7: harvninger | N7: rensninger | O7: timer/ha | P7: procent | Q7: lægning | R7: v. høst | AD7: - | AE7: 1 | AI7: kg N/ha | AJ7: kg N/ha | AK7: el. hkg | AM7: excl. udbr. | AN7: kg NH4-N | AO7: harvninger | AP7: rensninger | AQ7: timer/ha | AR7: procent | AS7: lægning | AT7: v. høst
B8: Vårsæd, sandjord | C8: 2 | D8: ='N-responser'!H48 -> -0.0006714285714 | E8: ='N-responser'!I48 -> 0.2132857143 | F8: ='N-responser'!J48 -> 28.34285714 | G8: 159 | H8: 0 | I8: 150 | J8: ='Omkostninger salgsafgrøder'!I206 -> 731 | K8: ='Omkostninger salgsafgrøder'!I240 -> 3064.215625 | U8: 45 | AD8: Vårsæd, sandjord | AE8: 2 | AF8: ='N-responser'!AJ48 -> 0 | AG8: ='N-responser'!AK48 -> 0 | AH8: ='N-responser'!AL48 -> 0 | AI8: 159 | AJ8: 0 | AK8: 150 | AL8: ='Omkostninger salgsafgrøder'!AK206 -> 0 | AM8: ='Omkostninger salgsafgrøder'!AK240 -> 0
B9: Vårsæd, lerjord | C9: 3 | D9: ='N-responser'!H51 -> -0.0006714285714 | E9: ='N-responser'!I51 -> 0.2132857143 | F9: ='N-responser'!J51 -> 32.34285714 | G9: 150 | H9: 0 | I9: 150 | J9: ='Omkostninger salgsafgrøder'!I223 -> 731 | K9: ='Omkostninger salgsafgrøder'!I238 -> 3545.75 | U9: 45 | AD9: Vårsæd, lerjord | AE9: 3 | AF9: ='N-responser'!AJ51 -> 0 | AG9: ='N-responser'!AK51 -> 0 | AH9: ='N-responser'!AL51 -> 0 | AI9: 150 | AJ9: 0 | AK9: 150 | AL9: ='Omkostninger salgsafgrøder'!AK223 -> 0 | AM9: ='Omkostninger salgsafgrøder'!AK238 -> 0
B10: Vintersæd, sandjord | C10: 4 | D10: ='N-responser'!H49 -> -0.0006142857143 | E10: ='N-responser'!I49 -> 0.2398571429 | F10: ='N-responser'!J49 -> 27.82857143 | G10: 202 | H10: 0 | I10: 170 | J10: ='Omkostninger salgsafgrøder'!I654 -> 980 | K10: ='Omkostninger salgsafgrøder'!I688 -> 2895.893125 | U10: 0 | AD10: Vintersæd, sandjord | AE10: 4 | AF10: ='N-responser'!AJ49 -> 0 | AG10: ='N-responser'!AK49 -> 0 | AH10: ='N-responser'!AL49 -> 0 | AI10: 202 | AJ10: 0 | AK10: 170 | AL10: ='Omkostninger salgsafgrøder'!AK654 -> 0 | AM10: ='Omkostninger salgsafgrøder'!AK688 -> 0
B11: Vintersæd, lerjord | C11: 5 | D11: ='N-responser'!H52 -> -0.0006142857143 | E11: ='N-responser'!I52 -> 0.2398571429 | F11: ='N-responser'!J52 -> 31.82857143 | G11: 221 | H11: 0 | I11: 170 | J11: ='Omkostninger salgsafgrøder'!I670 -> 980 | K11: ='Omkostninger salgsafgrøder'!I686 -> 3578.5625 | U11: 0 | AD11: Vintersæd, lerjord | AE11: 5 | AF11: ='N-responser'!AJ52 -> 0 | AG11: ='N-responser'!AK52 -> 0 | AH11: ='N-responser'!AL52 -> 0 | AI11: 221 | AJ11: 0 | AK11: 170 | AL11: ='Omkostninger salgsafgrøder'!AK670 -> 0 | AM11: ='Omkostninger salgsafgrøder'!AK686 -> 0
B12: Vinterraps | C12: 6 | D12: ='N-responser'!H54 -> -0.000262 | E12: ='N-responser'!I54 -> 0.1179 | F12: ='N-responser'!J54 -> 18.24 | G12: 213 | H12: 18 | I12: 650 | J12: ='Omkostninger salgsafgrøder'!I1057 -> 785 | K12: ='Omkostninger salgsafgrøder'!I1072 -> 3683.592593 | L12: 0 | AD12: Vinterraps | AE12: 6 | AF12: ='N-responser'!AJ54 -> 0 | AG12: ='N-responser'!AK54 -> 0 | AH12: ='N-responser'!AL54 -> 0 | AI12: 213 | AJ12: 18 | AK12: 650 | AL12: ='Omkostninger salgsafgrøder'!AK1057 -> 0 | AM12: ='Omkostninger salgsafgrøder'!AK1072 -> 0 | AN12: 0
B13: Bælgsæd | C13: 7 | D13: 0 | E13: 0 | F13: 30 | G13: 0 | H13: 18 | I13: 300 | J13: ='Omkostninger salgsafgrøder'!I860 -> 1238 | K13: ='Omkostninger salgsafgrøder'!I877 -> 4715.795635 | AD13: Bælgsæd | AE13: 7 | AF13: 0 | AG13: 0 | AH13: 30 | AI13: 0 | AJ13: 18 | AK13: 300 | AL13: ='Omkostninger salgsafgrøder'!AK860 -> 0 | AM13: ='Omkostninger salgsafgrøder'!AK877 -> 0
B14: Kløvergræs, foder eller biogas | C14: 8 | D14: -0.0002057777778 | E14: 0.1538066667 | F14: 58.375 | G14: 75 | H14: 115 | I14: 140 | J14: ='Omkostninger grovfoder'!F160 -> 2590 | K14: ='Omkostninger grovfoder'!F192 -> 4392.45 | AD14: Kløvergræs, foder eller biogas | AE14: 8 | AF14: -0.0002057777778 | AG14: 0.1538066667 | AH14: 58.375 | AI14: 75 | AJ14: 115 | AK14: 140 | AL14: ='Omkostninger grovfoder'!AH160 -> 0 | AM14: ='Omkostninger grovfoder'!AH192 -> 0
B15: Kløvergræs, grøngødning | C15: 9 | D15: 0 | E15: 0 | F15: 0 | G15: 0 | H15: 150 | I15: 0 | J15: ='Omkostninger grovfoder'!F376 -> 2080 | K15: ='Omkostninger grovfoder'!F408 -> 730 | AD15: Kløvergræs, grøngødning | AE15: 9 | AF15: 0 | AG15: 0 | AH15: 0 | AI15: 0 | AJ15: 150 | AK15: 0 | AL15: ='Omkostninger grovfoder'!AH376 -> 0 | AM15: ='Omkostninger grovfoder'!AH408 -> 0
B16: Silomajs, foder | C16: 10 | D16: -0.0003045 | E16: 0.110565 | F16: 84.2625 | G16: 184 | H16: 0 | I16: 140 | J16: ='Omkostninger grovfoder'!F709 -> 2138 | K16: ='Omkostninger grovfoder'!F748 -> 3933.815789 | U16: 15 | AD16: Silomajs, foder | AE16: 10 | AF16: -0.0003045 | AG16: 0.110565 | AH16: 84.2625 | AI16: 184 | AJ16: 0 | AK16: 140 | AL16: ='Omkostninger grovfoder'!AH709 -> 0 | AM16: ='Omkostninger grovfoder'!AH748 -> 0
B17: Alm. rajgræs | C17: 11 | D17: -0.0002415178571 | E17: 0.08973214286 | F17: 4.555714286 | G17: 170 | H17: =12/0.85 -> 14.11764706 | I17: 1250 | J17: ='Omkostninger salgsafgrøder'!I1108 -> 1362 | K17: ='Omkostninger salgsafgrøder'!I1124 -> 3164.618333 | L17: 0 | M17: 4 | N17: 0 | O17: 2 | P17: 35 | Q17: 0 | R17: 25 | AD17: Alm. rajgræs | AE17: 11 | AF17: -0.0002415178571 | AG17: 0.08973214286 | AH17: 4.555714286 | AI17: 170 | AJ17: =12/0.85 -> 14.11764706 | AK17: 1250 | AL17: ='Omkostninger salgsafgrøder'!AK1108 -> 0 | AM17: ='Omkostninger salgsafgrøder'!AK1124 -> 0 | AN17: 0 | AO17: 4 | AP17: 0 | AQ17: 2 | AR17: 35 | AS17: 0 | AT17: 25
B18: Thimothe | C18: 12 | D18: -0.0005758928571 | E18: 0.100875 | F18: 3.017857143 | G18: 110 | H18: 18 | I18: 2200 | J18: ='Omkostninger salgsafgrøder'!P1108 -> 665.5 | K18: ='Omkostninger salgsafgrøder'!P1124 -> 3637.588235 | L18: 40 | M18: 2 | N18: 0 | O18: 4 | P18: 15 | Q18: 1 | R18: 15 | AD18: Thimothe | AE18: 12 | AF18: -0.0005758928571 | AG18: 0.100875 | AH18: 3.017857143 | AI18: 110 | AJ18: 18 | AK18: 2200 | AL18: ='Omkostninger salgsafgrøder'!AR1108 -> 0 | AM18: ='Omkostninger salgsafgrøder'!AR1124 -> 0 | AN18: 40 | AO18: 2 | AP18: 0 | AQ18: 4 | AR18: 15 | AS18: 1 | AT18: 15
B19: Rajsvingel | C19: 13 | D19: -0.0003236245955 | E19: 0.08292186778 | F19: 4.530235784 | G19: 160 | H19: 18 | I19: 1200 | J19: ='Omkostninger salgsafgrøder'!S1108 -> 1238.2 | K19: ='Omkostninger salgsafgrøder'!S1124 -> 3098.08 | L19: 0 | M19: 2 | N19: 0 | O19: 4 | P19: 35 | Q19: 0 | R19: 25 | AD19: Rajsvingel | AE19: 13 | AF19: -0.0003236245955 | AG19: 0.08292186778 | AH19: 4.530235784 | AI19: 160 | AJ19: 18 | AK19: 1200 | AL19: ='Omkostninger salgsafgrøder'!AU1108 -> 0 | AM19: ='Omkostninger salgsafgrøder'!AU1124 -> 0 | AN19: 0 | AO19: 2 | AP19: 0 | AQ19: 4 | AR19: 35 | AS19: 0 | AT19: 25
B20: Hundegræs | C20: 14 | D20: -0.0004616042012 | E20: 0.1369830843 | F20: 2.017361084 | G20: 200 | H20: 18 | I20: 1800 | J20: ='Omkostninger salgsafgrøder'!V1108 -> 967.6 | K20: ='Omkostninger salgsafgrøder'!V1124 -> 3670.905882 | L20: 50 | M20: 2 | N20: 0 | O20: 4 | P20: 15 | Q20: 1 | R20: 15 | AD20: Hundegræs | AE20: 14 | AF20: -0.0004616042012 | AG20: 0.1369830843 | AH20: 2.017361084 | AI20: 200 | AJ20: 18 | AK20: 1800 | AL20: ='Omkostninger salgsafgrøder'!AX1108 -> 0 | AM20: ='Omkostninger salgsafgrøder'!AX1124 -> 0 | AN20: 50 | AO20: 2 | AP20: 0 | AQ20: 4 | AR20: 15 | AS20: 1 | AT20: 15
B21: Rødsvingel | C21: 15 | D21: -0.0009125 | E21: 0.09305 | F21: 9.971 | G21: 150 | H21: 18 | I21: 1700 | J21: ='Omkostninger salgsafgrøder'!Y1108 -> 1270 | K21: ='Omkostninger salgsafgrøder'!Y1124 -> 3048.6 | L21: 60 | M21: 2 | N21: 0 | O21: 2 | P21: 25 | Q21: 0 | R21: 25 | AD21: Rødsvingel | AE21: 15 | AF21: -0.0009125 | AG21: 0.09305 | AH21: 9.971 | AI21: 150 | AJ21: 18 | AK21: 1700 | AL21: ='Omkostninger salgsafgrøder'!BA1108 -> 0 | AM21: ='Omkostninger salgsafgrøder'!BA1124 -> 0 | AN21: 60 | AO21: 2 | AP21: 0 | AQ21: 2 | AR21: 25 | AS21: 0 | AT21: 25
B22: Hvidkløver til frø | C22: 16 | D22: 0 | E22: 0 | F22: 1.5 | G22: 0 | H22: 115 | I22: 4200 | J22: ='Omkostninger salgsafgrøder'!I1153 -> 2188 | K22: ='Omkostninger salgsafgrøder'!I1170 -> 3213.777778 | M22: 2 | N22: 0 | O22: 2 | P22: 45 | Q22: 1 | R22: 15 | AD22: Hvidkløver til frø | AE22: 16 | AF22: 0 | AG22: 0 | AH22: 1.5 | AI22: 0 | AJ22: 115 | AK22: 4200 | AL22: ='Omkostninger salgsafgrøder'!AK1153 -> 0 | AM22: ='Omkostninger salgsafgrøder'!AK1170 -> 0 | AO22: 2 | AP22: 0 | AQ22: 2 | AR22: 45 | AS22: 1 | AT22: 15
B23: Rødkløver til frø | C23: 17 | D23: 0 | E23: 0 | F23: 2.5 | G23: 0 | H23: 115 | I23: 3500 | J23: ='Omkostninger salgsafgrøder'!I1200 -> 2189 | K23: ='Omkostninger salgsafgrøder'!I1217 -> 2994.777778 | M23: 2 | N23: 0 | O23: 2 | P23: 45 | Q23: 1 | R23: 15 | AD23: Rødkløver til frø | AE23: 17 | AF23: 0 | AG23: 0 | AH23: 2.5 | AI23: 0 | AJ23: 115 | AK23: 3500 | AL23: ='Omkostninger salgsafgrøder'!AK1200 -> 0 | AM23: ='Omkostninger salgsafgrøder'!AK1217 -> 0 | AO23: 2 | AP23: 0 | AQ23: 2 | AR23: 45 | AS23: 1 | AT23: 15
B24: Efterafgr., foder, eftervirk. 50 N | C24: 18 | D24: 0 | E24: 0 | F24: 23 | G24: 0 | H24: 50 | I24: 140 | J24: =J15 -> 2080 | K24: =K15+1000 -> 1730 | AD24: Efterafgr., foder, eftervirk. 50 N | AE24: 18 | AF24: 0 | AG24: 0 | AH24: 23 | AI24: 0 | AJ24: 50 | AK24: 140 | AL24: =AL15 -> 0 | AM24: =AM15+1000 -> 1000
B25: Efterafgr., pligtige, eftervirk. 20 N | C25: 19 | D25: 0 | E25: 0 | F25: 0 | G25: 0 | H25: =17/0.85 -> 20 | I25: 0 | J25: =J15 -> 2080 | K25: =K15 -> 730 | AD25: Efterafgr., pligtige, eftervirk. 20 N | AE25: 19 | AF25: 0 | AG25: 0 | AH25: 0 | AI25: 0 | AJ25: =17/0.85 -> 20 | AK25: 0 | AL25: =AL15 -> 0 | AM25: =AM15 -> 0
B26: Efterafgr., grøngød., eftervirk. 50 N | C26: 20 | D26: 0 | E26: 0 | F26: 0 | G26: 0 | H26: 50 | I26: 0 | J26: =J15 -> 2080 | K26: =K15 -> 730 | AD26: Efterafgr., grøngød., eftervirk. 50 N | AE26: 20 | AF26: 0 | AG26: 0 | AH26: 0 | AI26: 0 | AJ26: 50 | AK26: 0 | AL26: =AL15 -> 0 | AM26: =AM15 -> 0
B27: Vedvarende græs | C27: 21 | D27: -9.26e-05 | E27: 0.069213 | F27: 26.26875 | G27: 157 | H27: 18 | I27: 140 | J27: 0 | K27: =K15 -> 730 | AD27: Vedvarende græs | AE27: 21 | AF27: -9.26e-05 | AG27: 0.069213 | AH27: 26.26875 | AI27: 157 | AJ27: 18 | AK27: 140 | AL27: 0 | AM27: =AM15 -> 0
B28: Vintersæd, sandjord, ff. kløvergr. | C28: 22 | D28: ='N-responser'!H50 -> -0.0006285714286 | E28: ='N-responser'!I50 -> 0.2277142857 | F28: ='N-responser'!J50 -> 45.05714286 | AD28: Vintersæd, sandjord, ff. kløvergr. | AF28: ='N-responser'!AE50 -> 0 | AG28: ='N-responser'!AF50 -> 0 | AH28: ='N-responser'!AG50 -> 0
B29: Vintersæd, lerjord, ff kløvergr. | C29: 23 | D29: ='N-responser'!H53 -> -0.0006285714286 | E29: ='N-responser'!I53 -> 0.2277142857 | F29: ='N-responser'!J53 -> 50.05714286 | AD29: Vintersæd, lerjord, ff kløvergr. | AF29: ='N-responser'!AE53 -> 0 | AG29: ='N-responser'!AF53 -> 0 | AH29: ='N-responser'!AG53 -> 0
B30: Vårsæd, sandjord, ff. kløvegræs | C30: 24 | D30: 0 | E30: 0 | F30: 45
B31: Vårsæd, lerjord, ff. kløvergræs | C31: 25 | D31: 0 | E31: 0 | F31: 50

Sheet Gødning_database
B1: Rediger gødningstyper og -indhold
B6: 1 | C6: 2 | D6: 3 | E6: 4 | F6: 5 | G6: 6 | H6: 7 | I6: 8 | J6: 9 | K6: 10 | L6: 11
D7: TS | E7: Tot-N | F7: NH4-N | G7: P | H7: K | I7: Andel | J7: Krav til N-udnyt-telse, %
D8: % | E8: kg/t | F8: kg/t | G8: kg/t | H8: kg/t | I8: økologi, %
B9: - | C9: 1 | I9: 50
B10: Slagtesvinegylle | C10: 2 | D10: 5 | E10: 4.3 | F10: 2.7 | G10: 1.05 | H10: 2.1 | I10: 100 | J10: 80 | M10: Slagtesvinegylle | N10: 2 | O10: 5 | P10: 4.3 | Q10: 2.7 | R10: 1.05 | S10: 2.1 | T10: 100 | U10: 80
B11: Sogylle | C11: 3 | D11: 5 | E11: 4.3 | F11: 2.7 | G11: 1.05 | H11: 2.1 | I11: 100 | J11: 80 | M11: Sogylle | N11: 3 | O11: 5 | P11: 4.3 | Q11: 2.7 | R11: 1.05 | S11: 2.1 | T11: 100 | U11: 80
B12: Kvæggylle | C12: 4 | D12: 7 | E12: 3.3 | F12: 1.8 | G12: 0.8 | H12: 3 | I12: 100 | J12: 75 | M12: Kvæggylle | N12: 4 | O12: 7 | P12: 3.3 | Q12: 1.8 | R12: 0.8 | S12: 3 | T12: 100 | U12: 75
B13: Dybstrøelse, kvæg | C13: 5 | D13: 27.5 | E13: 8.5 | F13: 1.5 | G13: 2.5 | H13: 5 | I13: 100 | J13: 50 | M13: Dybstrøelse, kvæg | N13: 5 | O13: 27.5 | P13: 8.5 | Q13: 1.5 | R13: 2.5 | S13: 5 | T13: 100 | U13: 50
B14: Dybstrøelse, svin | C14: 6 | D14: 25.3 | E14: 11 | F14: 3 | G14: 4 | H14: 5 | I14: 100 | J14: 50 | M14: Dybstrøelse, svin | N14: 6 | O14: 25.3 | P14: 11 | Q14: 3 | R14: 4 | S14: 5 | T14: 100 | U14: 50
B15: Fjerkrægødning | C15: 7 | D15: 46.3 | E15: 20.76666667 | F15: 3 | G15: 7.2 | H15: 2 | I15: 100 | J15: 70 | M15: Fjerkrægødning | N15: 7 | O15: 46.3 | P15: 20.76666667 | Q15: 3 | R15: 7.2 | S15: 2 | T15: 100 | U15: 70
B16: Afgasset gylle | C16: 8 | D16: 3 | E16: 4.26 | F16: 2.5 | G16: 0.6 | H16: 3.5 | I16: 100 | J16: 65 | M16: Afgasset gylle | N16: 8 | O16: 3 | P16: 4.26 | Q16: 2.5 | R16: 0.6 | S16: 3.5 | T16: 100 | U16: 65
B17: Øgro 10-3-1 | C17: 9 | E17: 100 | F17: 80 | G17: 26 | H17: 10 | I17: 100 | J17: 40 | M17: Øgro 10-3-1 | N17: 9 | P17: 100 | Q17: 80 | R17: 26 | S17: 10 | T17: 100 | U17: 40
B18: Vinasse, flydende | C18: 10 | E18: 35 | F18: 14 | G18: 0 | H18: 70 | I18: 100 | J18: 40 | M18: Vinasse, flydende | N18: 10 | P18: 35 | Q18: 14 | R18: 0 | S18: 70 | T18: 100 | U18: 40
B19: Vinasse, tør | C19: 11 | E19: 7 | F19: 2.8 | G19: 0 | H19: 210 | I19: 100 | J19: 40 | M19: Vinasse, tør | N19: 11 | P19: 7 | Q19: 2.8 | R19: 0 | S19: 210 | T19: 100 | U19: 40
B20: Ny type 1 | C20: 12 | M20: Ny type 1 | N20: 12
B21: Ny type 2 | C21: 13 | M21: Ny type 2 | N21: 13
B22: Ny type 3 | C22: 14 | M22: Ny type 3 | N22: 14
B23: Ny type 4 | C23: 15 | M23: Ny type 4 | N23: 15
B24: Ny type 5 | C24: 16 | M24: Ny type 5 | N24: 16

Sheet Brændværdi (hidden)
A1: Udfyld kun de grå celler
A2: Brændværdi beregning
A3: Indsæt CH4% | B3: =#REF! ->  | C3: vol%
A4: Indsæt temperatur | B4: =IF(#REF!=TRUE,52,38) ->  | C4: gradC
A5: Massefylde (biogas) | B5: =(16.043*101.325/(8.3144*(273.15+B4))*B3)+(44*101.325/(8.3144*(273.15+B4))*(1-B3)) ->  | C5: kg/m3
A6: Brændværdi (biogas) | B6: =50.014*(16.043*101.325/(8.3144*(273.15+B4)))*B3/3.6 ->  | C6: kWh/m3
B7: =50.014*(16.043*101.325/(8.3144*(273.15+B4)))*B3 ->  | C7: MJ/m3
A9: Nødvendig Biogas for produktion af | B9: 0 | C9: kWhe | D9: =B9/(B6*0.37) ->  | E9: m3/h
A11: Biogasproduction, m3/h | B11: =#REF! ->  | C11: m3/h | D11: =B11*B6 ->  | E11: kW
A12: Biogas, Nm3/h | B12: =B11/(273.15+B4)*273.15 ->  | C12: Nm3/h, 0 C, 1,013 bar | D12: =D11 ->  | E12: kW
A13: Biogas til CHP | B13: =IF(D9=0,B11,D9) ->  | C13: m3/h | D13: =B13*B6 ->  | E13: kW
A14: Biogas til dampkedel | B14: =B11-B13 ->  | C14: m3/h | D14: =B14*B6 ->  | E14: kW
A16: CHP | B16: =IF(D9=0,B11,D9) ->  | C16: m3/h
A17: Elektricitet | D17: =$B$16*$B$6*0.39 ->  | E17: kW
A18: Varme (damp) | D18: =$B$16*$B$6*0.19 ->  | E18: kW
A19: Varme (varmt vand) | D19: =$B$16*$B$6*0.29 ->  | E19: kW
A20: Tab | D20: =$B$16*$B$6*0.13 ->  | E20: kW
A22: Dampkedel | B22: =IF(B9>0,B14,0) -> 0 | C22: m3/h | D22: =B22*B6 ->  | E22: kW
A23: Varme (damp) | D23: =D22*0.85 ->  | E23: kW
A24: Tab | D24: =0.15*D22 ->  | E24: kW
A25: Drifttimer | B25: =#REF! ->  | C25: h | F25: Årsproduktion
A26: Total energi produktion | F26: MW | G26: GJ
A27: Elektricitet | C27: =D27/D31 ->  | D27: =D17 ->  | E27: kW | F27: =$B$25*D27/1000 ->  | G27: =F27*3.6 -> 
A28: Varme (damp) | C28: =D28/D31 ->  | D28: =D18+D23 ->  | E28: kW | F28: =$B$25*D28/1000 ->  | G28: =F28*3.6 -> 
A29: Varme (varmt vand) | C29: =D29/D31 ->  | D29: =D19 ->  | E29: kW | F29: =$B$25*D29/1000 ->  | G29: =F29*3.6 -> 
A30: Tab | C30: =D30/D31 ->  | D30: =D20+D24 ->  | E30: kW | F30: =$B$25*D30/1000 ->  | G30: =F30*3.6 -> 
A31: Kontrol | D31: =SUM(D27:D30) ->  | E31: kW | F31: =$B$25*D31/1000 ->  | G31: =F31*3.6 -> 
A34: Brændværdi | B34: kWh/Nm3 | C34: MJ/Nm3
A36: Naturgas | B36: 10.9484 | C36: =B36*3.6 -> 39.41424
A37: Metan | B37: 9.943955355 | C37: =B37*3.6 -> 35.79823928
A38: Biogas | B38: =B6*(273.15+B4)/273.15 ->  | C38: =B38*3.6 -> 
A40: 1 | B40: Nm3 Naturgas = | C40: =B36/B37*A40 -> 1.101010575 | D40: Nm3 | E40: Metan
A41: 1 | B41: Nm3 Metan = | C41: =B37/B36*A41 -> 0.90825649 | D41: Nm3 | E41: Naturgas
A42: 1 | B42: Nm3 Biogas = | C42: =B38/B36*A42 ->  | D42: Nm3 | E42: Naturgas
A43: 1 | B43: Nm3 Naturgas = | C43: =B36/B38*A43 ->  | D43: Nm3 | E43: Biogas
A45: =$B$12*$B$25 ->  | B45: Nm3 Biogas = | C45: =A45*B3 ->  | D45: Nm3 | E45: Metan
A46: =$B$12*$B$25 ->  | B46: Nm3 Biogas = | C46: =C45*C41 ->  | D46: Nm3 | E46: Naturgas
A48: =1425*650/0.9 -> 1029166.667 | B48: Nm3 Naturgas = | C48: =A48*C43 ->  | D48: Nm3 | E48: Biogas
A49: =1425*650/0.9 -> 1029166.667 | B49: Nm3 Naturgas = | C49: =A48*C40 -> 1133123.383 | D49: Nm3 | E49: Biogas

Sheet Sheet3 (hidden)
V4: =O6*41% ->  | W4: kWEl
I5: =#REF! ->  | J5: m3/d
I6: =#REF!*0.01 ->  | J6: v/v CH4 | O6: =#REF! ->  | P6: kWTot
I7: =#REF!*0.01 ->  | J7: v/v CO2
V8: =(O6-V4)*0.85 ->  | W8: kWTh
E11: =#REF! ->  | F11: t/d
E12: =#REF! ->  | F12: kg/t TS | V12: =#REF! ->  | W12: t/d
E13: =#REF! ->  | F13: kg/t VS | V13: =#REF! ->  | W13: kg/t TS
A14: =#REF! ->  | B14: t/d | E14: =#REF!+#REF! ->  | F14: kg/t N | V14: =#REF! ->  | W14: kg/t VS
A15: =#REF! ->  | B15: kg/t TS | E15: =#REF! ->  | F15: kg/t Ash | V15: =#REF!+#REF! ->  | W15: kg/t N
A16: =#REF! ->  | B16: kg/t VS | V16: =#REF! ->  | W16: kg/t P
A17: =#REF!+#REF! ->  | B17: kg/t N | V17: =#REF! ->  | W17: kg/t K
A18: =#REF! ->  | B18: kg/t P | L18: =#REF! ->  | M18: t/d
A19: =#REF! ->  | B19: kg/t K | L19: =#REF! ->  | M19: kg/t TS
L20: =#REF! ->  | M20: kg/t VS
L21: =#REF!+#REF! ->  | M21: kg/t N
L22: =#REF! ->  | M22: kg/t Ash
V23: =#REF! ->  | W23: t/d
V24: =#REF! ->  | W24: kg/t CO2
D25: =#REF! ->  | E25: t/d | V25: =#REF! ->  | W25: kg/t NH4-N
D26: =#REF! ->  | E26: kg/t TS
D27: =#REF! ->  | E27: kg/t VS
D28: =#REF! ->  | E28: kg/t N | V28: =#REF! ->  | W28: t/d
D29: =#REF! ->  | E29: kg/t Ash | V29: =#REF! ->  | W29: kg/t CO2
V30: =#REF! ->  | W30: kg/t NH4-N
K33: =#REF! ->  | L33: t/d
K34: =#REF! ->  | L34: kg/t TS
K35: =#REF! ->  | L35: kg/t VS | Q35: =#REF! ->  | R35: t/d
K36: =#REF! ->  | L36: kg/t N | Q36: =#REF! ->  | R36: kg/t TS
K37: =#REF! ->  | L37: kg/t Ash | Q37: =#REF! ->  | R37: kg/t VS
Q38: =#REF! ->  | R38: kg/t N
Q39: =#REF! ->  | R39: kg/t Ash
V44: =#REF! ->  | W44: t/d
V45: =#REF! ->  | W45: kg/t TS
V48: =#REF! ->  | W48: t/d
V49: =#REF! ->  | W49: kg/t TS
V50: =#REF! ->  | W50: kg/t VS

Sheet Udskrift
A1: Økonomi i gødningsanvendelse i økologiske sædskifter
A3: Beregningen er foretaget for: | O3: Beregningen er foretaget af:
B4: =IF(Forside!D10<>"",Forside!D10,"") ->  | P4: =IF(Forside!K10<>"",Forside!K10,"") -> 
B5: =IF(Forside!D11<>"",Forside!D11,"") ->  | P5: =IF(Forside!K11<>"",Forside!K11,"") -> 
B6: =IF(Forside!D12<>"",Forside!D12,"") ->  | P6: =IF(Forside!K12<>"",Forside!K12,"") -> 
B7: =IF(Forside!D13<>"",Forside!D13,"") ->  | P7: =IF(Forside!K13<>"",Forside!K13,"") ->  | AI7: =" " -> 
B8: =IF(Forside!D14<>"",Forside!D14,"") ->  | P8: =IF(Forside!K14<>"",Forside!K14,"") -> 
A14: Økonomioversigt
J16: =IF(Forside!F26<>"",Forside!F26,"Alternativ 1") -> Nuværende sædskifte | O16: =IF(Forside!F29<>"",Forside!F29,"Alternativ 1") -> Alternativ 1 | T16: =IF(Forside!F32<>"",Forside!F32,"Alternativ 1") -> Alternativ 2
A17: Økonomi
A18: Dyrket areal | J18: =Basis!F19 -> 0 | O18: ='Alt1'!F19 -> 0 | T18: ='Alt2'!F19 -> 0 | Y18: hektar
A19: Bruttoudbytte | J19: =SUMPRODUCT(Basis!F8:F18,Basis!O8:O18) -> 0 | O19: =SUMPRODUCT('Alt1'!F8:F18,'Alt1'!O8:O18) -> 0 | T19: =SUMPRODUCT('Alt2'!F8:F18,'Alt2'!O8:O18) -> 0 | Y19: kroner
A20: Omkostninger | J20: =SUMPRODUCT(Basis!F8:F18,Basis!P8:P18) -> 0 | O20: =SUMPRODUCT('Alt1'!F8:F18,'Alt1'!P8:P18) -> 0 | T20: =SUMPRODUCT('Alt2'!F8:F18,'Alt2'!P8:P18) -> 0 | Y20: kroner
A21: Dækningsbidrag II i alt | J21: =J19-J20 -> 0 | O21: =O19-O20 -> 0 | T21: =T19-T20 -> 0 | Y21: kroner
A22: Dækningsbidrag II pr. ha | J22: =IF(J18>0,J21/J18,0) -> 0 | O22: =IF(O18>0,O21/O18,0) -> 0 | T22: =IF(T18>0,T21/T18,0) -> 0 | Y22: kroner pr. ha
R55: =Forside!B3 -> Version 2.0 - September 2021
R56: Udskrivningsdato: | W56: =TODAY() -> 2021-09-11 | AB56: Side 1 af 4
A57: Beregningsgrundlag for: | M57: =IF(Forside!F26<>"",Forside!F26,"Nuværende sædskifte") -> Nuværende sædskifte
A59: Sædskifte
O60: Areal, | R60: Gødningstilførsel | X60: Udbytte | AA60: DB II
A61: Forfrugt | H61: Afgrøde | O61: hektar | R61: ton/ha | U61: kg NH4/ha | X61: ae, hkg/ha | AA61: kr. pr. ha
A62: =IF(Basis!$C$8>1,INDEX(Optimering,Basis!$C$8,1),"") ->  | H62: =IF(Basis!$E$8>1,INDEX(Optimering,Basis!$E$8,1),"") ->  | O62: =IF(Basis!$E$8>1,Basis!$F$8,"") ->  | R62: =IF(Basis!$E$8>1,Basis!$AA$8,"") ->  | U62: =IF(Basis!$E$8>1,Basis!$M$8,"") ->  | X62: =IF(Basis!$E$8>1,Basis!$N$8,"") ->  | AA62: =IF(Basis!$E$8>1,Basis!$Q$8,"") -> 
A63: =IF(Basis!$C$9>1,INDEX(Optimering,Basis!$C$9,1),"") ->  | H63: =IF(Basis!$E$9>1,INDEX(Optimering,Basis!$E$9,1),"") ->  | O63: =IF(Basis!$E$9>1,Basis!$F$9,"") ->  | R63: =IF(Basis!$E$9>1,Basis!$AA$9,"") ->  | U63: =IF(Basis!$E$9>1,Basis!$M$9,"") ->  | X63: =IF(Basis!$E$9>1,Basis!$N$9,"") ->  | AA63: =IF(Basis!$E$9>1,Basis!$Q$9,"") -> 
A64: =IF(Basis!$C$10>1,INDEX(Optimering,Basis!$C$10,1),"") ->  | H64: =IF(Basis!$E$10>1,INDEX(Optimering,Basis!$E$10,1),"") ->  | O64: =IF(Basis!$E$10>1,Basis!$F$10,"") ->  | R64: =IF(Basis!$E$10>1,Basis!$AA$10,"") ->  | U64: =IF(Basis!$E$10>1,Basis!$M$10,"") ->  | X64: =IF(Basis!$E$10>1,Basis!$N$10,"") ->  | AA64: =IF(Basis!$E$10>1,Basis!$Q$10,"") -> 
A65: =IF(Basis!$C$11>1,INDEX(Optimering,Basis!$C$11,1),"") ->  | H65: =IF(Basis!$E$11>1,INDEX(Optimering,Basis!$E$11,1),"") ->  | O65: =IF(Basis!$E$11>1,Basis!$F$11,"") ->  | R65: =IF(Basis!$E$11>1,Basis!$AA$11,"") ->  | U65: =IF(Basis!$E$11>1,Basis!$M$11,"") ->  | X65: =IF(Basis!$E$11>1,Basis!$N$11,"") ->  | AA65: =IF(Basis!$E$11>1,Basis!$Q$11,"") -> 
A66: =IF(Basis!$C$12>1,INDEX(Optimering,Basis!$C$12,1),"") ->  | H66: =IF(Basis!$E$12>1,INDEX(Optimering,Basis!$E$12,1),"") ->  | O66: =IF(Basis!$E$12>1,Basis!$F$12,"") ->  | R66: =IF(Basis!$E$12>1,Basis!$AA$12,"") ->  | U66: =IF(Basis!$E$12>1,Basis!$M$12,"") ->  | X66: =IF(Basis!$E$12>1,Basis!$N$12,"") ->  | AA66: =IF(Basis!$E$12>1,Basis!$Q$12,"") -> 
A67: =IF(Basis!$C$13>1,INDEX(Optimering,Basis!$C$13,1),"") ->  | H67: =IF(Basis!$E$13>1,INDEX(Optimering,Basis!$E$13,1),"") ->  | O67: =IF(Basis!$E$13>1,Basis!$F$13,"") ->  | R67: =IF(Basis!$E$13>1,Basis!$AA$13,"") ->  | U67: =IF(Basis!$E$13>1,Basis!$M$13,"") ->  | X67: =IF(Basis!$E$13>1,Basis!$N$13,"") ->  | AA67: =IF(Basis!$E$13>1,Basis!$Q$13,"") -> 
A68: =IF(Basis!$C$14>1,INDEX(Optimering,Basis!$C$14,1),"") ->  | H68: =IF(Basis!$E$14>1,INDEX(Optimering,Basis!$E$14,1),"") ->  | O68: =IF(Basis!$E$14>1,Basis!$F$14,"") ->  | R68: =IF(Basis!$E$14>1,Basis!$AA$14,"") ->  | U68: =IF(Basis!$E$14>1,Basis!$M$14,"") ->  | X68: =IF(Basis!$E$14>1,Basis!$N$14,"") ->  | AA68: =IF(Basis!$E$14>1,Basis!$Q$14,"") -> 
A69: =IF(Basis!$C$15>1,INDEX(Optimering,Basis!$C$15,1),"") ->  | H69: =IF(Basis!$E$15>1,INDEX(Optimering,Basis!$E$15,1),"") ->  | O69: =IF(Basis!$E$15>1,Basis!$F$15,"") ->  | R69: =IF(Basis!$E$15>1,Basis!$AA$15,"") ->  | U69: =IF(Basis!$E$15>1,Basis!$M$15,"") ->  | X69: =IF(Basis!$E$15>1,Basis!$N$15,"") ->  | AA69: =IF(Basis!$E$15>1,Basis!$Q$15,"") -> 
A70: =IF(Basis!$C$16>1,INDEX(Optimering,Basis!$C$16,1),"") ->  | H70: =IF(Basis!$E$16>1,INDEX(Optimering,Basis!$E$16,1),"") ->  | O70: =IF(Basis!$E$16>1,Basis!$F$16,"") ->  | R70: =IF(Basis!$E$16>1,Basis!$AA$16,"") ->  | U70: =IF(Basis!$E$16>1,Basis!$M$16,"") ->  | X70: =IF(Basis!$E$16>1,Basis!N16,"") ->  | AA70: =IF(Basis!$E$16>1,Basis!$Q$16,"") -> 
A71: =IF(Basis!$C$17>1,INDEX(Optimering,Basis!$C$17,1),"") ->  | H71: =IF(Basis!$E$17>1,INDEX(Optimering,Basis!$E$17,1),"") ->  | O71: =IF(Basis!$E$17>1,Basis!$F$17,"") ->  | R71: =IF(Basis!$E$17>1,Basis!$AA$17,"") ->  | U71: =IF(Basis!$E$17>1,Basis!$M$17,"") ->  | X71: =IF(Basis!$E$17>1,Basis!N17,"") ->  | AA71: =IF(Basis!$E$17>1,Basis!$Q$17,"") -> 
A72: =IF(Basis!$C$18>1,INDEX(Optimering,Basis!$C$18,1),"") ->  | H72: =IF(Basis!$E$18>1,INDEX(Optimering,Basis!$E$18,1),"") ->  | O72: =IF(Basis!$E$18>1,Basis!$F$18,"") ->  | R72: =IF(Basis!$E$18>1,Basis!$AA$18,"") ->  | U72: =IF(Basis!$E$18>1,Basis!$M$18,"") ->  | X72: =IF(Basis!$E$18>1,Basis!$N$18,"") ->  | AA72: =IF(Basis!$E$18>1,Basis!$Q$18,"") -> 
A73: I alt | O73: =IF(Basis!$F$19>0,Basis!$F$19,"") ->  | R73: =IF(Basis!$AA$19>0,Basis!$AA$19,"") ->  | U73: =IF(Basis!$M$19>0,Basis!$M$19,"") ->  | AA73: =IF(Basis!$Q$19>0,Basis!$Q$19,"") -> 
A76: Gødningstyper og -mængder til rådighed
G77: Mængde | J77: Pris | M77: Total-N | P77: NH4-N | S77: P | V77: K | Y77: Økologi- | AB77: N-udnyt-
G78: ton | J78: kr. pr. ton | M78: kg pr. ton | P78: kg pr. ton | S78: kg pr. ton | V78: kg pr. ton | Y78: andel, % | AB78: telse, pct,
A79: =IF(Gødning_produktion!C7>1,INDEX(Gødningsdatabase,Gødning_produktion!C7,1),"") ->  | G79: =IF(Gødning_produktion!D7>0,Gødning_produktion!D7,"") ->  | J79: =IF(Gødning_produktion!E7>0,Gødning_produktion!E7,"") ->  | M79: =IF(Gødning_produktion!F7>0,Gødning_produktion!F7,"") ->  | P79: =IF(Gødning_produktion!G7>0,Gødning_produktion!G7,"") ->  | S79: =IF(Gødning_produktion!H7>0,Gødning_produktion!H7,"") ->  | V79: =IF(Gødning_produktion!I7>0,Gødning_produktion!I7,"") ->  | Y79: =IF(Gødning_produktion!J7>0,Gødning_produktion!J7,"") ->  | AB79: =IF(Gødning_produktion!K7>0,Gødning_produktion!K7,"") -> 
A80: =IF(Gødning_produktion!C8>1,INDEX(Gødningsdatabase,Gødning_produktion!C8,1),"") ->  | G80: =IF(Gødning_produktion!D8>0,Gødning_produktion!D8,"") ->  | J80: =IF(Gødning_produktion!E8>0,Gødning_produktion!E8,"") ->  | M80: =IF(Gødning_produktion!F8>0,Gødning_produktion!F8,"") ->  | P80: =IF(Gødning_produktion!G8>0,Gødning_produktion!G8,"") ->  | S80: =IF(Gødning_produktion!H8>0,Gødning_produktion!H8,"") ->  | V80: =IF(Gødning_produktion!I8>0,Gødning_produktion!I8,"") ->  | Y80: =IF(Gødning_produktion!J8>0,Gødning_produktion!J8,"") ->  | AB80: =IF(Gødning_produktion!K8>0,Gødning_produktion!K8,"") -> 
A81: =IF(Gødning_produktion!C9>1,INDEX(Gødningsdatabase,Gødning_produktion!C9,1),"") ->  | G81: =IF(Gødning_produktion!D9>0,Gødning_produktion!D9,"") ->  | J81: =IF(Gødning_produktion!E9>0,Gødning_produktion!E9,"") ->  | M81: =IF(Gødning_produktion!F9>0,Gødning_produktion!F9,"") ->  | P81: =IF(Gødning_produktion!G9>0,Gødning_produktion!G9,"") ->  | S81: =IF(Gødning_produktion!H9>0,Gødning_produktion!H9,"") ->  | V81: =IF(Gødning_produktion!I9>0,Gødning_produktion!I9,"") ->  | Y81: =IF(Gødning_produktion!J9>0,Gødning_produktion!J9,"") ->  | AB81: =IF(Gødning_produktion!K9>0,Gødning_produktion!K9,"") -> 
A82: =IF(Gødning_produktion!C10>1,INDEX(Gødningsdatabase,Gødning_produktion!C10,1),"") ->  | G82: =IF(Gødning_produktion!D10>0,Gødning_produktion!D10,"") ->  | J82: =IF(Gødning_produktion!E10>0,Gødning_produktion!E10,"") ->  | M82: =IF(Gødning_produktion!F10>0,Gødning_produktion!F10,"") ->  | P82: =IF(Gødning_produktion!G10>0,Gødning_produktion!G10,"") ->  | S82: =IF(Gødning_produktion!H10>0,Gødning_produktion!H10,"") ->  | V82: =IF(Gødning_produktion!I10>0,Gødning_produktion!I10,"") ->  | Y82: =IF(Gødning_produktion!J10>0,Gødning_produktion!J10,"") ->  | AB82: =IF(Gødning_produktion!K10>0,Gødning_produktion!K10,"") -> 
A83: =IF(Gødning_produktion!C11>1,INDEX(Gødningsdatabase,Gødning_produktion!C11,1),"") ->  | G83: =IF(Gødning_produktion!D11>0,Gødning_produktion!D11,"") ->  | J83: =IF(Gødning_produktion!E11>0,Gødning_produktion!E11,"") ->  | M83: =IF(Gødning_produktion!F11>0,Gødning_produktion!F11,"") ->  | P83: =IF(Gødning_produktion!G11>0,Gødning_produktion!G11,"") ->  | S83: =IF(Gødning_produktion!H11>0,Gødning_produktion!H11,"") ->  | V83: =IF(Gødning_produktion!I11>0,Gødning_produktion!I11,"") ->  | Y83: =IF(Gødning_produktion!J11>0,Gødning_produktion!J11,"") ->  | AB83: =IF(Gødning_produktion!K11>0,Gødning_produktion!K11,"") -> 
A84: =IF(Gødning_produktion!C12>1,INDEX(Gødningsdatabase,Gødning_produktion!C12,1),"") ->  | G84: =IF(Gødning_produktion!D12>0,Gødning_produktion!D12,"") ->  | J84: =IF(Gødning_produktion!E12>0,Gødning_produktion!E12,"") ->  | M84: =IF(Gødning_produktion!F12>0,Gødning_produktion!F12,"") ->  | P84: =IF(Gødning_produktion!G12>0,Gødning_produktion!G12,"") ->  | S84: =IF(Gødning_produktion!H12>0,Gødning_produktion!H12,"") ->  | V84: =IF(Gødning_produktion!I12>0,Gødning_produktion!I12,"") ->  | Y84: =IF(Gødning_produktion!J12>0,Gødning_produktion!J12,"") ->  | AB84: =IF(Gødning_produktion!K12>0,Gødning_produktion!K12,"") -> 
A85: I alt/gennemsnit | G85: =Gødning_produktion!D14 -> 0 | J85: =IF(Gødning_produktion!E13>0,Gødning_produktion!E13,"") ->  | M85: =IF(Gødning_produktion!F13>0,Gødning_produktion!F13,"") ->  | P85: =IF(Gødning_produktion!G13>0,Gødning_produktion!G13,"") ->  | S85: =IF(Gødning_produktion!H13>0,Gødning_produktion!H13,"") ->  | V85: =IF(Gødning_produktion!I13>0,Gødning_produktion!I13,"") ->  | Y85: =IF(Gødning_produktion!J13>0,Gødning_produktion!J13,"") ->  | AB85: =IF(Gødning_produktion!K13>0,Gødning_produktion!K13,"") -> 
A87: Gødningsmængder til rådighed i alt
A88: Gødningsmængde i alt | U88: =IF(Gødning_produktion!D14>0,Gødning_produktion!D14,"") ->  | Y88: ton
A89: Total-kvælstof | U89: =IF(Gødning_produktion!F14>0,Gødning_produktion!F14,"") ->  | Y89: kg total-N
A90: Ammonium-kvælstof | U90: =IF(Gødning_produktion!G14>0,Gødning_produktion!G14,"") ->  | Y90: kg NH4-N
A91: Fosfor | U91: =IF(Gødning_produktion!H14>0,Gødning_produktion!H14,"") ->  | Y91: kg P
A92: Kalium | U92: =IF(Gødning_produktion!I14>0,Gødning_produktion!I14,"") ->  | Y92: kg K
A93: Gennemsnitspris | U93: =Gødning_produktion!E13 -> 0 | Y93: kroner pr. ton
A94: Pris for udbringning og transport i gennemsnit | U94: =Gødning_produktion!D17 -> 0 | Y94: kroner pr. ton
A97: Oplysninger om gødningstilførslen
A98: Maksimalt tilladte mængder udbragt:
A99: Max. tilførsel af udnyttet N pr. ha | U99: =IF(Basis!$F$21>0,Basis!$F$21,"") -> 50 | Y99: kg udnyttet N pr. ha
A100: Max. tilladt tilførsel af NH4-N pr. ha | U100: =IF(Basis!$F$22>0,Basis!$F$22,"") ->  | Y100: kg NH4-N pr. ha
A101: Max. tilladt tilførsel af NH4-N i alt | U101: =IF(Basis!$F$24>0,Basis!$F$24,"") ->  | Y101: kg NH4-N
A102: -heraf tilført ved efterårsgødskning | U102: =IF(Basis!$F$25>0,Basis!$F$25,0) -> 0 | Y102: kg NH4-N
A103: -heraf maksimal tilladt tilførsel ved forårsgødskningen | U103: =IF(Basis!$F$26>0,Basis!$F$26,"") ->  | Y103: kg NH4-N
A105: Faktisk fordelte næringsstofmængder:
A106: Totalkvælstof | U106: =IF(Basis!$F$32>0,Basis!$F$32,"") ->  | Y106: kg total-N pr. ha
A107: Ammoniumkvælstof | U107: =IF(Basis!$F$33>0,Basis!$F$33,"") ->  | Y107: kg NH4-N pr. ha
A108: Fosfor | U108: =IF(Basis!$F$34>0,Basis!$F$34,"") ->  | Y108: kg fosfor pr. ha
A109: Kalium | U109: =IF(Basis!$F$35>0,Basis!$F$35,"") ->  | Y109: kg kalium pr. ha
AB112: Side 2 af 4
A113: Beregningsgrundlag for: | M113: =IF(Forside!F29<>"",Forside!F29,"Alternativ 1") -> Alternativ 1
A115: Sædskifte
O116: Areal, | R116: Gødningstilførsel | X116: Udbytte | AA116: DB II
A117: Forfrugt | H117: Afgrøde | O117: hektar | R117: ton/ha | U117: kg NH4/ha | X117: ae, hkg/ha | AA117: kr. pr. ha
A118: =IF('Alt1'!$C$8>1,INDEX(Optimering,'Alt1'!$C$8,1),"") ->  | H118: =IF('Alt1'!$E$8>1,INDEX(Optimering,'Alt1'!$E$8,1),"") ->  | O118: =IF('Alt1'!$E$8>1,'Alt1'!$F$8,"") ->  | R118: =IF('Alt1'!$E$8>1,'Alt1'!$AA$8,"") ->  | U118: =IF('Alt1'!$E$8>1,'Alt1'!$M$8,"") ->  | X118: =IF('Alt1'!$E$8>1,'Alt1'!$N$8,"") ->  | AA118: =IF('Alt1'!$E$8>1,'Alt1'!$Q$8,"") -> 
A119: =IF('Alt1'!$C$9>1,INDEX(Optimering,'Alt1'!$C$9,1),"") ->  | H119: =IF('Alt1'!$E$9>1,INDEX(Optimering,'Alt1'!$E$9,1),"") ->  | O119: =IF('Alt1'!$E$9>1,'Alt1'!$F$9,"") ->  | R119: =IF('Alt1'!$E$9>1,'Alt1'!$AA$9,"") ->  | U119: =IF('Alt1'!$E$9>1,'Alt1'!$M$9,"") ->  | X119: =IF('Alt1'!$E$9>1,'Alt1'!$N$9,"") ->  | AA119: =IF('Alt1'!$E$9>1,'Alt1'!$Q$9,"") -> 
A120: =IF('Alt1'!$C$10>1,INDEX(Optimering,'Alt1'!$C$10,1),"") ->  | H120: =IF('Alt1'!$E$10>1,INDEX(Optimering,'Alt1'!$E$10,1),"") ->  | O120: =IF('Alt1'!$E$10>1,'Alt1'!$F$10,"") ->  | R120: =IF('Alt1'!$E$10>1,'Alt1'!$AA$10,"") ->  | U120: =IF('Alt1'!$E$10>1,'Alt1'!$M$10,"") ->  | X120: =IF('Alt1'!$E$10>1,'Alt1'!$N$10,"") ->  | AA120: =IF('Alt1'!$E$10>1,'Alt1'!$Q$10,"") -> 
A121: =IF('Alt1'!$C$11>1,INDEX(Optimering,'Alt1'!$C$11,1),"") ->  | H121: =IF('Alt1'!$E$11>1,INDEX(Optimering,'Alt1'!$E$11,1),"") ->  | O121: =IF('Alt1'!$E$11>1,'Alt1'!$F$11,"") ->  | R121: =IF('Alt1'!$E$11>1,'Alt1'!$AA$11,"") ->  | U121: =IF('Alt1'!$E$11>1,'Alt1'!$M$11,"") ->  | X121: =IF('Alt1'!$E$11>1,'Alt1'!$N$11,"") ->  | AA121: =IF('Alt1'!$E$11>1,'Alt1'!$Q$11,"") -> 
A122: =IF('Alt1'!$C$12>1,INDEX(Optimering,'Alt1'!$C$12,1),"") ->  | H122: =IF('Alt1'!$E$12>1,INDEX(Optimering,'Alt1'!$E$12,1),"") ->  | O122: =IF('Alt1'!$E$12>1,'Alt1'!$F$12,"") ->  | R122: =IF('Alt1'!$E$12>1,'Alt1'!$AA$12,"") ->  | U122: =IF('Alt1'!$E$12>1,'Alt1'!$M$12,"") ->  | X122: =IF('Alt1'!$E$12>1,'Alt1'!$N$12,"") ->  | AA122: =IF('Alt1'!$E$12>1,'Alt1'!$Q$12,"") -> 
A123: =IF('Alt1'!$C$13>1,INDEX(Optimering,'Alt1'!$C$13,1),"") ->  | H123: =IF('Alt1'!$E$13>1,INDEX(Optimering,'Alt1'!$E$13,1),"") ->  | O123: =IF('Alt1'!$E$13>1,'Alt1'!$F$13,"") ->  | R123: =IF('Alt1'!$E$13>1,'Alt1'!$AA$13,"") ->  | U123: =IF('Alt1'!$E$13>1,'Alt1'!$M$13,"") ->  | X123: =IF('Alt1'!$E$13>1,'Alt1'!$N$13,"") ->  | AA123: =IF('Alt1'!$E$13>1,'Alt1'!$Q$13,"") -> 
A124: =IF('Alt1'!$C$14>1,INDEX(Optimering,'Alt1'!$C$14,1),"") ->  | H124: =IF('Alt1'!$E$14>1,INDEX(Optimering,'Alt1'!$E$14,1),"") ->  | O124: =IF('Alt1'!$E$14>1,'Alt1'!$F$14,"") ->  | R124: =IF('Alt1'!$E$14>1,'Alt1'!$AA$14,"") ->  | U124: =IF('Alt1'!$E$14>1,'Alt1'!$M$14,"") ->  | X124: =IF('Alt1'!$E$14>1,'Alt1'!$N$14,"") ->  | AA124: =IF('Alt1'!$E$14>1,'Alt1'!$Q$14,"") -> 
A125: =IF('Alt1'!$C$15>1,INDEX(Optimering,'Alt1'!$C$15,1),"") ->  | H125: =IF('Alt1'!$E$15>1,INDEX(Optimering,'Alt1'!$E$15,1),"") ->  | O125: =IF('Alt1'!$E$15>1,'Alt1'!$F$15,"") ->  | R125: =IF('Alt1'!$E$15>1,'Alt1'!$AA$15,"") ->  | U125: =IF('Alt1'!$E$15>1,'Alt1'!$M$15,"") ->  | X125: =IF('Alt1'!$E$15>1,'Alt1'!$N$15,"") ->  | AA125: =IF('Alt1'!$E$15>1,'Alt1'!$Q$15,"") -> 
A126: =IF('Alt1'!$C$16>1,INDEX(Optimering,'Alt1'!$C$16,1),"") ->  | H126: =IF('Alt1'!$E$16>1,INDEX(Optimering,'Alt1'!$E$16,1),"") ->  | O126: =IF('Alt1'!$E$16>1,'Alt1'!$F$16,"") ->  | R126: =IF('Alt1'!$E$16>1,'Alt1'!$AA$16,"") ->  | U126: =IF('Alt1'!$E$16>1,'Alt1'!$M$16,"") ->  | X126: =IF('Alt1'!$E$16>1,'Alt1'!N74,"") ->  | AA126: =IF('Alt1'!$E$16>1,'Alt1'!$Q$16,"") -> 
A127: =IF('Alt1'!$C$17>1,INDEX(Optimering,'Alt1'!$C$17,1),"") ->  | H127: =IF('Alt1'!$E$17>1,INDEX(Optimering,'Alt1'!$E$17,1),"") ->  | O127: =IF('Alt1'!$E$17>1,'Alt1'!$F$17,"") ->  | R127: =IF('Alt1'!$E$17>1,'Alt1'!$AA$17,"") ->  | U127: =IF('Alt1'!$E$17>1,'Alt1'!$M$17,"") ->  | X127: =IF('Alt1'!$E$17>1,'Alt1'!N75,"") ->  | AA127: =IF('Alt1'!$E$17>1,'Alt1'!$Q$17,"") -> 
A128: =IF('Alt1'!$C$18>1,INDEX(Optimering,'Alt1'!$C$18,1),"") ->  | H128: =IF('Alt1'!$E$18>1,INDEX(Optimering,'Alt1'!$E$18,1),"") ->  | O128: =IF('Alt1'!$E$18>1,'Alt1'!$F$18,"") ->  | R128: =IF('Alt1'!$E$18>1,'Alt1'!$AA$18,"") ->  | U128: =IF('Alt1'!$E$18>1,'Alt1'!$M$18,"") ->  | X128: =IF('Alt1'!$E$18>1,'Alt1'!$N$18,"") ->  | AA128: =IF('Alt1'!$E$18>1,'Alt1'!$Q$18,"") -> 
A129: I alt | O129: =IF('Alt1'!$F$19>0,'Alt1'!$F$19,"") ->  | R129: =IF('Alt1'!$AA$19>0,'Alt1'!$AA$19,"") ->  | U129: =IF('Alt1'!$M$19>0,'Alt1'!$M$19,"") ->  | AA129: =IF('Alt1'!$Q$19>0,'Alt1'!$Q$19,"") -> 
A132: Gødningstyper og -mængder til rådighed
G133: Mængde | J133: Pris | M133: Total-N | P133: NH4-N | S133: P | V133: K | Y133: Økologi- | AB133: N-udnyt-
G134: ton | J134: kr. pr. ton | M134: kg pr. ton | P134: kg pr. ton | S134: kg pr. ton | V134: kg pr. ton | Y134: andel, % | AB134: telse, pct,
A135: =IF(Gødning_produktion!C23>1,INDEX(Gødningsdatabase,Gødning_produktion!C23,1),"") ->  | G135: =IF(Gødning_produktion!D23>0,Gødning_produktion!D23,"") ->  | J135: =IF(Gødning_produktion!E23>0,Gødning_produktion!E23,"") ->  | M135: =IF(Gødning_produktion!F23>0,Gødning_produktion!F23,"") ->  | P135: =IF(Gødning_produktion!G23>0,Gødning_produktion!G23,"") ->  | S135: =IF(Gødning_produktion!H23>0,Gødning_produktion!H23,"") ->  | V135: =IF(Gødning_produktion!I23>0,Gødning_produktion!I23,"") ->  | Y135: =IF(Gødning_produktion!J23>0,Gødning_produktion!J23,"") ->  | AB135: =IF(Gødning_produktion!K23>0,Gødning_produktion!K23,"") -> 
A136: =IF(Gødning_produktion!C24>1,INDEX(Gødningsdatabase,Gødning_produktion!C24,1),"") ->  | G136: =IF(Gødning_produktion!D24>0,Gødning_produktion!D24,"") ->  | J136: =IF(Gødning_produktion!E24>0,Gødning_produktion!E24,"") ->  | M136: =IF(Gødning_produktion!F24>0,Gødning_produktion!F24,"") ->  | P136: =IF(Gødning_produktion!G24>0,Gødning_produktion!G24,"") ->  | S136: =IF(Gødning_produktion!H24>0,Gødning_produktion!H24,"") ->  | V136: =IF(Gødning_produktion!I24>0,Gødning_produktion!I24,"") ->  | Y136: =IF(Gødning_produktion!J24>0,Gødning_produktion!J24,"") ->  | AB136: =IF(Gødning_produktion!K24>0,Gødning_produktion!K24,"") -> 
A137: =IF(Gødning_produktion!C25>1,INDEX(Gødningsdatabase,Gødning_produktion!C25,1),"") ->  | G137: =IF(Gødning_produktion!D25>0,Gødning_produktion!D25,"") ->  | J137: =IF(Gødning_produktion!E25>0,Gødning_produktion!E25,"") ->  | M137: =IF(Gødning_produktion!F25>0,Gødning_produktion!F25,"") ->  | P137: =IF(Gødning_produktion!G25>0,Gødning_produktion!G25,"") ->  | S137: =IF(Gødning_produktion!H25>0,Gødning_produktion!H25,"") ->  | V137: =IF(Gødning_produktion!I25>0,Gødning_produktion!I25,"") ->  | Y137: =IF(Gødning_produktion!J25>0,Gødning_produktion!J25,"") ->  | AB137: =IF(Gødning_produktion!K25>0,Gødning_produktion!K25,"") -> 
A138: =IF(Gødning_produktion!C26>1,INDEX(Gødningsdatabase,Gødning_produktion!C26,1),"") ->  | G138: =IF(Gødning_produktion!D26>0,Gødning_produktion!D26,"") ->  | J138: =IF(Gødning_produktion!E26>0,Gødning_produktion!E26,"") ->  | M138: =IF(Gødning_produktion!F26>0,Gødning_produktion!F26,"") ->  | P138: =IF(Gødning_produktion!G26>0,Gødning_produktion!G26,"") ->  | S138: =IF(Gødning_produktion!H26>0,Gødning_produktion!H26,"") ->  | V138: =IF(Gødning_produktion!I26>0,Gødning_produktion!I26,"") ->  | Y138: =IF(Gødning_produktion!J26>0,Gødning_produktion!J26,"") ->  | AB138: =IF(Gødning_produktion!K26>0,Gødning_produktion!K26,"") -> 
A139: =IF(Gødning_produktion!C27>1,INDEX(Gødningsdatabase,Gødning_produktion!C27,1),"") ->  | G139: =IF(Gødning_produktion!D27>0,Gødning_produktion!D27,"") ->  | J139: =IF(Gødning_produktion!E27>0,Gødning_produktion!E27,"") ->  | M139: =IF(Gødning_produktion!F27>0,Gødning_produktion!F27,"") ->  | P139: =IF(Gødning_produktion!G27>0,Gødning_produktion!G27,"") ->  | S139: =IF(Gødning_produktion!H27>0,Gødning_produktion!H27,"") ->  | V139: =IF(Gødning_produktion!I27>0,Gødning_produktion!I27,"") ->  | Y139: =IF(Gødning_produktion!J27>0,Gødning_produktion!J27,"") ->  | AB139: =IF(Gødning_produktion!K27>0,Gødning_produktion!K27,"") -> 
A140: =IF(Gødning_produktion!C28>1,INDEX(Gødningsdatabase,Gødning_produktion!C28,1),"") ->  | G140: =IF(Gødning_produktion!D28>0,Gødning_produktion!D28,"") ->  | J140: =IF(Gødning_produktion!E28>0,Gødning_produktion!E28,"") ->  | M140: =IF(Gødning_produktion!F28>0,Gødning_produktion!F28,"") ->  | P140: =IF(Gødning_produktion!G28>0,Gødning_produktion!G28,"") ->  | S140: =IF(Gødning_produktion!H28>0,Gødning_produktion!H28,"") ->  | V140: =IF(Gødning_produktion!I28>0,Gødning_produktion!I28,"") ->  | Y140: =IF(Gødning_produktion!J28>0,Gødning_produktion!J28,"") ->  | AB140: =IF(Gødning_produktion!K28>0,Gødning_produktion!K28,"") -> 
A141: I alt/gennemsnit | G141: =IF(Gødning_produktion!D29>0,Gødning_produktion!D29,"") -> - | J141: =IF(Gødning_produktion!E29>0,Gødning_produktion!E29,"") ->  | M141: =IF(Gødning_produktion!F29>0,Gødning_produktion!F29,"") ->  | P141: =IF(Gødning_produktion!G29>0,Gødning_produktion!G29,"") ->  | S141: =IF(Gødning_produktion!H29>0,Gødning_produktion!H29,"") ->  | V141: =IF(Gødning_produktion!I29>0,Gødning_produktion!I29,"") ->  | Y141: =IF(Gødning_produktion!J29>0,Gødning_produktion!J29,"") ->  | AB141: =IF(Gødning_produktion!K29>0,Gødning_produktion!K29,"") -> 
A144: Gødningsmængder til rådighed i alt
A145: Gødningsmængde i alt | U145: =IF(Gødning_produktion!D30>0,Gødning_produktion!D30,"") ->  | Y145: ton
A146: Total-kvælstof | U146: =IF(Gødning_produktion!F30>0,Gødning_produktion!F30,"") ->  | Y146: kg total-N
A147: Ammonium-kvælstof | U147: =IF(Gødning_produktion!G30>0,Gødning_produktion!G30,"") ->  | Y147: kg NH4-N
A148: Fosfor | U148: =IF(Gødning_produktion!H30>0,Gødning_produktion!H30,"") ->  | Y148: kg P
A149: Kalium | U149: =IF(Gødning_produktion!I30>0,Gødning_produktion!I30,"") ->  | Y149: kg K
A150: Gennemsnitspris | U150: =Gødning_produktion!E29 -> 0 | Y150: kroner pr. ton
A151: Pris for udbringning og transport i gennemsnit | U151: =Gødning_produktion!D33 -> 0 | Y151: kroner pr. ton
A153: Oplysninger om gødningstilførslen
A154: Maksimalt tilladte mængder udbragt:
A155: Max. tilførsel af udnyttet N pr. ha | U155: =IF('Alt1'!$F$21>0,'Alt1'!$F$21,"") -> 50 | Y155: kg udnyttet N pr. ha
A156: Max. tilladt tilførsel af NH4-N pr. ha | U156: =IF('Alt1'!$F$22>0,'Alt1'!$F$22,"") ->  | Y156: kg NH4-N pr. ha
A157: Max. tilladt tilførsel af NH4-N i alt | U157: =IF('Alt1'!$F$24>0,'Alt1'!$F$24,"") ->  | Y157: kg NH4-N
A158: -heraf tilført ved efterårsgødskning | U158: =IF('Alt1'!$F$25>0,'Alt1'!$F$25,0) -> 0 | Y158: kg NH4-N
A159: -heraf maksimal tilladt tilførsel ved forårsgødskningen | U159: =IF('Alt1'!$F$26>0,'Alt1'!$F$26,"") ->  | Y159: kg NH4-N
A161: Faktisk fordelte næringsstofmængder:
A162: Totalkvælstof | U162: =IF('Alt1'!$F$32>0,'Alt1'!$F$32,"") ->  | Y162: kg total-N pr. ha
A163: Ammoniumkvælstof | U163: =IF('Alt1'!$F$33>0,'Alt1'!$F$33,"") ->  | Y163: kg NH4-N pr. ha
A164: Fosfor | U164: =IF('Alt1'!$F$34>0,'Alt1'!$F$34,"") ->  | Y164: kg fosfor pr. ha
A165: Kalium | U165: =IF('Alt1'!$F$35>0,'Alt1'!$F$35,"") ->  | Y165: kg kalium pr. ha
AB168: Side 3 af 4
A169: Beregningsgrundlag for: | M169: =IF(Forside!F32<>"",Forside!F32,"Alternativ 1") -> Alternativ 2
A171: Sædskifte
O172: Areal, | R172: Gødningstilførsel | X172: Udbytte | AA172: DB II
A173: Forfrugt | H173: Afgrøde | O173: hektar | R173: ton/ha | U173: kg NH4/ha | X173: ae, hkg/ha | AA173: kr. pr. ha
A174: =IF('Alt2'!$C$8>1,INDEX(Optimering,'Alt2'!$C$8,1),"") ->  | H174: =IF('Alt2'!$E$8>1,INDEX(Optimering,'Alt2'!$E$8,1),"") ->  | O174: =IF('Alt2'!$E$8>1,'Alt2'!$F$8,"") ->  | R174: =IF('Alt2'!$E$8>1,'Alt2'!$AA$8,"") ->  | U174: =IF('Alt2'!$E$8>1,'Alt2'!$M$8,"") ->  | X174: =IF('Alt2'!$E$8>1,'Alt2'!$N$8,"") ->  | AA174: =IF('Alt2'!$E$8>1,'Alt2'!$Q$8,"") -> 
A175: =IF('Alt2'!$C$9>1,INDEX(Optimering,'Alt2'!$C$9,1),"") ->  | H175: =IF('Alt2'!$E$9>1,INDEX(Optimering,'Alt2'!$E$9,1),"") ->  | O175: =IF('Alt2'!$E$9>1,'Alt2'!$F$9,"") ->  | R175: =IF('Alt2'!$E$9>1,'Alt2'!$AA$9,"") ->  | U175: =IF('Alt2'!$E$9>1,'Alt2'!$M$9,"") ->  | X175: =IF('Alt2'!$E$9>1,'Alt2'!$N$9,"") ->  | AA175: =IF('Alt2'!$E$9>1,'Alt2'!$Q$9,"") -> 
A176: =IF('Alt2'!$C$10>1,INDEX(Optimering,'Alt2'!$C$10,1),"") ->  | H176: =IF('Alt2'!$E$10>1,INDEX(Optimering,'Alt2'!$E$10,1),"") ->  | O176: =IF('Alt2'!$E$10>1,'Alt2'!$F$10,"") ->  | R176: =IF('Alt2'!$E$10>1,'Alt2'!$AA$10,"") ->  | U176: =IF('Alt2'!$E$10>1,'Alt2'!$M$10,"") ->  | X176: =IF('Alt2'!$E$10>1,'Alt2'!$N$10,"") ->  | AA176: =IF('Alt2'!$E$10>1,'Alt2'!$Q$10,"") -> 
A177: =IF('Alt2'!$C$11>1,INDEX(Optimering,'Alt2'!$C$11,1),"") ->  | H177: =IF('Alt2'!$E$11>1,INDEX(Optimering,'Alt2'!$E$11,1),"") ->  | O177: =IF('Alt2'!$E$11>1,'Alt2'!$F$11,"") ->  | R177: =IF('Alt2'!$E$11>1,'Alt2'!$AA$11,"") ->  | U177: =IF('Alt2'!$E$11>1,'Alt2'!$M$11,"") ->  | X177: =IF('Alt2'!$E$11>1,'Alt2'!$N$11,"") ->  | AA177: =IF('Alt2'!$E$11>1,'Alt2'!$Q$11,"") -> 
A178: =IF('Alt2'!$C$12>1,INDEX(Optimering,'Alt2'!$C$12,1),"") ->  | H178: =IF('Alt2'!$E$12>1,INDEX(Optimering,'Alt2'!$E$12,1),"") ->  | O178: =IF('Alt2'!$E$12>1,'Alt2'!$F$12,"") ->  | R178: =IF('Alt2'!$E$12>1,'Alt2'!$AA$12,"") ->  | U178: =IF('Alt2'!$E$12>1,'Alt2'!$M$12,"") ->  | X178: =IF('Alt2'!$E$12>1,'Alt2'!$N$12,"") ->  | AA178: =IF('Alt2'!$E$12>1,'Alt2'!$Q$12,"") -> 
A179: =IF('Alt2'!$C$13>1,INDEX(Optimering,'Alt2'!$C$13,1),"") ->  | H179: =IF('Alt2'!$E$13>1,INDEX(Optimering,'Alt2'!$E$13,1),"") ->  | O179: =IF('Alt2'!$E$13>1,'Alt2'!$F$13,"") ->  | R179: =IF('Alt2'!$E$13>1,'Alt2'!$AA$13,"") ->  | U179: =IF('Alt2'!$E$13>1,'Alt2'!$M$13,"") ->  | X179: =IF('Alt2'!$E$13>1,'Alt2'!$N$13,"") ->  | AA179: =IF('Alt2'!$E$13>1,'Alt2'!$Q$13,"") -> 
A180: =IF('Alt2'!$C$14>1,INDEX(Optimering,'Alt2'!$C$14,1),"") ->  | H180: =IF('Alt2'!$E$14>1,INDEX(Optimering,'Alt2'!$E$14,1),"") ->  | O180: =IF('Alt2'!$E$14>1,'Alt2'!$F$14,"") ->  | R180: =IF('Alt2'!$E$14>1,'Alt2'!$AA$14,"") ->  | U180: =IF('Alt2'!$E$14>1,'Alt2'!$M$14,"") ->  | X180: =IF('Alt2'!$E$14>1,'Alt2'!$N$14,"") ->  | AA180: =IF('Alt2'!$E$14>1,'Alt2'!$Q$14,"") -> 
A181: =IF('Alt2'!$C$15>1,INDEX(Optimering,'Alt2'!$C$15,1),"") ->  | H181: =IF('Alt2'!$E$15>1,INDEX(Optimering,'Alt2'!$E$15,1),"") ->  | O181: =IF('Alt2'!$E$15>1,'Alt2'!$F$15,"") ->  | R181: =IF('Alt2'!$E$15>1,'Alt2'!$AA$15,"") ->  | U181: =IF('Alt2'!$E$15>1,'Alt2'!$M$15,"") ->  | X181: =IF('Alt2'!$E$15>1,'Alt2'!$N$15,"") ->  | AA181: =IF('Alt2'!$E$15>1,'Alt2'!$Q$15,"") -> 
A182: =IF('Alt2'!$C$16>1,INDEX(Optimering,'Alt2'!$C$16,1),"") ->  | H182: =IF('Alt2'!$E$16>1,INDEX(Optimering,'Alt2'!$E$16,1),"") ->  | O182: =IF('Alt2'!$E$16>1,'Alt2'!$F$16,"") ->  | R182: =IF('Alt2'!$E$16>1,'Alt2'!$AA$16,"") ->  | U182: =IF('Alt2'!$E$16>1,'Alt2'!$M$16,"") ->  | X182: =IF('Alt2'!$E$16>1,'Alt2'!N130,"") ->  | AA182: =IF('Alt2'!$E$16>1,'Alt2'!$Q$16,"") -> 
A183: =IF('Alt2'!$C$17>1,INDEX(Optimering,'Alt2'!$C$17,1),"") ->  | H183: =IF('Alt2'!$E$17>1,INDEX(Optimering,'Alt2'!$E$17,1),"") ->  | O183: =IF('Alt2'!$E$17>1,'Alt2'!$F$17,"") ->  | R183: =IF('Alt2'!$E$17>1,'Alt2'!$AA$17,"") ->  | U183: =IF('Alt2'!$E$17>1,'Alt2'!$M$17,"") ->  | X183: =IF('Alt2'!$E$17>1,'Alt2'!N131,"") ->  | AA183: =IF('Alt2'!$E$17>1,'Alt2'!$Q$17,"") -> 
A184: =IF('Alt2'!$C$18>1,INDEX(Optimering,'Alt2'!$C$18,1),"") ->  | H184: =IF('Alt2'!$E$18>1,INDEX(Optimering,'Alt2'!$E$18,1),"") ->  | O184: =IF('Alt2'!$E$18>1,'Alt2'!$F$18,"") ->  | R184: =IF('Alt2'!$E$18>1,'Alt2'!$AA$18,"") ->  | U184: =IF('Alt2'!$E$18>1,'Alt2'!$M$18,"") ->  | X184: =IF('Alt2'!$E$18>1,'Alt2'!$N$18,"") ->  | AA184: =IF('Alt2'!$E$18>1,'Alt2'!$Q$18,"") -> 
A185: I alt | O185: =IF('Alt2'!$F$19>0,'Alt2'!$F$19,"") ->  | R185: =IF('Alt2'!$AA$19>0,'Alt2'!$AA$19,"") ->  | U185: =IF('Alt2'!$M$19>0,'Alt2'!$M$19,"") ->  | AA185: =IF('Alt2'!$Q$19>0,'Alt2'!$Q$19,"") -> 
A188: Gødningstyper og -mængder til rådighed
G189: Mængde | J189: Pris | M189: Total-N | P189: NH4-N | S189: P | V189: K | Y189: Økologi- | AB189: N-udnyt-
G190: ton | J190: kr. pr. ton | M190: kg pr. ton | P190: kg pr. ton | S190: kg pr. ton | V190: kg pr. ton | Y190: andel, % | AB190: telse, pct,
A191: =IF(Gødning_produktion!C40>1,INDEX(Gødningsdatabase,Gødning_produktion!C40,1),"") ->  | G191: =IF(Gødning_produktion!D40>0,Gødning_produktion!D40,"") ->  | J191: =IF(Gødning_produktion!E40>0,Gødning_produktion!E40,"") ->  | M191: =IF(Gødning_produktion!F40>0,Gødning_produktion!F40,"") ->  | P191: =IF(Gødning_produktion!G40>0,Gødning_produktion!G40,"") ->  | S191: =IF(Gødning_produktion!H40>0,Gødning_produktion!H40,"") ->  | V191: =IF(Gødning_produktion!I40>0,Gødning_produktion!I40,"") ->  | Y191: =IF(Gødning_produktion!J40>0,Gødning_produktion!J40,"") ->  | AB191: =IF(Gødning_produktion!K40>0,Gødning_produktion!K40,"") -> 
A192: =IF(Gødning_produktion!C41>1,INDEX(Gødningsdatabase,Gødning_produktion!C41,1),"") ->  | G192: =IF(Gødning_produktion!D41>0,Gødning_produktion!D41,"") ->  | J192: =IF(Gødning_produktion!E41>0,Gødning_produktion!E41,"") ->  | M192: =IF(Gødning_produktion!F41>0,Gødning_produktion!F41,"") ->  | P192: =IF(Gødning_produktion!G41>0,Gødning_produktion!G41,"") ->  | S192: =IF(Gødning_produktion!H41>0,Gødning_produktion!H41,"") ->  | V192: =IF(Gødning_produktion!I41>0,Gødning_produktion!I41,"") ->  | Y192: =IF(Gødning_produktion!J41>0,Gødning_produktion!J41,"") ->  | AB192: =IF(Gødning_produktion!K41>0,Gødning_produktion!K41,"") -> 
A193: =IF(Gødning_produktion!C42>1,INDEX(Gødningsdatabase,Gødning_produktion!C42,1),"") ->  | G193: =IF(Gødning_produktion!D42>0,Gødning_produktion!D42,"") ->  | J193: =IF(Gødning_produktion!E42>0,Gødning_produktion!E42,"") ->  | M193: =IF(Gødning_produktion!F42>0,Gødning_produktion!F42,"") ->  | P193: =IF(Gødning_produktion!G42>0,Gødning_produktion!G42,"") ->  | S193: =IF(Gødning_produktion!H42>0,Gødning_produktion!H42,"") ->  | V193: =IF(Gødning_produktion!I42>0,Gødning_produktion!I42,"") ->  | Y193: =IF(Gødning_produktion!J42>0,Gødning_produktion!J42,"") ->  | AB193: =IF(Gødning_produktion!K42>0,Gødning_produktion!K42,"") -> 
A194: =IF(Gødning_produktion!C43>1,INDEX(Gødningsdatabase,Gødning_produktion!C43,1),"") ->  | G194: =IF(Gødning_produktion!D43>0,Gødning_produktion!D43,"") ->  | J194: =IF(Gødning_produktion!E43>0,Gødning_produktion!E43,"") ->  | M194: =IF(Gødning_produktion!F43>0,Gødning_produktion!F43,"") ->  | P194: =IF(Gødning_produktion!G43>0,Gødning_produktion!G43,"") ->  | S194: =IF(Gødning_produktion!H43>0,Gødning_produktion!H43,"") ->  | V194: =IF(Gødning_produktion!I43>0,Gødning_produktion!I43,"") ->  | Y194: =IF(Gødning_produktion!J43>0,Gødning_produktion!J43,"") ->  | AB194: =IF(Gødning_produktion!K43>0,Gødning_produktion!K43,"") -> 
A195: =IF(Gødning_produktion!C44>1,INDEX(Gødningsdatabase,Gødning_produktion!C44,1),"") ->  | G195: =IF(Gødning_produktion!D44>0,Gødning_produktion!D44,"") ->  | J195: =IF(Gødning_produktion!E44>0,Gødning_produktion!E44,"") ->  | M195: =IF(Gødning_produktion!F44>0,Gødning_produktion!F44,"") ->  | P195: =IF(Gødning_produktion!G44>0,Gødning_produktion!G44,"") ->  | S195: =IF(Gødning_produktion!H44>0,Gødning_produktion!H44,"") ->  | V195: =IF(Gødning_produktion!I44>0,Gødning_produktion!I44,"") ->  | Y195: =IF(Gødning_produktion!J44>0,Gødning_produktion!J44,"") ->  | AB195: =IF(Gødning_produktion!K44>0,Gødning_produktion!K44,"") -> 
A196: =IF(Gødning_produktion!C45>1,INDEX(Gødningsdatabase,Gødning_produktion!C45,1),"") ->  | G196: =IF(Gødning_produktion!D45>0,Gødning_produktion!D45,"") ->  | J196: =IF(Gødning_produktion!E45>0,Gødning_produktion!E45,"") ->  | M196: =IF(Gødning_produktion!F45>0,Gødning_produktion!F45,"") ->  | P196: =IF(Gødning_produktion!G45>0,Gødning_produktion!G45,"") ->  | S196: =IF(Gødning_produktion!H45>0,Gødning_produktion!H45,"") ->  | V196: =IF(Gødning_produktion!I45>0,Gødning_produktion!I45,"") ->  | Y196: =IF(Gødning_produktion!J45>0,Gødning_produktion!J45,"") ->  | AB196: =IF(Gødning_produktion!K45>0,Gødning_produktion!K45,"") -> 
A197: I alt/gennemsnit | G197: =IF(Gødning_produktion!D46>0,Gødning_produktion!D46,"") -> - | J197: =IF(Gødning_produktion!E46>0,Gødning_produktion!E46,"") ->  | M197: =IF(Gødning_produktion!F46>0,Gødning_produktion!F46,"") ->  | P197: =IF(Gødning_produktion!G46>0,Gødning_produktion!G46,"") ->  | S197: =IF(Gødning_produktion!H46>0,Gødning_produktion!H46,"") ->  | V197: =IF(Gødning_produktion!I46>0,Gødning_produktion!I46,"") ->  | Y197: =IF(Gødning_produktion!J46>0,Gødning_produktion!J46,"") ->  | AB197: =IF(Gødning_produktion!K46>0,Gødning_produktion!K46,"") -> 
A200: Gødningsmængder til rådighed i alt
A201: Gødningsmængde i alt | U201: =IF(Gødning_produktion!D47>0,Gødning_produktion!D47,"") ->  | Y201: ton
A202: Total-kvælstof | U202: =IF(Gødning_produktion!F47>0,Gødning_produktion!F47,"") ->  | Y202: kg total-N
A203: Ammonium-kvælstof | U203: =IF(Gødning_produktion!G47>0,Gødning_produktion!G47,"") ->  | Y203: kg NH4-N
A204: Fosfor | U204: =IF(Gødning_produktion!H47>0,Gødning_produktion!H47,"") ->  | Y204: kg P
A205: Kalium | U205: =IF(Gødning_produktion!I47>0,Gødning_produktion!I47,"") ->  | Y205: kg K
A206: Gennemsnitspris | U206: =Gødning_produktion!E46 -> 0 | Y206: kroner pr. ton
A207: Pris for udbringning og transport i gennemsnit | U207: =Gødning_produktion!D50 -> 0 | Y207: kroner pr. ton
A209: Oplysninger om gødningstilførslen
A210: Maksimalt tilladte mængder udbragt:
A211: Max. tilførsel af udnyttet N pr. ha | U211: =IF('Alt2'!$F$21>0,'Alt2'!$F$21,"") -> 50 | Y211: kg udnyttet N pr. ha
A212: Max. tilladt tilførsel af NH4-N pr. ha | U212: =IF('Alt2'!$F$22>0,'Alt2'!$F$22,"") ->  | Y212: kg NH4-N pr. ha
A213: Max. tilladt tilførsel af NH4-N i alt | U213: =IF('Alt2'!$F$24>0,'Alt2'!$F$24,"") ->  | Y213: kg NH4-N
A214: -heraf tilført ved efterårsgødskning | U214: =IF('Alt2'!$F$25>0,'Alt2'!$F$25,0) -> 0 | Y214: kg NH4-N
A215: -heraf maksimal tilladt tilførsel ved forårsgødskningen | U215: =IF('Alt2'!$F$26>0,'Alt2'!$F$26,"") ->  | Y215: kg NH4-N
A217: Faktisk fordelte næringsstofmængder:
A218: Totalkvælstof | U218: =IF('Alt2'!$F$32>0,'Alt2'!$F$32,"") ->  | Y218: kg total-N pr. ha
A219: Ammoniumkvælstof | U219: =IF('Alt2'!$F$33>0,'Alt2'!$F$33,"") ->  | Y219: kg NH4-N pr. ha
A220: Fosfor | U220: =IF('Alt2'!$F$34>0,'Alt2'!$F$34,"") ->  | Y220: kg fosfor pr. ha
A221: Kalium | U221: =IF('Alt2'!$F$35>0,'Alt2'!$F$35,"") ->  | Y221: kg kalium pr. ha
AB224: Side 4 af 4

Sheet Omkostninger salgsafgrøder
A1: Prisforudsætninger for salgsafgrøder
A3: Udarbejdet til: | B3: ØKOLOGIKALKULER 2021 OG 2022
B4: Økologikalkuler er udarbejdet ud fra FarmtalOnline for 2021 og anslåede priser for 2022.
B5: Bemærk ved gødningsomkostningerne, at gødningstilførslen er 70 kg N fra svinegylle. Det er den mængde,
B6: der kan/må "importeres" som konv. gødning. Forudsætningerne skal altid tilpasses de individuelle forhold.
A7: Af: | B7: P.Mejnertsen, Tove Serup og Kirstine Flintholm Jørgensen
A9: ØKOLOGIKALKULER 2010 | B9: Jordtype: | C9: 1&3 | D9: En- | F9: Kroner/enhed | K9: Ændring
A10: Salgspriser, gennems. 4. kvartal | C10: 5&6 | D10: hed | E10: 2021 | H10: 2022 | K10: Kroner | L10: Pct.
A12: Byg | D12: Kg | E12: 1.35 | H12: 1.3 | K12: =H12-E12 -> -0.05 | L12: =K12*100/E12 -> -3.703703704
A13: Byg/ærter i blanding pris 50-50 | D13: Kg | E13: =(E12+E21)/2 -> 2.1 | H13: =(H12+H21)/2 -> 2.025 | K13: -0.075 | L13: -3.571428571
A14: Vårhvede/ærter i blanding | D14: Kg | E14: =(E17+E21)/2 -> 2.575 | H14: =(H17+H21)/2 -> 2.525 | K14: -0.05 | L14: -1.941747573
A15: Vårtriticale | D15: Kg | E15: 1.7 | H15: 1.6 | K15: -0.1 | L15: -5.882352941
A16: Havre | D16: Kg | E16: 1.3 | H16: 1.2 | K16: -0.1 | L16: -7.692307692
A17: Vårhvede, brød | D17: Kg | E17: 2.3 | H17: 2.3 | K17: 0 | L17: 0
A18: Vinterhvede | D18: Kg | E18: 1.75 | H18: 1.75 | K18: 0 | L18: 0
A19: Vintertriticale | D19: Kg | E19: 1.75 | H19: 1.75 | K19: 0 | L19: 0
A20: Brødrug | D20: Kg | E20: 1.35 | H20: 1.3 | K20: -0.05 | L20: -3.703703704 | N20: Vintrerug er mere dækkende
A21: Ærter | D21: Kg | E21: 2.85 | H21: 2.75 | K21: -0.1 | L21: -3.50877193
A22: Lupiner | D22: Kg | E22: 2.95 | H22: 2.95 | K22: 0 | L22: 0
A23: Hestebønner | D23: Kg | E23: 2.95 | H23: 2.95 | K23: 0 | L23: 0
A24: Vinterraps | D24: Kg | E24: 6.1 | H24: 6.1 | K24: 0 | L24: 0
A25: Lucerne, tørret øko pris | D25: Kg | E25: 0.4 | H25: 0.4 | K25: 0 | L25: 0
A26: Alm. rajgræs, gns.tidl.&sildig Konv | D26: Kg | E26: 12 | H26: 12 | K26: 0 | L26: 0
A27: Hvidkløver, 25+30 Konv | D27: Kg | E27: 45 | H27: 45 | K27: 0 | L27: 0
A28: Rødkløver, 25+20 Konv | D28: Kg | E28: 35 | H28: 38 | K28: 3 | L28: 8.571428571
A29: Spisekartofler | D29: HKg | E29: 220 | H29: 220 | K29: 0 | L29: 0
A30: EU´s støtteordninger incl.udligningsstøtte
A31: Økologi-støtte | D31: Ha | E31: 870 | H31: 870 | K31: =H31-E31 -> 0 | L31: =K31*100/E31 -> 0
A32: Købspriser.
A33: Udsæd*), hvede | D33: Kg | E33: 4.9 | H33: 4.9 | K33: =H33-E33 -> 0 | L33: =K33*100/E33 -> 0
A34: vårbyg | D34: Kg | E34: 4.3 | H34: 4.3 | K34: =H34-E34 -> 0 | L34: =K34*100/E34 -> 0
A35: vårtriticale | D35: Kg | E35: 4.9 | H35: 4.9 | K35: =H35-E35 -> 0 | L35: 0
A36: vårhvede, brød | D36: Kg | E36: 4.4 | H36: 4.4 | K36: 0 | L36: 0
A37: havre | D37: Kg | E37: 4.2 | H37: 4.2 | K37: 0 | L37: 0
A38: rug, brød | D38: Kg | E38: 4.8 | H38: 4.8 | K38: 0 | L38: 0 | N38: Mangler en linje til hybrid og så tror jeg bare det skal hedde "vinterrug"
A39: ærter | D39: Kg | E39: 5.5 | H39: 5.5 | K39: 0 | L39: 0
A40: lupiner | D40: Kg | E40: 7 | H40: 7 | K40: 0 | L40: 0
A41: hestebønner | D41: Kg | E41: 5.5 | H41: 5.5 | K41: 0 | L41: 0
A42: alm. rajgræs | D42: Kg | E42: 55 | H42: 55 | K42: 0 | L42: 0
A43: hvidkløver | D43: Kg | E43: 190 | H43: 190 | K43: 0 | L43: 0
A44: rødkløver | D44: Kg | E44: 175 | H44: 175 | K44: 0 | L44: 0
A45: vinterraps | D45: Kg | E45: 135 | H45: 135 | K45: 0 | L45: 0
A46: Spisekartofler | D46: Kg | E46: 4 | H46: 4 | K46: 0 | L46: 0
A47: kløvergræs, 2-årig bl 22 økologisk | D47: Kg | E47: 80 | H47: 80 | K47: 0 | L47: 0
A48: Husdyrgødning, svin | D48: Tons | E48: 40 | H48: 40 | K48: 0 | L48: 0
A49: Kvælstof | E49: 5.3 | H49: 5.4
A50: Fosfor(P) i tripels. fosfat | D50: Kg | E50: 9 | H50: 9 | K50: 0 | L50: =K50*100/E50 -> 0
A51: Kalium(K) i kaliumchlorid | D51: Kg | E51: 5.5 | H51: 6 | K51: 0.5 | L51: =K51*100/E51 -> 9.090909091
A52: Udnuttelses % i husdyrgødning | D52: % | E52: 0.75 | H52: 0.75
A53: Kg N pr. tons husdyrgødning | D53: kg | E53: 4.35 | H53: 4.35
A54: Kg P pr. tons husdyrgødning | D54: kg | E54: 0.95 | H54: 0.95
A55: Kg K pr. tons husdyrgødning | D55: kg | E55: 2.24 | H55: 2.24
A56: Bindegarn, storballer | D56: Kg | K56: 0
A57: Tørring, korn, 4 pct | D57: Hkg | E57: 10.2 | H57: 10.2 | K57: 0 | L57: =K57*100/E57 -> 0
A58: Tørring, ærter, 5 pct | D58: Hkg | E58: 17.75 | H58: 17.75 | K58: 0 | L58: 0
A59: Tørring, rug, lupiner,hestebønner, 6 pct | D59: Hkg | E59: 22.75 | H59: 22.75 | K59: 0 | L59: 0
A60: Tørring, vinterraps, 4 pct | D60: Hkg | E60: 17.6 | H60: 17.6 | K60: 0 | L60: 0
A61: Analyse m.v., raps | B61: kr/ha | D61: Ha | E61: 110 | H61: 110 | K61: 0 | L61: 0
A62: Tørring, frø 10 pct. | D62: Hkg | E62: 32 | H62: 32 | K62: 0 | L62: 0
A63: Rensning, alm rajgræs, 30% | D63: Kg | E63: 0.54 | H63: 0.54 | K63: 0 | L63: 0
A65: Certificering af frø | D65: Ha | E65: 175 | H65: 175 | K65: 0 | L65: =K65*100/E65 -> 0
A66: Leje af bistader 2 /ha | D66: Ha | E66: 600 | H66: 600 | K66: 0 | L66: 0
A67: Rensning, hvidkløver, 30 % | D67: Kg | E67: 0.68 | H67: 0.68 | K67: 0 | L67: 0
A68: Rensning, rødkløver, 30% | D68: Kg | E68: 0.81 | H68: 0.81 | K68: 0 | L68: 0
A69: Kartoffelsortering og oplagring, uden køl | D69: Hkg | E69: 30 | H69: 30 | K69: 0 | L69: 0
A70: Kartoffelsortering (uden oplagring og køl) | D70: Hkg | E70: 20 | H70: 20 | K70: 0 | L70: 0
A71: Fragt af kartofler | D71: Hkg | E71: 7 | H71: 7 | K71: 0 | L71: 0
A72: =NOW() -> 2021-09-11T12:39:09.730 | B72: *) Vintersæd=4.kv.før høstår og vårsæd=1.kv.i høstår.
A73: =B3 -> ØKOLOGIKALKULER 2021 OG 2022
F74: Kroner/enhed | K74: Stigning
A75: Interne priser | E75: =E10 -> 2021 | H75: =H10 -> 2022 | K75: Kroner | L75: Pct.
A76: Halm | D76: Tons | E76: 500 | H76: 500 | K76: =H76-E76 -> 0 | L76: =K76*100/E76 -> 0
A77: Vejl. overførselspris på grovfoder | D77: FE | E77: 1.4 | H77: 1.6 | K77: =H77-E77 -> 0.2 | L77: =K77*100/E77 -> 14.28571429
A78: Frasorterede kartofler | D78: Hkg | E78: 35 | H78: 35 | K78: =H78-E78 -> 0 | L78: =K78*100/E78 -> 0
A79: Maskinomkostninger, korn *) | C79: Udbytte**)
A80: Udspredning af husdyrgødning | C80: Kr./tons | D80: =C10 -> 5&6 | E80: 25 | H80: 25 | K80: =H80-E80 -> 0 | L80: =K80*100/E80 -> 0
A81: Ukrudtsharvning | C81: Kr./ha | D81: =C10 -> 5&6 | E81: 175 | H81: 175 | K81: 0 | L81: 0
A82: Komb. harvning & såning | D82: =D80 -> 5&6 | E82: 400 | H82: 400 | K82: 0 | L82: 0
A83: Såning af græsfrø | D83: =D81 -> 5&6 | E83: 220 | H83: 260 | K83: 40 | L83: 18.18181818
A84: Såning, Vaderstad (red.jordbeh.) | D84: 5&6 | E84: 450 | H84: 450 | K84: =H84-E84 -> 0 | L84: =K84*100/E84 -> 0
A85: Tromling | D85: 5&6 | E85: 140 | H85: 150 | K85: 10 | L85: 7.142857143
A86: Sprøjtning | D86: 5&6 | E86: 140 | H86: 140 | K86: 0 | L86: 0
A87: Mejetærskning | C87: 8000 | D87: 5&6 | E87: 829 | H87: 829 | K87: 0 | L87: 0
A88: Hjemkørsel, korn | C88: 8000 | D88: 5&6 | E88: 400 | H88: 400 | K88: 0 | L88: 0
A89: Halmpresning | C89: 3 | D89: 5&6 | E89: 323 | H89: 323 | K89: 0 | L89: 0
A90: Hjemkørsel, halm | C90: 3 | D90: 5&6 | E90: 244 | H90: 244 | K90: 0 | L90: 0
A91: Stubharvning | D91: 5&6 | E91: 225 | H91: 225 | K91: 0 | L91: 0
A92: Pløjning | D92: =C10 -> 5&6 | E92: 725 | H92: 725 | K92: 0 | L92: 0
A94: Maskinomkostninger, andre afgrøder *)
A95: Tillæg til mejetærskning:
A96: Vinterbyg, -triticale og -rug | D96: Ha | E96: 50 | H96: 50 | K96: =H96-E96 -> 0 | L96: =K96*100/E96 -> 0
A97: Frø | B97: Rapsudb. | C97: 2700 | D97: Ha | E97: 450 | H97: 450 | K97: 0 | L97: 0
A98: Ærter | C98: 3500 | D98: Ha | E98: 450 | H98: 450 | K98: 0
A99: Halmsnitning | D99: Ha | E99: 50 | H99: 50 | K99: 0 | L99: 0
A100: Skårlægning, raps | C100: 3500 | D100: =C10 -> 5&6 | E100: 250 | H100: 250 | K100: 0 | L100: 0
A101: Skårlægning, frø | C101: 1000 | D101: =C10 -> 5&6 | E101: 350 | H101: 350 | K101: 0 | L101: 0
A102: Såning, ærter | D102: =C10 -> 5&6 | E102: 275 | H102: 550 | K102: 275 | L102: 100
A103: Hjemkørsel af ærter | C103: 4500 | D103: =C10 -> 5&6 | E103: 325 | H103: 325 | K103: 0 | L103: 0
A104: Kartoffellægning | D104: =D102 -> 5&6 | E104: 1100 | H104: 1100 | K104: 0 | L104: 0
A105: Hypning af kartofler | D105: =D103 -> 5&6 | E105: 325 | H105: 325 | K105: 0 | L105: =K105/E105*100 -> 0
A106: Radrensning | D106: 5&6 | E106: 350 | H106: 350 | K106: 0 | L106: =K106/E106*100 -> 0
A107: Hakning og lugning, kr./ha (50 timer) | C107: kr/time | D107: 5&6 | E107: 150 | H107: 8000 | K107: 7850 | L107: =IF(E107=0,0,K107/E107*100) -> 5233.333333
A109: Aftopning af kartofler | D109: 5&6 | E109: 675 | H109: 675 | K109: 0 | L109: =K109/E109*100 -> 0
A110: Kartoffeloptagn.,spisekart. | C110: 200 | D110: 00:00:00 | E110: 2420 | H110: 2420 | K110: 0 | L110: =K110*100/E110 -> 0
A111: Hjemkørsel af kartofler | C111: 200 | D111: 5&6 | E111: 571 | H111: 571 | K111: 0 | L111: 0
A113: Afbrænding/afpudsning frømarker | E113: 150 | H113: 225 | K113: 75 | L113: 50
A114: Afpudsning, brakmarker | E114: 325 | H114: 350 | K114: 25 | L114: 7.692307692
A115: Diverse stykomk. ved brakmarker | K115: =H115-E115 -> 0 | L115: =IF(E115=0,0,K115*100/E115) -> 0
A116: Vanding, pr ha | E116: 1360 | H116: 1360 | K116: 0 | L116: 0
A117: - do - , pr vanding | E117: 100 | H117: 100 | K117: 0 | L117: 0
A118: - do - , pr mm | E118: 5 | H118: 5 | K118: 0 | L118: 0
A119: *) Priser ved maskinstation er fra Håndbog til Driftsplanlægning 2010 og er reguleret for prisudvikling.
A120: **) Det anførte udbytteniveau er udgangspunkt for korr. til evt. andet udbytteniveau.
A121: =NOW() -> 2021-09-11T12:39:09.730
A122: =B3 -> ØKOLOGIKALKULER 2021 OG 2022
F127: 4
A128: Generelt om afgrødekalkuler
A129: Afgrødekalkulerne for planteavl omfatter de arealmæssigt mest udbredte afgrøder. De viste eksempler er
A130: ikke nødvendigvis repræsentative for landet som helhed. Afgrødekalkulerne kan derfor ikke anvendes som
A131: grundlag for totalopgørelser på lands- eller regionsplan. Der sluttes med dækningsbidrag efter maskin- og
A132: arbejdsomkostning, som også kan kaldes rest til jordleje, driftsledelse og risiko.
A133: Udbytteniveau
A134: Ved opstilling af afgrødekalkuler må udbytteniveauet altid vurderes efter de individuelle forudsætninger.
A135: Her forudsættes udbytteniveauerne at svare til "normaludbyttet" på de jordtyper, der er angivet i kalkulerne.
A136: Et "normaludbytte" er det udbytte, der kan høstes i et normalår, dvs. et år, der ikke er ekstremt vådt eller tørt.
A137: Ved vanding under optimale forhold vil udbyttet på JB 1&3 hæves betydeligt. I sådanne tilfælde skal der
A138: naturligvis tages højde for vandingsomkostninger i kalkulerne. En væsentlig forudsætning for at opnå de
A139: angivne udbytter er en god planteavlsmæssig driftsledelse og et acceptabelt sædskifte.
A141: Jordtyperne karakteriseret ved JB-nummer. | G141: Procent af samlet landbrugsareal
A142: Betegnelse: | C142: JB-nr. | D142: Hele landet | F142: Storstr. amt | H142: Århus amt | K142: Ringkøbing amt
A143: Grovsandet jord | C143: 1 | D143: 24 | F143: 1 | H143: 17 | K143: 59
A144: Finsandet jord | C144: 2 | D144: 10 | F144: 2 | H144: 4 | K144: 8
A145: Lerblandet sandjord | C145: 3&4 | D145: 28 | F145: 12 | H145: 44 | K145: 18
A146: Sandblandet lerjord | C146: 5&6 | D146: 24 | F146: 50 | H146: 24 | K146: 6
A147: Lerjord - siltjord | C147: 7-10 | D147: 7 | F147: 32 | H147: 3 | K147: 2
A148: Humus | C148: 11 | D148: 7 | F148: 3 | H148: 8 | K148: 7
A149: Gødningsniveau
A150: Der er ved alle afgrøder medregnet værdi af 14 tons konv.svinegylle, og der er suppleret med beregnet
A151: bortført mængde af P og K. Der vil være store forskelle på værdi af husdyrgødning, som bl.a.
A152: vil afhænge af husdyrtætheden i det lokale område og specielle forhold på den aktuelle ejendom.
A153: Bortført mængde P og K er i kg rene næringsstoffer og under forudsætning af, at jordens gødningskraft
A154: skal bevares. Der er ikke medtaget omkostninger til Mg, S, kalk og mikronæringsstoffer (ca.120 kr./ha).
A155: Halm er kun sat til værdi ved korn-, ærte- og frøafgrøderne.
A156: Planteværn
A157: Ved økologi anvendes der ikke kemisk planteværn. Derfor er der ingen omkostninger til sprøjtning og
A158: planteværnsmidler. I Markstyring findes yderligere oplysning om planteværn ved de enkelte afgrøder
A159: Maskinomkostninger
A160: I kalkulerne er der ikke angivet omkostninger ved brug af egne maskiner. Som supplement til kalkulerne er
A161: maskinomkostningerne i stedet anført. Det svare ikke til maskinstationspriser. Disse er anført for samtlige markar-
A162: bejder. Hvis arbejdet kan udføres billigere med egne maskiner, bør det betragtes som maskinparkens "fortje-
A163: neste" i stedet for en forøgelse af afgrødens dækningsbidrag. Der er foretaget beregninger for både let og
A164: svær jord. De for alle afgrødekalkuler viste maskinomkostninger ved let jord (nederste linier) er beregnet ud
A165: fra svær jord med ca.5 pct. reduktion for gødningsspredning, harvning og såning samt ca.10 pct. reduktion for
A166: stubharvning og pløjning. Ved høstarbejder er reduktionen på halvdelen af den procentvise udbyttereduktion,
A167: og ved hjemkørsel og indlægning m.v. er reduktionen lig den procentvise udbyttereduktion. Ved en del af-
A168: grøder er udgangspunktet vinterhvede og vårbyghelsæd på svær jord. Omkostn. er derfor ikke altid et beløb,
A169: som er deleligt med 5. Hvis halmen skal snittes, skal der gives et tillæg. Tørringsomkostn. er placeret her,
A170: fordi energi i regnskaber ikke konteres som stykomk. Se også bemærkn. ved prisforudsætninger på side 2.
A171: Med egne maskiner kan der ved marginalbetragtninger være tale om væsentlig lavere omkostninger, idet
A172: forrentning og afskrivning næsten ikke påvirkes ved mindre ændringer i maskinudnyttelsen. Desuden kan
A173: det i visse situationer være relevant at se bort fra aflønning af egen arbejdsindsats.
A174: Forhold der ikke er medtaget i kalkulerne
A175: Forfrugtsvirkning
A176: Ved vurdering af dækningsbidrag eller interne priser for de enkelte afgrøder bør der i vurderingen indgå,
A177: at dyrkning af alle ikke-kornafgrøder samt helsæd giver en forfrugtsvirkning, som bl.a. giver et lavere
A178: kvælstofbehov i de efterfølgende afgrøder.
A179: Størrelsen af forfrugtsvirkningen udtrykt ved merudbytte i korn, vil det følgende dyrkningsår ligge i
A180: intervallet 5-15% afhængig af jordtype og afgrøde. Det aftrappes derefter til 0, i det 3. eller 4. år.
A181: Kalkning og kvikbekæmpelse
A182: Som et gennemsnit kan der i sædskifte anslås følgende omkostninger:
A183: Mekanisk kvikbekæmpelse 200-300 kr./ha/år og kalkning 60 kr./ha/år.
A184: =NOW() -> 2021-09-11T12:39:09.730
F188: =F127+1 -> 5
A189: Vårbyg, uden udlæg (foder)
E191: =E10 -> 2021 | H191: =H10 -> 2022 | K191: =K9 -> Ændring
A192: Jordtype: JB 1&3 u. vanding | E192: Pris | F192: Kroner | H192: Pris | I192: Kroner | K192: Kr | L192: Pct
A193: Udbytte
A194: Kerne, pris 4.kvartal | C194: 2700 | D194: kg | E194: =E12 -> 1.35 | F194: =ROUND(+C194*E194,0) -> 3645 | H194: =H12 -> 1.3 | I194: =ROUND(+H194*C194,0) -> 3510 | K194: =I194-F194 -> -135 | L194: =K194*100/F194 -> -3.703703704
A195: Halm | C195: 1.6 | D195: tons | E195: =E76 -> 500 | F195: =ROUND(+C195*E195,0) -> 800 | H195: =H76 -> 500 | I195: =ROUND(+H195*C195,0) -> 800 | K195: =I195-F195 -> 0 | L195: =IF(F195=0,0,K195*100/F195) -> 0
A196: Økologi-støtte | C196: 1 | D196: ha | E196: =ABS(E31) -> 870 | F196: =ROUND(+C196*E196,0) -> 870 | H196: =ABS(H31) -> 870 | I196: =ROUND(+H196*C196,0) -> 870 | K196: =I196-F196 -> 0 | L196: =IF(F196=0,0,K196*100/F196) -> 0
A197: I alt | F197: =SUM(F194:F196) -> 5315 | I197: =SUM(I194:I196) -> 5180 | K197: =I197-F197 -> -135 | L197: =K197*100/F197 -> -2.539981185
A198: Stykomkostninger
A199: Udsæd | C199: 170 | D199: kg | E199: =E34 -> 4.3 | F199: =ROUND(+C199*E199,0) -> 731 | H199: =H34 -> 4.3 | I199: =ROUND(+H199*C199,0) -> 731 | K199: =I199-F199 -> 0 | L199: =K199*100/F199 -> 0
A200: Gødning | D200: Værdi af svinegylle
A201: Konv. husdyrgødning, svin* | C201: 0 | D201: tons | E201: =E48 -> 40 | F201: =E201*C201 -> 0 | H201: =H48 -> 40 | I201: =H201*C201 -> 0
A202: Kvælstof | C202: 70 | D202: kg | E202: =E49 -> 5.3 | H202: =H49 -> 5.4
A203: Fosfor Bortført | B203: =C194*0.0032+C195*0.8 -> 9.92 | C203: =E54*E52*C201 -> 0 | D203: kg | E203: =E50 -> 9 | H203: =H50 -> 9
A204: Kalium Bortført | B204: =C194*0.004+C195*10.2 -> 27.12 | C204: =E55*E52*C201 -> 0 | D204: kg | E204: =E51 -> 5.5 | H204: =H51 -> 6 | K204: =I204-F204 -> 0 | L204: =IF(F204=0,0,K204*100/F204) -> 0
A206: I alt | F206: =SUM(F199:F205) -> 731 | I206: =SUM(I199:I205) -> 731 | K206: =I206-F206 -> 0 | L206: =K206*100/F206 -> 0
A207: Dækningsbidrag pr ha | F207: =ROUND(+F197-F206,0) -> 4584 | I207: =ROUND(+I197-I206,0) -> 4449 | K207: =I207-F207 -> -135 | L207: =K207*100/F207 -> -2.945026178
A208: DB efter maskin- og arbejdsomkostn. | F208: =F207-F240 -> 1529.784375 | I208: =I207-I240 -> 1384.784375 | K208: =I208-F208 -> -145 | L208: =K208*100/F208 -> -9.478459995
A209: Jordtype: JB | B209: =C10 -> 5&6
A210: Udbytte
A211: Kerne, pris 4.kvartal | C211: 4000 | D211: kg | E211: =E12 -> 1.35 | F211: =ROUND(+C211*E211,0) -> 5400 | H211: =H12 -> 1.3 | I211: =ROUND(+H211*C211,0) -> 5200 | K211: =I211-F211 -> -200 | L211: =K211*100/F211 -> -3.703703704
A212: Halm | C212: 1.9 | D212: tons | E212: =E76 -> 500 | F212: =ROUND(+C212*E212,0) -> 950 | H212: =H76 -> 500 | I212: =ROUND(+H212*C212,0) -> 950 | K212: =I212-F212 -> 0 | L212: =IF(F212=0,0,K212*100/F212) -> 0
A213: Økologi-støtte | C213: 1 | D213: ha | E213: =ABS(E31) -> 870 | F213: =ROUND(+C213*E213,0) -> 870 | H213: =ABS(H31) -> 870 | I213: =ROUND(+H213*C213,0) -> 870 | K213: =I213-F213 -> 0 | L213: =IF(F213=0,0,K213*100/F213) -> 0
A214: I alt | F214: =SUM(F211:F213) -> 7220 | I214: =SUM(I211:I213) -> 7020 | K214: =SUM(K211:K212) -> -200 | L214: =K214*100/F214 -> -2.770083102
A215: Stykomkostninger
A216: Udsæd | C216: 170 | D216: kg | E216: =E34 -> 4.3 | F216: =ROUND(+C216*E216,0) -> 731 | H216: =H34 -> 4.3 | I216: =ROUND(+H216*C216,0) -> 731 | K216: =I216-F216 -> 0 | L216: =K216*100/F216 -> 0
A217: Gødning | D217: Værdi af svinegylle
... 1056 more rows

Sheet Omkostninger grovfoder
A1: Prisforudsætninger for grovfoderafgrøder
A2: Udarbejdet til | B2: ØKOLOGIKALKULER 2010 og 2011
B3: Økologikalkuler er udarbejdet ud fra fakturede priser for 2010 og anslåede priser for 2011.
B4: Bemærk ved gødningsomkostningerne, at gødningstilførslen er 70 kg N fra svinegylle. Det er den mængde,
B5: der kan/må "importeres" som konv. gødning. Forudsætningerne skal altid tilpasses de individuelle forhold.
A6: Af | B6: P.Mejnertsen, Tove Serup og Kirstine Flintholm Jørgensen
A8: ØKOLOGIKALKULER 2010 | B8: Jordtype:JB | C8: 1&3 | D8: En-
A9: Købspriser | B9: Jordtype:JB | C9: 5&6 | D9: hed | E9: 2021
A10: Udsæd*), hvede | D10: Kg | E10: 4.9
A11: vårbyg | D11: Kg | E11: 4.3
A12: ærter | D12: Kg | E12: 5.5
A13: kløvergræs nr Ø 22 | D13: Kg | E13: 80
A14: varigt kl. græs, øko pris (42) | D14: Kg | E14: 78
A15: ital. rajgræs øko pris | D15: Kg | E15: 55
A16: majs (ubejdset) konventionel | D16: Pk | E16: 750
A17: lucerne = konv. Pris | E17: 65
A18: N i NPK og husdyrgødning | D18: Tons | E18: 40
A19: Fosfor(P) i tripels. fosfat | D19: Kg | E19: 9
A20: Kalium(K) i kaliumchlorid | D20: Kg | E20: 6
A21: Kalium Vinasse 21% K og 0,4% N+ Svovl | D21: Kg | E21: 4
A22: Plastik, 12x50x0,1 sort | D22: m² | E22: 2.5
A23: Plastik, superfolie 12x50x0,15 | D23: m² | E23: 2.5
B24: *) Vintersæd=4.kv.før høstår og vårsæd=1.kv.i høstår.
A25: Ha-støtte
A26: Økologi-støtte | D26: Ha | E26: 870
A27: Interne priser
A28: DB vårbyg, efter mask.-&arb.omk.,JB 5-6 | D28: Ha | E28: 2743
A29: Græsudleje, JB 1&3 | D29: Ha | E29: 500
A30: Græsudleje, JB 5-6 | D30: Ha | E30: 1000
A31: DB vårbyg, efter mask.omk. uden vanding, JB1&3 | D31: Ha | E31: 731
A32: Vejl. overførselspris på grovfoder | D32: FE | E32: 1.4
A33: Halm | D33: Hkg | E33: 50
A35: Maskinomkostninger, vårbyg *) | C35: Enhed | D35: JB | E35: 2021
A36: Spredning af husdyrgødning | C36: Tons | D36: =C9 -> 5&6 | E36: 25
A37: Såbedsharvning | C37: Ha | D37: =C9 -> 5&6 | E37: 200
A38: Komb. harvning & såning | C38: Ha | D38: =C9 -> 5&6 | E38: 400
A39: Såning af græsfrø | C39: Ha | D39: =C9 -> 5&6 | E39: 220
A40: Tromling | C40: Ha | D40: =C9 -> 5&6 | E40: 165
A41: Stubharvning | C41: Ha | D41: =C9 -> 5&6 | E41: 225
A42: Pløjning | C42: Ha | D42: =C9 -> 5&6 | E42: 725
A44: Maskinomkostninger, andre afgr *) | C44: Enh. og udbytte**)
A45: Skårlægning, kløvergræs,1.slæt | C45: 7000 | D45: =C9 -> 5&6 | E45: 250
A46: Spredn., kløvergræs,1.slæt | C46: 7000 | D46: =C9 -> 5&6 | E46: 170
A47: Sammenrivn., kløvergræs,1.slæt | C47: 7000 | D47: =C9 -> 5&6 | E47: 170
A48: Snitning, hjemk.+indlægn, kløvergræs, | C48: 7000 | D48: =C9 -> 5&6 | E48: 703
A49: Afgr.(hegn.),kl.græs+helsæd | D49: =C9 -> 5&6 | E49: 425
A50: Skårlægning, kløvergræs 4 slæt, gns., | C50: 8000 | D50: =C9 -> 5&6 | E50: 250
A51: Spredning, kløvergræs 4 slæt, gns. | C51: 8000 | D51: =C9 -> 5&6 | E51: 170
A52: Sammenrivning, kløvergræs 4 slæt, gns. | C52: 8000 | D52: =C9 -> 5&6 | E52: 170
A53: Snitn., hjemkørsel+indl., kløvergræs, gns. | C53: 8000 | D53: =C9 -> 5&6 | E53: 703
A54: Afpudsning, græsmarker | D54: =C9 -> 5&6 | E54: 170
A55: Afgræsn.(hegning),varig græs | D55: =C9 -> 5&6 | E55: 425
A56: Finsnitn., hjemkørsel+indlægn., helsæd | C56: 6700 | D56: =C9 -> 5&6 | E56: 1250
A57: Majs-såning | C57: 9500 | D57: =C9 -> 5&6 | E57: 525
A58: Radrensning af majs | D58: =C9 -> 5&6 | E58: 350
A59: Fladebrænding, silomajs | E59: 850
A61: Majshøstning incl. hjemk.+indlægn. | C61: 9500 | D61: =C9 -> 5&6 | E61: 1750
A62: Vanding, pr ha | E62: 1360
A63: - do - , pr vanding | E63: 100
A64: - do - , pr mm | E64: 5
A65: *) Prisen ved maskinomkostninger er fra www.farmtalonline.dk ingen reguleret for prisudvikling.
A66: Dog er taksten for skårlægn., snitn. og hjemkørsel af kløvergræs 1.slæt ansat efter mundtlige oplysninger.
A67: **) Det anførte udbytteniveau er udgangspunkt for korr. til evt. andet udbytteniveau.
A69: =B2 -> ØKOLOGIKALKULER 2010 og 2011
A72: Sædskiftegræs, 2-års kl.græs, 70 pct. afgræsset. Gns. af 1. og 2. år
E74: =E9 -> 2021
A75: Jordtype: JB 1&3. uvandet | E75: Pris | F75: Kroner
A76: Udbytte | B76: Kg ts./FE
A77: Nettoudbytte | B77: 1.1 | C77: 6000 | D77: FE | E77: =E32 -> 1.4 | F77: =ROUND(+E77*C77,0) -> 8400
A78: Økologi-støtte | C78: 1 | D78: Ha | E78: =E$26 -> 870 | F78: =ROUND(+E78*C78,0) -> 870
A79: I alt | F79: =F77+F78 -> 9270
A80: Stykomkostninger
A81: Udsæd, 50% | C81: 13 | D81: kg | E81: =E13 -> 80 | F81: =ROUND(+E81*C81,0) -> 1040
A82: Gødning | D82: Værdi af svinegylle
A83: Konv. husdyrgødning, svin | C83: 14 | D83: tons | E83: =E18 -> 40
A84: Fosfor Bortført: | B84: =C77*0.0041 -> 24.6 | C84: 0 | D84: kg | E84: =E19 -> 9
A85: Kalium Bortført: | B85: =C77*0.0325 -> 195 | C85: 0 | D85: kg | E85: =E20 -> 6 | F85: =ROUND(+C85*E85+C84*E84+C83*E83,0) -> 560
A86: Diverse, plastic, 0,15 mm | C86: =C77*0.01 -> 60 | D86: m² | E86: =E23 -> 2.5 | F86: =ROUND(+E86*C86,0) -> 150
A87: Stykomkostninger i alt | E87: =F87/C77 -> 0.2916666667 | F87: =SUM(F81:F86) -> 1750
A88: Dækningbidrag | F88: =F79-F87 -> 7520
A89: DB efter maskin- og arb.omk. ved vejl.overf.pris | F89: =F88-F125 -> 5937.928571
A90: Stykomkostn. med maskin- og arbejdsomk. | E90: =F90/C77 -> 0.5553452381 | F90: =F87+F125 -> 3332.071429
A91: Mistet DB af grovfoderareal (DB vårbyg) | F91: =E31 -> 731
A92: INTERN PRIS med maskin- og arb.omk | E92: =F92/C77 -> 0.6771785714 | F92: =F91+F90 -> 4063.071429
A93: Jordtype: JB | B93: =C9 -> 5&6
A94: Udbytte | B94: Kg ts./FE
A95: Nettoudbytte | B95: 1.1 | C95: 6000 | D95: FE | E95: =E32 -> 1.4 | F95: =ROUND(+E95*C95,0) -> 8400
A96: Økologi-støtte | C96: 1 | D96: Ha | E96: =E$26 -> 870 | F96: =ROUND(+E96*C96,0) -> 870
A97: I alt | F97: =F95+F96 -> 9270
A98: Stykomkostninger
A99: Udsæd, 50% | C99: 13 | D99: kg | E99: =E13 -> 80 | F99: =ROUND(+E99*C99,0) -> 1040
A100: Gødning | D100: Værdi af svinegylle
A101: Konv. husdyrgødning, svin | C101: 14 | D101: tons | E101: =E18 -> 40
A102: Fosfor Bortført: | B102: =C95*0.0041 -> 24.6 | C102: 0 | D102: kg | E102: =E19 -> 9
A103: Kalium Bortført: | B103: =C95*0.0325 -> 195 | C103: 0 | D103: kg | E103: =E20 -> 6 | F103: =ROUND(+C103*E103+C102*E102+C101*E101,0) -> 560
A104: Diverse, plastic, 0,15 mm | C104: =C95*0.01 -> 60 | D104: m² | E104: =E23 -> 2.5 | F104: =ROUND(+E104*C104,0) -> 150
A105: Stykomkostninger i alt | E105: =F105/C95 -> 0.2916666667 | F105: =SUM(F99:F104) -> 1750
A106: Dækningbidrag | F106: =F97-F105 -> 7520
A107: DB efter maskin- og arb.omk. ved vejl.overf.pris | F107: =F106-F124 -> 5684.428571
A108: Stykomkostn. med maskin- og arbejdsomk. | E108: =F108/(C95) -> 0.5975952381 | F108: =F105+F124 -> 3585.571429
A109: Mistet DB af grovfoderareal (DB vårbyg) | F109: =E28 -> 2743
A110: INTERN PRIS med maskin- og arb.omk | E110: =F110/(C95) -> 1.054761905 | F110: =F109+F108 -> 6328.571429
A112: Maskin- og arbejdsomkostninger ved brug af maskinstation
A113: Pløjning | C113: 0 | D113: beh. | E113: =E42 -> 725 | F113: =E113*C113 -> 0
A114: Spredning af husdyrgødn. | C114: 14 | D114: tons | E114: =E36 -> 25 | F114: =E114*C114 -> 350
A115: Ukrudtsharvning | C115: 0 | D115: beh. | E115: =E37 -> 200 | F115: =E115*C115 -> 0
A116: Såning | C116: 0.5 | D116: beh. | E116: =E39 -> 220 | F116: =ROUND(+E116*C116,0) -> 110
A117: Tromling | C117: 0 | D117: beh. | E117: =E40 -> 165 | F117: =E117*C117 -> 0
A118: Skårlægning, se bem. *) | C118: 1 | D118: beh. | E118: =E45*(1+C95/C45)/2 -> 232.1428571 | F118: 232.1428571
A119: Spredning, se bem. *) | C119: 0 | D119: beh. | E119: =E46*(1+C95/C46)/2 -> 157.8571429 | F119: 0
A120: Sammenrivning, se bem. *) | C120: 1 | D120: beh. | E120: =E47*(1+C95/C47)/2 -> 157.8571429 | F120: 157.8571429
A121: Snitn., hjemkørsel+indlægning *) | C121: 1 | D121: beh. | E121: =E48*C95/C48 -> 602.5714286 | F121: 602.5714286
A122: Afpudsning | C122: 1 | D122: beh. | E122: =E54 -> 170 | F122: 170
A123: Afgræsning (hegning) | C123: 0.5 | D123: beh. | E123: =E49 -> 425 | F123: =ROUND(+E123*C123,0) -> 213
A124: Maskin- og arbejdsomkostninger i alt | F124: =SUM(F113:F123) -> 1835.571429
A125: - do - ved JB 1&3 | F125: =F113*0.9+F114*0.9+(F115+F116)*0.95+F117+F121*C77/C95+(F118+F119+F120)*(0.5+C77/C95)/1.5+F122 -> 1582.071429
A126: Vanding v.1&3, konstant | C126: 1 | E126: =E$62 -> 1360 | F126: =C126*E126 -> 1360
A127: variabel ved flytning | C127: 4 | D127: gange | E127: =E$63 -> 100 | F127: =C127*E127 -> 400
A128: variabel pr millimeter | C128: 160 | D128: mm. | E128: =E$64 -> 5 | F128: =C128*E128 -> 800
A129: Maskin- og arbejdsomk. incl. vanding, JB 1&3. Udb.=JB 5&6 | F129: =F124+F126+F127+F128 -> 4395.571429
A130: Bemærkning:
A131: Der gives svinegylle alle år. Derfor 14 tons gylle Afgrøden udnyttes i 2 år. Der er regnet med et kløverindhold
A132: på 30-50 pct. N-eftervirkningen af afgrøden i det først følgende år kan være op til ca. 70 kg plantetilgængeligt N.
A133: Ved hegning er der regnet med jernpæle. Beregningerne gælder, når den planlagte mængde til afgræsning
A134: kan udnyttes og den overskydende græsmængde fra 1. og evt. 2.slæt kan ensileres på en effektiv måde.
A135: I sædskiftegræs og 2 års kløvergræs bjærges ca. 30 pct. ved slæt. Derfor faktor 1 ved bjærgningsomkostn.
A136: Der slættes delvis i 1. års og 2. års marken, men i gns. regnes der med 1 slæt pr. ha.
A137: *) Omkostningerne ved skårlægning, spredning, sammenrivn., snitning, hjemkørsel og indlægning gælder,
A138: hvor der er gode forhold, store arealer og vest for Storebælt.
A141: =B2 -> ØKOLOGIKALKULER 2010 og 2011
A146: Kløvergræs, 4 slæt. 1 år.
E148: =E9 -> 2021
A149: Jordtype: JB 1&3. Uvandet | E149: Pris | F149: Kroner
A150: Udbytte | B150: Kg ts./FE
A151: Nettoudbytte | B151: 1.2 | C151: 6800 | D151: FE | E151: =E32 -> 1.4 | F151: =C151*E151 -> 9520 | K151: Ved 2 årig græsmark skal udgift til såning og udsæd sættes op
A152: Økologi-støtte | C152: 1 | D152: Ha | E152: =E$26 -> 870 | F152: =ROUND(+E152*C152,0) -> 870
A153: Stykomkostninger
A154: Udsæd, 50% | C154: 26 | D154: kg | E154: =E13 -> 80 | F154: =ROUND(+E154*C154,0) -> 2080
A155: Gødning | D155: Værdi af svinegylle
A156: Konv. husdyrgødning, svin | C156: 0 | D156: tons | E156: =E18 -> 40
A157: Fosfor Bortført: | B157: =C151*0.0041 -> 27.88 | C157: 0 | D157: kg | E157: =E19 -> 9
A158: Kalium Bortført: | B158: =C151*0.0325 -> 221 | C158: 0 | D158: kg | E158: =E20 -> 6 | F158: =ROUND(+C158*E158+C157*E157+C156*E156,0) -> 0
A159: Diverse, plastic, 0,15 mm | C159: =C151*0.03 -> 204 | D159: m² | E159: =E23 -> 2.5 | F159: =ROUND(+E159*C159,0) -> 510
A160: Stykomkostninger i alt | E160: =F160/C151 -> 0.3808823529 | F160: =SUM(F154:F159) -> 2590
A161: Dækningbidrag | F161: =F152+F151-F160 -> 7800
A162: DB efter maskin- og arb.omk. ved vejl.overf.pris | F162: =F161-F193 -> 3418.55
A163: Stykomkostn. med maskin- og arbejdsomk. | E163: =F163/(C151) -> 1.025213235 | F163: =F160+F197-F194-F195-F196 -> 6971.45
A164: Mistet DB af grovfoderareal (DB vårbyg) | F164: =E31 -> 731
A165: INTERN PRIS med maskin- og arb.omk | E165: =F165/(C151) -> 1.132713235 | F165: =F164+F163 -> 7702.45
A166: Jordtype: JB | B166: =C9 -> 5&6
A167: Udbytte | B167: Kg ts./FE
A168: Nettoudbytte | B168: 1.2 | C168: 7300 | D168: FE | E168: =E32 -> 1.4 | F168: =C168*E168 -> 10220
A169: Økologi-støtte | C169: 1 | D169: Ha | E169: =E$26 -> 870 | F169: =ROUND(+E169*C169,0) -> 870
A170: Stykomkostninger
A171: Udsæd, 50% | C171: 13 | D171: kg | E171: =E13 -> 80 | F171: =ROUND(+E171*C171,0) -> 1040
A172: Gødning | D172: Værdi af svinegylle
A173: Konv. husdyrgødning, svin | C173: 0 | D173: tons | E173: =E18 -> 40
A174: Fosfor Bortført: | B174: =C168*0.0041 -> 29.93 | C174: 0 | D174: kg | E174: =E19 -> 9
A175: Kalium Bortført: | B175: =C168*0.0325 -> 237.25 | C175: 0 | D175: kg | E175: =E20 -> 6 | F175: =ROUND(+C175*E175+C174*E174+C173*E173,0) -> 0
A176: Diverse, plastic, 0,15 mm | C176: =C168*0.03 -> 219 | D176: m² | E176: =E23 -> 2.5 | F176: =ROUND(+E176*C176,0) -> 548
A177: Stykomkostninger i alt | E177: =F177/C168 -> 0.2175342466 | F177: =SUM(F171:F176) -> 1588
A178: Dækningbidrag | F178: =F169+F168-F177 -> 9502
A179: DB efter maskin- og arb.omk. ved vejl.overf.pris | F179: =F178-F192 -> 5109.55
A180: Stykomkostn. med maskin- og arbejdsomk. | E180: =F180/(C168) -> 0.819239726 | F180: =F177+F192 -> 5980.45
A181: Mistet DB af grovfoderareal (DB vårbyg) | F181: =E28 -> 2743
A182: INTERN PRIS med maskin- og arb.omk | E182: =F182/(C168) -> 1.194993151 | F182: =F181+F180 -> 8723.45
A183: Maskin- og arbejdsomkostninger ved brug af maskinstation
A184: Pløjning | C184: 0 | D184: beh. | E184: =E42 -> 725 | F184: =E184*C184 -> 0
A185: Spredning af husdyrgødn. | C185: 0 | D185: tons | E185: =E36 -> 25 | F185: =E185*C185 -> 0
A186: Ukrudtsharvning | C186: 0 | D186: beh. | E186: =E37 -> 200 | F186: =E186*C186 -> 0
A187: Såning | C187: 1 | D187: beh. | E187: =E39 -> 220 | F187: =ROUND(+E187*C187,0) -> 220
A188: Skårlægning, *) | C188: 4 | D188: beh. | E188: =E50*(1+C168/C50)/2 -> 239.0625 | F188: =E188*C188 -> 956.25
A189: Spredning, *) | C189: 0 | D189: beh. | E189: =E51*(1+C168/C50)/2 -> 162.5625 | F189: =E189*C189 -> 0
A190: Sammenrivn. *) | C190: 4 | D190: beh. | E190: =E52*(1+C168/C50)/2 -> 162.5625 | F190: =E190*C190 -> 650.25
A191: Snitn., hjemkørsel+indlægn. *) | C191: 4 | D191: beh. | E191: =E53*C168/C50 -> 641.4875 | F191: =E191*C191 -> 2565.95
A192: Maskin- og arbejdsomkostninger i alt | F192: =SUM(F184:F191) -> 4392.45
A193: - do - ved JB 1&3 | F193: =F192-F184*0.1-(F185+F186+F187)*0.05 -> 4381.45
A194: Vanding v.1&3, konstant | C194: 1 | E194: =E$62 -> 1360 | F194: =C194*E194 -> 1360
A195: variabel ved flytning | C195: 4 | D195: gange | E195: =E$63 -> 100 | F195: =C195*E195 -> 400
A196: variabel pr millimeter | C196: 150 | D196: mm. | E196: =E$64 -> 5 | F196: =C196*E196 -> 750
A197: Maskin- og arbejdsomk. incl. vanding, JB 1&3. Udb.=JB 5&6 | F197: =SUM(F193:F196) -> 6891.45
A198: Bemærkning: Afgrøden henligger i 2 år. Kvælstofeftervirkning det først følgende år kan være op til ca. 50 kg
A199: plantetilgængeligt N. Omkostninger ved høst og hjemkørsel er fastsat af Landskontoret for Planteavl, og er korrigeret for
A200: forskel i udbytte. Omkostningerne for de 4 slæt er for en gns. afgrøde pr.ha (25% af ialt).
A201: *) Omkostningerne ved skårlægning, spredning, sammenrivn., snitning, hjemkørsel og indlægning gælder,
A202: hvor der er gode forhold, store arealer og vest for Storebælt.
A203: Omkostninger pr. slæt: Skårlægning og 50% af spredn., snitning m.m. fordeles efter slæt. Resten efter FE. Det er
A204: forudsat, at 1. slæt er på 30 pct. af afgrøden. | D204: Ialt | F204: 2. slæt
A205: Udbytte, FE og pct.fordeling | C205: =ABS(C168) -> 7300 | D205: 100 | E205: =ROUND(C205*0.01*F205,0) -> 1825 | F205: 25
A206: Omkostninger, 2011-priser | C206: Kr/ha | D206: Øre/FE | E206: Kr/ha | F206: Øre/FE
A207: Stykomk. og mistet DB | C207: =ABS(F177+F181) -> 4331 | D207: =ROUND(C207*100/C205,0) -> 59 | E207: =ROUND(C207*E205/C205,0) -> 1083 | F207: =ROUND(E207*100/E205,0) -> 59
A208: Skårlægning | C208: =CEILING(ABS(F188),1) -> 957 | D208: =ABS(C208*100/C205) -> 13.10958904 | E208: =ROUND(C208*0.25,0) -> 239 | F208: =ABS(E208*100/E205) -> 13.09589041
A209: Spredning | C209: =ABS(F189) -> 0 | D209: =ABS(C209*100/C205) -> 0 | E209: =ROUND(C209*0.5*0.25+C209*0.5*E205/C205,0) -> 0 | F209: =ABS(E209*100/E205) -> 0
A210: Sammenrivning | C210: =ABS(F190) -> 650.25 | D210: =ABS(C210*100/C205) -> 8.907534247 | E210: =ROUND(C210*0.5*0.25+C210*0.5*E205/C205,0) -> 163 | F210: =ABS(E210*100/E205) -> 8.931506849
A211: Snitn., hjemkørsel og indlægning | C211: =ABS(F191) -> 2565.95 | D211: =ABS(C211*100/C205) -> 35.15 | E211: =ROUND(C211*0.5*0.25+C211*0.5*E205/C205,0) -> 641 | F211: =ABS(E211*100/E205) -> 35.12328767
A212: Andre arbejds-og maskinomk. | C212: =ABS(F192-C211-C210-C209-C208) -> 219.25 | D212: =ABS(D213-D207-D208-D209-D211) -> 12.23972603 | E212: =ROUND(C212*E205/C205,0) -> 55 | F212: =ABS(F213-F207-F208-F209-F211) -> 12.28767123
A213: Omkostninger ialt | C213: =ABS(C207+C208+C209+C210+C211+C212) -> 8723.45 | D213: =ABS(C213*100/C205) -> 119.4993151 | E213: =ABS(E207+E208+E209+E210+E211+E212) -> 2181 | F213: =ABS(E213*100/E205) -> 119.5068493
A214: =A68 -> 00:00:00
A215: =B2 -> ØKOLOGIKALKULER 2010 og 2011
A217: Sædskiftegræs, 2-års kl.græs, 70 pct. afgræsset. Gns. af 1. og 2. år
... 585 more rows

Sheet Anlægsdata (hidden)
A1: Biogasanlæg med gasmotor
A2: Biomasse | B2: Investering
A3: ton/år | B3: dkk
A4: 24000 | B4: 6750000
A5: 36000 | B5: 7160000
A6: 49000 | B6: 8760000
A7: 60000 | B7: 9300000
A8: 73000 | B8: 10600000
A9: 85000 | B9: 11100000
A10: 96000 | B10: 11460000 | N10: =B11/A11 -> 107.1818182
A11: 110000 | B11: 11790000
A23: Biogasanlæg uden gasmotor
A24: Biomasse | B24: Investering
A25: ton/år | B25: dkk | N25: AgroBiogas
A26: 24000 | B26: 5280000 | P26: Euro | Q26: Størrelse
A27: 36000 | B27: 5560000 | N27: Anlægs, model | P27: =2136414*7.5 -> 16023105 | Q27: 16575 | R27: ton/year
A28: 49000 | B28: 6060000 | N28: Motor, Model | P28: =846000*7.5 -> 6345000 | Q28: 677 | R28: kWe
A29: 60000 | B29: 6640000
A30: 73000 | B30: 6950000 | N30: Aktuelt anlæg | P30: =(Q30/Q27)^0.6*P27 -> 27589566.1 | Q30: 41000 | R30: ton/year
A31: 85000 | B31: 7250000 | N31: Aktuel motor | P31: =(Q31/Q28)^0.8*P28 -> 29392902.77 | Q31: 4601 | R31: kWe
A32: 96000 | B32: 7385000
A33: 110000 | B33: 7590000 | P33: =P30 -> 27589566.1 | R33: =P31+P30 -> 56982468.88
P34: =P31 -> 29392902.77
P37: 18648100 | Q37: 41000
P38: 6350782 | Q38: 816
P40: 10830198.03 | Q40: 16575
P41: 5398268.248 | Q41: 666
P43: 1444026.404
P44: 719769.0998
A45: Gasmotor
A46: Methan | B46: Investering
A47: Nm3/år | B47: dkk
A48: 480000 | B48: 1470000
A49: 720000 | B49: 1600000
A50: 980000 | B50: 2700000
A51: 1200000 | B51: 2660000
A52: 1460000 | B52: 3650000
A53: 1700000 | B53: 3850000
A54: 1920000 | B54: 4075000
A55: 2200000 | B55: 4200000

Sheet Lundsby (hidden)
A1: Reaktorvolumen | B1: Mængde biomasse/år | C1: Produceret metan | D1: Salg af rågas | E1: Salg af el og varme | G1: Motor | H1: Motor
A2: (2 tanke) | D2: Pris biogasanlæg uden motor | E2: Pris biogasanlæg med motor | F2: Pris motor | G2: behov | H2: installeret | I2: Driftsudgifter | J2: Mandetimer (drift) | K2: Mandetimer (drift)
A3: m3 | D3: incl. Gasrenser | I3: kr pr. år | J3: timer pr. år/uden motor | K3: timer pr. år/med motor
A4: 2000 | B4: 24000 | C4: 480000 | D4: =E4-1470000 -> 5280000 | E4: 6750000 | F4: =E4-D4 -> 1470000 | G4: 220 | H4: 250 | I4: 35000 | J4: 400 | K4: 450
A5: 3000 | B5: 36000 | C5: 720000 | D5: =E5-1600000 -> 5560000 | E5: 7160000 | F5: =E5-D5 -> 1600000 | G5: 330 | H5: 340 | I5: 40000 | J5: 400 | K5: 450
A6: 4000 | B6: 49000 | C6: 980000 | D6: =E6-2700000 -> 6060000 | E6: 8760000 | F6: 2700000 | G6: 450 | H6: 360+100 | I6: 45000 | J6: 400 | K6: 450
A7: 5000 | B7: 60000 | C7: 1200000 | D7: =E7-2660000 -> 6640000 | E7: 9300000 | F7: 2660000 | G7: 550 | H7: 600 | I7: 50000 | J7: 400 | K7: 450
A8: 6000 | B8: 73000 | C8: 1460000 | D8: =E8-3650000 -> 6950000 | E8: 10600000 | F8: 3650000 | G8: 670 | H8: 600+100 | I8: 55000 | J8: 400 | K8: 450
A9: 7000 | B9: 85000 | C9: 1700000 | D9: =E9-3850000 -> 7250000 | E9: 11100000 | F9: 3850000 | G9: 780 | H9: 600+190 | I9: 60000 | J9: 400 | K9: 450
A10: 8000 | B10: 96000 | C10: 1920000 | D10: =E10-4075000 -> 7385000 | E10: 11460000 | F10: 4075000 | G10: 880 | H10: 600+250 | I10: 65000 | J10: 400 | K10: 450
A11: 9000 | B11: 110000 | C11: 2200000 | D11: =E11-4200000 -> 7590000 | E11: 11790000 | F11: 4200000 | G11: 1000 | H11: 1037 | I11: 70000 | J11: 400 | K11: 450
A13: Priser skal gerne være incl. Levering og montering (total nøglefærdigt)
A14: Udgangspunkt er en gasproduktion på ca. 20 Nm3 Metan pr. ton føde.
A16: Hvis det er muligt må du gerne dele anlægsudgifter op i udgifter til faste bygninger, tanke, mm. med lang levetid
A17: og udgifter til inventar, procesudstyr mm. med en noget kortere levetid.
A19: 20 m3 CH4/ ton biomasse
A20: Opholdstid: 30 døgn

Sheet 9. Sædskifte økologi (hidden)
A1: Dækningsbidrag for nudrift og drift med biogasproduktion
A3: Jordtype | B3: Sandjord | C3: rulleliste
B4: Lerjord
A6: Gødning til rådighed
B7: Drift uden biogas | D7: Drift med biogas
A8: Egen gødning | B8: Mængde, t | D8: Mængde, t | G8: N-total i gødning, kg pr. t
A9: Kvæggylle | B9: 57 | D9: 57 | G9: 4.5
A10: Svinegylle | G10: 4.7
A11: Fast gødning, kvæg | B11: 53 | D11: 53 | G11: 7.5
A12: Fast gødning, svin | G12: 9
A13: Fjerkrægødning | G13: 15.5
A14: Dybstrøelse | G14: 11.5
A16: Indkøbt gødning | F16: Pris, kr
A17: Kvæggylle | G17: 3.5
A18: Svinegylle | G18: 4.7
A19: Fjerkrægødning | G19: 15.5
A21: Biogasgylle
A22: Gårdanlæg
A23: Fællesanlæg | G23: 6
A26: Indtast hvor mange ha du har af hver afgrødekategori nedenfor
A27: Gødningen fordeles ud fra en fordelingsnøgle i sædskiftet, som giver den største effekt af N-tildeling:
A28: Forudsætning, at afgrøder uden kvælstoffiksering placeres hvor der er eftervirkning af N
A30: Drift uden biogasproduktion
B31: Total-N, kg | C31: Effektivt N, kg
A32: Samlet forfrugtsværdi i sædskifte | B32: =$L$55 -> 0 | C32: ?
A33: Kvælstof fra husdyrgødning til rådighed | B33: =$D$107 -> 654 | C33: =$F$107 -> 321.478125
A34: I alt til fordeling/placering i sædskifte | B34: =SUM(B32:B33) -> 654
A35: Resterende N til fordeling, kg | B35: =B34-M55 -> -296
D37: Optimal fordeling
A38: Hovedafgrøder: | B38: Areal, ha | C38: Pct. | D38: kg N pr. ha | E38: Udbytte pr. ha | F38: Afgrødepris, kr. pr enhed | G38: Dækningsbidrag pr. ha | H38: Basisudbytte pr. ha | I38: Max. udbytte pr. ha | K38: Eftervirkning kg N pr. ha | L38: Eftervirkning kg N i alt | M38: kg N i alt tildelt/fordelt | N38: Kvælstofrespons, sandjord | O38: Kvælstofrespons, lerjord | P38: Max N pr ha | Q38: Udsæd kr. pr. ha | R38: Udsæd i alt, kr | S38: Maskin og arbejdsomkostninger, kr pr. ha | T38: Maskin og arbejdsomkostninger i alt, kr | U38: Afgrødeværdi, kr
A39: Korn, vårsæd | B39: 19 | C39: =B39/B$51% -> 63.33333333 | D39: 50 | J39: kg | M39: =B39*D39 -> 950
A40: Korn, vintersæd | C40: 0 | D40: 75 | E40: 100 | J40: kg | M40: 0
A41: Majs | C41: 0 | D41: 1000 | J41: FE | M41: 0
A42: Kløvergræs, afgræsning | C42: 0 | J42: FE | M42: 0
A43: Kløvergræs, slæt | B43: 8.5 | C43: 28.33333333 | J43: FE | M43: 0
A44: Kløvergræs, afpudsning | C44: 0 | J44: FE | M44: 0
A45: Bælgsæd | C45: 0 | D45: 0 | J45: kg | M45: 0
A46: Frøgræs | C46: 0 | J46: kg | M46: 0
A47: Vinterraps | C47: 0 | D47: 100 | J47: kg | M47: 0
A48: Grønsager, lavt kvælstofbehov | J48: kg | M48: 0
A49: Grønsager, højt kvælstofbehov | C49: =B49/B$51% -> 0 | J49: kg | M49: 0
A50: Vedvarende græs | B50: 2.5 | C50: =B50/B$51% -> 8.333333333 | J50: FE | M50: 0
A51: I alt | B51: =SUM(B39:B50) -> 30 | C51: =SUM(C39:C50) -> 100
A53: Efterafgrøder | C53: =B53/B51% -> 0
A55: I alt, skjul | L55: =SUM(L39:L50,L53) -> 0 | M55: =SUM(M39:M50,M53) -> 950 | R55: =SUM(R39:R50,R53) -> 0 | T55: =SUM(T39:T50,T53) -> 0 | U55: =SUM(U39:U50,U53) -> 0
A58: Drift med biogasproduktion:
B59: Total-N, kg | C59: Effektivt N, kg
A60: Samlet forfrugtsværdi i sædskifte, kg N
A61: Husdyrgødning til rådighed, kg N
A62: Biogasgylle til rådighed, tons: | B62: =#REF! -> 
A63: kg N pr. ton | B63: =#REF!+#REF! -> 
A64: Biogasgylle til rådighed, kg N: | B64: =B62*B63 -> 
A65: Resterende N til tildeling, kg | B65: =SUM(M69:M82) -> 0
D67: Optimal fordeling | H67: skjules herfra
A68: Hovedafgrøder: | B68: Areal, ha | C68: Pct. | D68: kg N pr. ha | E68: Udbytte pr. ha | F68: Afgrødepris, kr. pr enhed | G68: Dækningsbidrag pr. ha | H68: Basisudbytte pr. ha | I68: Max. udbytte pr. ha | K68: Eftervirkning kg N pr. ha | L68: Eftervirkning kg N i alt | M68: kg N i alt tildelt/fordelt | N68: Kvælstofrespons, sandjord | O68: Kvælstofrespons, lerjord | P68: Max N pr ha | Q68: Udsæd kr. pr. ha | R68: Udsæd i alt, kr | S68: Maskin og arbejdsomkostningeruden udbringning | T68: Maskin og arbejdsomkostninger i alt, kr | U68: Afgrødeværdi, kr
A69: Korn, vårsæd | B69: 19 | C69: =B69/B$83% -> 63.33333333 | J69: kg | M69: =B69*D69 -> 0
A70: Korn, vintersæd | C70: 0 | J70: kg | M70: 0
A71: Majs | C71: 0 | J71: FE | M71: 0
A72: Kløvergræs, afgræsning | C72: 0 | J72: FE | M72: 0
A73: Kløvergræs, slæt | C73: 0 | J73: FE | M73: 0
A74: Kløvergræs, afpudsning | C74: 0 | J74: FE | M74: 0
A75: Kløvergræs, biogas | B75: 8.5 | C75: 28.33333333 | J75: FE | M75: 0
A76: Andre energiafgrøder, biogas | C76: 0 | M76: 0
A77: Bælgsæd | C77: 0 | J77: kg | M77: 0
A78: Frøgræs | C78: 0 | J78: kg | M78: 0
A79: Grønsager, lavt kvælstofbehov | C79: 0 | J79: kg | M79: 0
A80: Grønsager, højt kvælstofbehov | C80: 0 | J80: kg | M80: 0
J81: kg | M81: 0
A82: Vedvarende græs | B82: 2.5 | C82: =B82/B$83% -> 8.333333333 | J82: FE | M82: 0
A83: I alt | B83: =SUM(B69:B82) -> 30 | C83: =SUM(C69:C82) -> 100
A85: Efterafgrøder | C85: =B85/B$83% -> 0
A86: Efterafgrøder, biogas | C86: =B86/B$83% -> 0
A88: I alt, skjul
A90: skjules
A91: Gødning
A93: Drift uden biogasproduktion | B93: tons | C93: kg N pr ton | D93: N-total i alt | E93: Udnyttelsespct. | F93: Effektivt N, kg i alt | G93: Gødningspris, kr. pr ton | H93: Gødningspris i alt | I93: Udbringningspris kr. pr. ton | J93: Udbringningspris i alt, kr
A94: Egen gødning
A95: Kvæggylle | B95: =B9 -> 57 | C95: =G9 -> 4.5 | D95: =B95*C95 -> 256.5 | E95: =D131 -> 66.25 | F95: =D95*E95% -> 169.93125 | H95: =B95*G95 -> 0 | I95: 20 | J95: =B95*I95 -> 1140
A96: Svinegylle | B96: 0 | C96: 4.7 | D96: 0 | E96: 73.75 | F96: 0 | H96: 0 | I96: 20 | J96: 0
A97: Fast gødning, kvæg | B97: 53 | C97: 7.5 | D97: 397.5 | E97: 38.125 | F97: 151.546875 | H97: 0 | I97: 25 | J97: 1325
A98: Fast gødning, svin | B98: 0 | C98: 9 | D98: 0 | E98: 38.125 | F98: 0 | H98: 0 | I98: 25 | J98: 0
A99: Fjerkrægødning | B99: 0 | C99: 15.5 | D99: 0 | E99: 59.375 | F99: 0 | H99: 0 | I99: 25 | J99: 0
A100: Dybstrøelse | B100: 0 | C100: 11.5 | D100: 0 | E100: 30.625 | F100: 0 | H100: 0 | I100: 25 | J100: 0
A102: Indkøbt gødning
A103: Kvæggylle | B103: =B17 -> 0 | C103: =G17 -> 3.5 | D103: =B103*C103 -> 0 | E103: =D139 -> 66.25 | F103: =D103*E103% -> 0 | H103: =B103*G103 -> 0 | I103: 20 | J103: =B103*I103 -> 0
A104: Svinegylle | B104: =B18 -> 0 | C104: =G18 -> 4.7 | D104: =B104*C104 -> 0 | E104: =D140 -> 73.75 | F104: =D104*E104% -> 0 | H104: =B104*G104 -> 0 | I104: 20 | J104: =B104*I104 -> 0
A105: Fjerkrægødning | B105: =B19 -> 0 | C105: =G19 -> 15.5 | D105: =B105*C105 -> 0 | E105: =D141 -> 59.375 | F105: =D105*E105% -> 0 | H105: =B105*G105 -> 0 | I105: 25 | J105: =B105*I105 -> 0
A107: I alt | B107: =SUM(B95:B100,B103:B105) -> 110 | D107: =SUM(D95:D100,D103:D105) -> 654 | F107: =SUM(F95:F100,F103:F105) -> 321.478125 | H107: =SUM(H95:H100,H103:H105) -> 0 | J107: =SUM(J95:J100,J103:J105) -> 2465
A109: Drift med biogasproduktion | B109: tons | C109: kg N pr ton | D109: N-total i alt | E109: Udnyttelsespct. | F109: Effektivt N, kg i alt | G109: Gødningspris, kr. pr ton | H109: Gødningspris i alt | I109: Udbringningspris kr. pr. ton | J109: Udbringningspris i alt, kr
A110: Egen gødning
A111: Kvæggylle | B111: =D9 -> 57 | C111: =G9 -> 4.5 | D111: =C111*B111 -> 256.5 | E111: =D131 -> 66.25 | F111: =D111*E111% -> 169.93125 | H111: =B111*G111 -> 0 | I111: 20 | J111: =B111*I111 -> 1140
A112: Svinegylle | B112: 0 | C112: 4.7 | D112: 0 | E112: 73.75 | F112: 0 | H112: 0 | I112: 20 | J112: 0
A113: Fast gødning, kvæg | B113: 53 | C113: 7.5 | D113: 397.5 | E113: 38.125 | F113: 151.546875 | H113: 0 | I113: 25 | J113: 1325
A114: Fast gødning, svin | B114: 0 | C114: 9 | D114: 0 | E114: 38.125 | F114: 0 | H114: 0 | I114: 25 | J114: 0
A115: Fjerkrægødning | B115: 0 | C115: 15.5 | D115: 0 | E115: 59.375 | F115: 0 | H115: 0 | I115: 25 | J115: 0
A116: Dybstrøelse | B116: 0 | C116: 11.5 | D116: 0 | E116: 30.625 | F116: 0 | H116: 0 | I116: 25 | J116: 0
A118: Indkøbt gødning
A119: Kvæggylle | B119: =D17 -> 0 | C119: =G17 -> 3.5 | D119: =C119*B119 -> 0 | E119: =D139 -> 66.25 | F119: =D119*E119% -> 0 | H119: =B119*G119 -> 0 | I119: 20 | J119: =B119*I119 -> 0
A120: Svinegylle | B120: =D18 -> 0 | C120: =G18 -> 4.7 | D120: =C120*B120 -> 0 | E120: =D140 -> 73.75 | F120: =D120*E120% -> 0 | H120: =B120*G120 -> 0 | I120: 20 | J120: =B120*I120 -> 0
A121: Fjerkrægødning | B121: =D19 -> 0 | C121: =G19 -> 15.5 | D121: =C121*B121 -> 0 | E121: =D141 -> 59.375 | F121: =D121*E121% -> 0 | H121: =B121*G121 -> 0 | I121: 25 | J121: =B121*I121 -> 0
A123: Biogasgylle, gårdanlæg | B123: =D22 ->  | C123: =G22 ->  | D123: =C123*B123 ->  | E123: =D143 -> 80 | F123: =D123*E123% ->  | H123: =B123*G123 ->  | I123: 20 | J123: =B123*I123 -> 
A124: Biogasgylle, køb fra fællesanlæg | B124: =D23 -> 0 | C124: =G23 -> 6 | D124: =C124*B124 -> 0 | E124: 80 | F124: =D124*E124% -> 0 | H124: =B124*G124 -> 0 | I124: 20 | J124: =B124*I124 -> 0
A126: I alt | B126: =SUM(B111:B116,B119:B121,B123:B124) ->  | D126: =SUM(D111:D116,D119:D121,D123:D124) ->  | F126: =SUM(F111:F116,F119:F121,F123:F124) ->  | H126: =SUM(H111:H116,H119:H121,H123:H124) ->  | J126: =SUM(J111:J116,J119:J121,J123:J124) -> 
A128: Kvælstofudnyttelse (nedfældning) | B128: Vårsæd, majs… | C128: Vintersæd | F128: Vårsæd, majs… | G128: Vintersæd
B129: Udnyttelse, % | D129: gn.snit vægtet 75/25??? | F129: Forbedret udnyttelse, % ift. biogasgylle
A130: Egen gødning
A131: Kvæggylle | B131: 70 | C131: 55 | D131: =(0.75*B131+0.25*C131) -> 66.25 | F131: =$B$143-B131 -> 10 | G131: =$C$143-C131 -> 25
A132: Svinegylle | B132: 75 | C132: 70 | D132: 73.75 | F132: 5 | G132: 10
A133: Fast gødning, kvæg | B133: 42.5 | C133: 25 | D133: 38.125 | F133: 37.5 | G133: 55
A134: Fast gødning, svin | B134: 42.5 | C134: 25 | D134: 38.125 | F134: 37.5 | G134: 55
A135: Fjerkrægødning | B135: 62.5 | C135: 50 | D135: 59.375 | F135: 17.5 | G135: 30
A136: Dybstrøelse | B136: 32.5 | C136: 25 | D136: 30.625 | F136: 47.5 | G136: 55
A138: Indkøbt gødning
A139: Kvæggylle | B139: 70 | C139: 55 | D139: =(0.75*B139+0.25*C139) -> 66.25 | F139: =$B$143-B139 -> 10 | G139: =$C$143-C139 -> 25
A140: Svinegylle | B140: 75 | C140: 70 | D140: =(0.75*B140+0.25*C140) -> 73.75 | F140: =$B$143-B140 -> 5 | G140: =$C$143-C140 -> 10
A141: Fjerkrægødning | B141: 62.5 | C141: 50 | D141: =(0.75*B141+0.25*C141) -> 59.375 | F141: =$B$143-B141 -> 17.5 | G141: =$C$143-C141 -> 30
A143: Biogasgylle | B143: 80 | C143: 80 | D143: =(0.75*B143+0.25*C143) -> 80

Sheet N-responser
A1: N-responser, planteavlssædskifter
C5: Grundudbytte, hkg/ha | E5: N-respons, kg pr. kg N | I5: Beregnet slutudbytte, hkg/ha
C6: Sandjord | D6: Lerjord | E6: 0-50 | F6: 50-100 | G6: 100-150 | H6: 150-200 | I6: Sandjord | J6: Lerjord
B7: Vårsæd | C7: 28 | D7: 32 | E7: 20 | F7: 10 | G7: 3 | H7: 0 | I7: =C7+(50*$E7/100+50*$F7/100+50*$G7/100+50*$H7/100) -> 44.5 | J7: =D7+(50*$E7/100+50*$F7/100+50*$G7/100+50*$H7/100) -> 48.5
B8: Vintersæd, andre forfruger end kløvergræs | C8: 28 | D8: 32 | E8: 20 | F8: 15 | G8: 10 | H8: 1 | I8: =C8+(50*E8/100+50*F8/100+50*G8/100+50*H8/100) -> 51 | J8: =D8+(50*$E8/100+50*$F8/100+50*$G8/100+50*$H8/100) -> 55
B9: Vintersæd, forfrugt kløvergræs | C9: 45 | D9: 50 | E9: 20 | F9: 13 | G9: 7 | H9: 1 | I9: =C9+(50*E9/100+50*F9/100+50*G9/100+50*H9/100) -> 65.5 | J9: 70.5
B10: Vinterraps | C10: =C25 -> 18.24 | D10: =C25 -> 18.24 | I10: =K25 -> 31.34 | J10: =K25 -> 31.34
B16: X | C16: 0 | D16: 50 | E16: 100 | F16: 150 | G16: 200
B17: X2 | C17: =C16^2 -> 0 | D17: =D16^2 -> 2500 | E17: =E16^2 -> 10000 | F17: 22500 | G17: 40000 | H17: a | I17: b | J17: c
C18: 0 | D18: 50 | E18: 100 | F18: 150 | G18: 200 | K18: 200
A19: Sandjord | B19: Vårsæd | C19: =C7 -> 28 | D19: =C19+((D16-C16)*E7/100) -> 38 | E19: =D19+((E$16-D$16)*F7/100) -> 43 | F19: 44.5 | G19: 44.5 | H19: =LINEST(C19:G19,$C$16:$G$17,TRUE,TRUE) -> -0.0006714285714 | I19: 0.2132857143 | J19: 28.34285714 | K19: =H19*$K$18^2+$K$18*I19+J19 -> 44.14285714
A20: Sandjord | B20: Vintersæd, andre forfruger end kløvergræs | C20: =C8 -> 28 | D20: 38 | E20: 45.5 | F20: 50.5 | G20: 51 | H20: =LINEST(C20:G20,$C$16:$G$17,TRUE,TRUE) -> -0.0006142857143 | I20: 0.2398571429 | J20: 27.82857143 | K20: 51.22857143
A21: Sandjord | B21: Vintersæd, forfrugt kløvergræs | C21: 45 | D21: 55 | E21: 61.5 | F21: 65 | G21: 65.5 | H21: =LINEST(C21:G21,$C$16:$G$17,TRUE,TRUE) -> -0.0006285714286 | I21: 0.2277142857 | J21: 45.05714286 | K21: 65.45714286
A22: Lerjord | B22: Vårsæd | C22: =D7 -> 32 | D22: =C22+((D$16-C$16)*E7/100) -> 42 | E22: 47 | F22: 48.5 | G22: 48.5 | H22: =LINEST(C22:G22,$C$16:$G$17,TRUE,TRUE) -> -0.0006714285714 | I22: 0.2132857143 | J22: 32.34285714 | K22: 48.14285714
A23: Lerjord | B23: Vintersæd, andre forfruger end kløvergræs | C23: =D8 -> 32 | D23: 42 | E23: 49.5 | F23: 54.5 | G23: 55 | H23: =LINEST(C23:G23,$C$16:$G$17,TRUE,TRUE) -> -0.0006142857143 | I23: 0.2398571429 | J23: 31.82857143 | K23: 55.22857143
A24: Lerjord | B24: Vintersæd, forfrugt kløvergræs | C24: 50 | D24: 60 | E24: 66.5 | F24: 70 | G24: 70.5 | H24: =LINEST(C24:G24,$C$16:$G$17,TRUE,TRUE) -> -0.0006285714286 | I24: 0.2277142857 | J24: 50.05714286 | K24: 70.45714286
B25: Vinterraps | C25: =$H$25*C18^2+$I$25*C18+$J$25 -> 18.24 | D25: =$H$25*D18^2+$I$25*D18+$J$25 -> 23.48 | E25: 27.41 | F25: 30.03 | G25: 31.34 | H25: -0.000262 | I25: 0.1179 | J25: 18.24 | K25: 31.34
A29: N-responser, kvægbrugssædskifter
A31: Udbytterespons i forhold til planteavlssædskifter: | E31: 0.75 | H31: =IF(Forside!P18=TRUE,1,E31) -> 1
C33: Beregnet
C34: grundudbytte, hkg/ha | E34: N-respons, kg pr. kg N | I34: Slutudbytte, hkg/ha
C35: Sandjord | D35: Lerjord | E35: 0-50 | F35: 50-100 | G35: 100-150 | H35: 150-200 | I35: Sandjord | J35: Lerjord
B36: Vårsæd | C36: =I36-(50*H36/100+50*G36/100+50*F36/100+50*E36/100) -> 28 | D36: =J36-(50*H36/100+50*G36/100+50*F36/100+50*E36/100) -> 32 | E36: =E7*$H$31 -> 20 | F36: 10 | G36: 3 | H36: 0 | I36: =I7 -> 44.5 | J36: =J7 -> 48.5
B37: Vintersæd, andre forfruger end kløvergræs | C37: =I37-(50*H37/100+50*G37/100+50*F37/100+50*E37/100) -> 28 | D37: =J37-(50*H37/100+50*G37/100+50*F37/100+50*E37/100) -> 32 | E37: 20 | F37: 15 | G37: 10 | H37: 1 | I37: =I8 -> 51 | J37: 55
B38: Vintersæd, forfrugt kløvergræs | C38: 45 | D38: 50 | E38: 20 | F38: 13 | G38: 7 | H38: 1 | I38: =I9 -> 65.5 | J38: 70.5
B39: Vinterraps
H44: De fede konstanter anvendes i Markdatabasen
B45: X | C45: 0 | D45: 50 | E45: 100 | F45: 150 | G45: 200
B46: X2 | C46: =C45^2 -> 0 | D46: =D45^2 -> 2500 | E46: =E45^2 -> 10000 | F46: 22500 | G46: 40000 | H46: a | I46: b | J46: c
C47: 0 | D47: 50 | E47: 100 | F47: 150 | G47: 200 | K47: 200
A48: Sandjord | B48: Vårsæd | C48: =C36 -> 28 | D48: =C48+((D$45-C$45)*E36/100) -> 38 | E48: =D48+((E$45-D$45)*F36/100) -> 43 | F48: 44.5 | G48: 44.5 | H48: =LINEST(C48:G48,$C$45:$G$46,TRUE,TRUE) -> -0.0006714285714 | I48: 0.2132857143 | J48: 28.34285714 | K48: =H48*$K$18^2+$K$18*I48+J48 -> 44.14285714
A49: Sandjord | B49: Vintersæd, andre forfruger end kløvergræs | C49: =C37 -> 28 | D49: =C49+((D$45-C$45)*E37/100) -> 38 | E49: 45.5 | F49: 50.5 | G49: 51 | H49: =LINEST(C49:G49,$C$45:$G$46,TRUE,TRUE) -> -0.0006142857143 | I49: 0.2398571429 | J49: 27.82857143 | K49: 51.22857143
A50: Sandjord | B50: Vintersæd, forfrugt kløvergræs | C50: 45 | D50: =C50+((D$45-C$45)*E38/100) -> 55 | E50: 61.5 | F50: 65 | G50: 65.5 | H50: =LINEST(C50:G50,$C$45:$G$46,TRUE,TRUE) -> -0.0006285714286 | I50: 0.2277142857 | J50: 45.05714286 | K50: 65.45714286
A51: Lerjord | B51: Vårsæd | C51: =D36 -> 32 | D51: =C51+((D$45-C$45)*E36/100) -> 42 | E51: =D51+((E$45-D$45)*F36/100) -> 47 | F51: 48.5 | G51: 48.5 | H51: =LINEST(C51:G51,$C$45:$G$46,TRUE,TRUE) -> -0.0006714285714 | I51: 0.2132857143 | J51: 32.34285714 | K51: 48.14285714
A52: Lerjord | B52: Vintersæd, andre forfruger end kløvergræs | C52: =D37 -> 32 | D52: =C52+((D$45-C$45)*E37/100) -> 42 | E52: 49.5 | F52: 54.5 | G52: 55 | H52: =LINEST(C52:G52,$C$45:$G$46,TRUE,TRUE) -> -0.0006142857143 | I52: 0.2398571429 | J52: 31.82857143 | K52: 55.22857143
A53: Lerjord | B53: Vintersæd, forfrugt kløvergræs | C53: 50 | D53: =C53+((D$45-C$45)*E38/100) -> 60 | E53: 66.5 | F53: 70 | G53: 70.5 | H53: =LINEST(C53:G53,$C$45:$G$46,TRUE,TRUE) -> -0.0006285714286 | I53: 0.2277142857 | J53: 50.05714286 | K53: 70.45714286
A54: Ler/sand | B54: Vinterraps | C54: =$H$54*C47^2+$I$54*C47+$J$54 -> 18.24 | D54: =$H$54*D47^2+$I$54*D47+$J$54 -> 23.48 | E54: 27.41 | F54: 30.03 | G54: 31.34 | H54: =H25*$H$31 -> -0.000262 | I54: =I25*$H$31 -> 0.1179 | J54: =J25+(G25-G56) -> 18.24 | K54: 31.34
B56: (Vinterraps, forskudt nedad) | C56: =$H$54*C49^2+$I$54*C49+$J$54 -> 21.335792 | D56: =$H$56*D47^2+$I$56*D47+$J$56 -> 23.48 | E56: =$H$56*E47^2+$I$56*E47+$J$56 -> 27.41 | F56: 30.03 | G56: 31.34 | H56: =H25*$H$31 -> -0.000262 | I56: =I25*$H$31 -> 0.1179 | J56: =J25 -> 18.24 | K56: =H56*$K$18^2+$K$18*I56+J56 -> 31.34
